Service Area Categorisation,Service Division Categorisation,Responsible Unit,Expenses Type,Expenses Sub-Type,Detailed Expenses Type,Date,Transaction number,Amount,Capital/Revenue,Supplier Name
,No FE Detail,Civic Centre refurbishment,Construct Conversn Renovatn,Contractor - Site works,Contractor - Site works,7/6/2011,1,"5,200.00",Capital,KH FLOORING LTD
Central Services,Fully rechargeable Overheads,Director of Corporate Services,Employees,Indirect Employee Expenses,External Training Costs,7/8/2011,2,585.00,Revenue,REDACTED
Cultural Env Reg&Plan Services,Development Control,Development Control,Customer and client receipts,Fees,Application Fees X,7/1/2011,3,530.00,Revenue,SYNERGY CPC LLP
,No FE Detail,Payroll Summary Account,Fund Balances,Funded by Other grants & contr,Extl Payees Monthly,7/1/2011,4,"13,060.44",Revenue,PRUDENTIAL (LOCAL GOVERMENT)
,No FE Detail,Ursuline  - Payroll Contract,Fund Balances,,Other Deductions,7/1/2011,5,"1,004.93",Revenue,PRUDENTIAL (TEACHERS)
,No FE Detail,Payroll Summary Account,Fund Balances,Funded by Other grants & contr,Extl Payees Monthly,7/1/2011,6,"1,834.85",Revenue,REDACTED
,No FE Detail,Payroll Summary Account,Fund Balances,Funded by Other grants & contr,Extl Payees Monthly,7/1/2011,7,"9,642.21",Revenue,REDACTED
,No FE Detail,Payroll Summary Account,Fund Balances,Funded by Other grants & contr,Extl Payees Monthly,7/1/2011,8,"5,163.87",Revenue,REDACTED
,No FE Detail,Ursuline  - Payroll Contract,Fund Balances,,Other Deductions,7/1/2011,9,912.50,Revenue,GENERAL TEACHING COUNCIL
,No FE Detail,Payroll Summary Account,Fund Balances,Funded by Other grants & contr,Extl Payees Monthly,7/1/2011,10,903.32,Revenue,REDACTED
,No FE Detail,Payroll Summary Account,Fund Balances,Funded by Other grants & contr,Extl Payees Monthly,7/1/2011,11,"8,149.05",Revenue,REDACTED
,No FE Detail,Payroll Summary Account,Fund Balances,Funded by Other grants & contr,Extl Payees Monthly,7/1/2011,12,"2,666.41",Revenue,REDACTED
,No FE Detail,Payroll Summary Account,Fund Balances,Funded by Other grants & contr,Extl Payees Monthly,7/1/2011,13,"12,713.81",Revenue,REDACTED
,No FE Detail,Tiffin Boys,Fund Balances,,Other Deductions,7/1/2011,14,"17,898.56",Revenue,LONDON BOROUGH OF KINGSTON
,No FE Detail,Tiffin Boys,Fund Balances,,Other Deductions,7/1/2011,15,"49,998.37",Revenue,ROYAL BOROUGH OF KINGSTON
,No FE Detail,Payroll Summary Account,Fund Balances,Funded by Other grants & contr,Extl Payees Monthly,7/1/2011,16,"1,930.45",Revenue,REDACTED
Central Services,Fully rechargeable Overheads,Democratic Services,Supplies and Services,Services,Miscellaneous Expenses,7/1/2011,17,500.00,Revenue,SINCLAIR JEWELLERS
,No FE Detail,Payroll Summary Account,Fund Balances,Funded by Other grants & contr,Extl Payees Monthly,7/1/2011,18,"2,193.47",Revenue,REDACTED
,No FE Detail,Payroll Summary Account,Fund Balances,Funded by Other grants & contr,Extl Payees Monthly,7/1/2011,19,878.34,Revenue,REDACTED
Childrens & Education Services,Other Ch's & Family Services,CL Setting Up Home Allowance,Third Party Payments,Private Contractors,Miscellaneous Agency Services,7/6/2011,20,"1,150.32",Revenue,REDACTED
Housing Services,Repairs and Maintenance,Disrepair cases (non repairs),Supplies and Services,,Compensation Payments,7/6/2011,21,792.00,Revenue,GOODWIN MALATESTA LEGAL SERVS
Childrens & Education Services,Schools Strategic Management,Senior Mngt & Support Services,Supplies and Services,Services,Counsel's Fees,7/6/2011,22,"17,500.00",Revenue,PIERCE GLYNN SOLICITORS
Central Services,Fully rechargeable Overheads,Efficiency Review Project,Supplies and Services,Services,Consultants,7/7/2011,23,"1,200.00",Revenue,LOCAL GOVERNMENT EMPLOYERS
,No FE Detail,Bldng Sub-Cntrctrs Tax Acc,Fund Balances,,Payments X,7/8/2011,24,"2,623.20",Revenue,HM REVENUE & CUSTOMS
Childrens & Education Services,Other Ch's & Family Services,CL Setting Up Home Allowance,Third Party Payments,Private Contractors,Miscellaneous Agency Services,7/8/2011,25,"1,000.00",Revenue,REDACTED
Central Services,Fully rechargeable Overheads,Legal Services,Supplies and Services,Services,Court Fees,7/8/2011,26,"2,400.00",Revenue,REDACTED
Cultural Env Reg&Plan Services,Building Control,Building Control,Customer and client receipts,Fees,Bed Fees X,7/8/2011,27,553.17,Revenue,REDACTED
Cultural Env Reg&Plan Services,Building Control,Building Control,Customer and client receipts,Fees,Consultancy Fees Recovered E,7/8/2011,28,553.17,Revenue,REDACTED
Cultural Env Reg&Plan Services,Building Control,Building Control,Customer and client receipts,Fees,OFSTED Inspections Income X,7/8/2011,29,553.17,Revenue,REDACTED
Cultural Env Reg&Plan Services,Building Control,Building Control,Customer and client receipts,Fees,Other Tuition/Training Fees S,7/8/2011,30,553.17,Revenue,REDACTED
Cultural Env Reg&Plan Services,Building Control,Building Control,Customer and client receipts,Fees,Building Regs Fees S,7/8/2011,31,"1,106.34",Revenue,REDACTED
Childrens & Education Services,Other Ch's & Family Services,CL Setting Up Home Allowance,Third Party Payments,Private Contractors,Miscellaneous Agency Services,7/13/2011,32,"1,127.27",Revenue,REDACTED
Central Services,Fully rechargeable Overheads,Systems & Projects,Supplies and Services,Prntng Stnry Gen Off Exp,General Office Expense,7/12/2011,33,750.00,Revenue,MARKS AND SPENCER GIFT VOUCHER
Central Services,Fully rechargeable Overheads,Payroll,Supplies and Services,Services,General Office Expenses,7/12/2011,34,"1,100.00",Revenue,MARKS AND SPENCER GIFT VOUCHER
,No FE Detail,Annual Season Ticket Loans,Fund Balances,,Payments X,7/13/2011,35,712.00,Revenue,LONDON UNDERGROUND LTD
Housing Services,Homelessness,Homelessness Prevention,Transfer Payments,Housing Benefits,Rent Deposits,7/12/2011,36,"1,124.04",Revenue,REDACTED
Central Services,Local Tax Collection,Local Taxation Services,Supplies and Services,Services,Miscellaneous Fees,7/13/2011,37,"2,958.19",Revenue,INVESTING SOLUTIONS LTD
Adult Social Care,Older People 65&Over inc OP-MH,OP Hosp - Residential Care Ext,Third Party Payments,Private Contractors,Miscellaneous Agency Services,7/14/2011,38,"2,706.53",Revenue,ALEXANDER PARK HOMES LTD
Central Services,Fully rechargeable Overheads,Civic Centre,Supplies and Services,Equip Furniture/Materials,Op. Leasing Equipment,7/14/2011,39,654.58,Revenue,COMET GROUP PLC
Central Services,Fully rechargeable Overheads,Legal Services,Supplies and Services,Services,Court Fees,7/15/2011,40,"2,100.00",Revenue,REDACTED
,No FE Detail,Crossrail BRS,Fund Balances,,Payments X,7/22/2011,41,"186,733.00",Revenue,GREATER LONDON AUTHORITY
CS -Oth Operating Inc & Expend,Precepts and Levies,Lee Valley Regional Park,Corporate Items,,Expenditure,7/18/2011,42,"18,350.46",Revenue,LEE VALLEY REGIONAL PARK AUTH.
CS -Oth Operating Inc & Expend,Precepts and Levies,London Pens Fund Auth,Corporate Items,,Expenditure,7/29/2011,43,"25,433.20",Revenue,LONDON PENSIONS FUND AUTHORITY
CS -Oth Operating Inc & Expend,Precepts and Levies,WPCC,Corporate Items,,Expenditure,7/29/2011,44,"26,664.74",Revenue,WPCC
,No FE Detail,Precepts,Fund Balances,,Greate London Authority S,7/29/2011,45,"2,359,782.25",Revenue,GREATER LONDON AUTHORITY
Housing Services,Homelessness,Homelessness Prevention,Transfer Payments,Housing Benefits,Rent Deposits,7/15/2011,46,"1,700.00",Revenue,GOODFELLOWS LETTING & MANAG.
Housing Services,Homelessness,Homelessness Prevention,Transfer Payments,Housing Benefits,Sanctuary Scheme Rent Rescue,7/15/2011,47,718.35,Revenue,MERTON PRIORY HOMES
Childrens & Education Services,Other Ch's & Family Services,CL Setting Up Home Allowance,Third Party Payments,Private Contractors,Miscellaneous Agency Services,7/20/2011,48,"1,269.37",Revenue,REDACTED
CS -Oth Operating Inc & Expend,Trading A/c Surpluses/Deficits,Transport-Workshop,Transport Related Expenditure,Direct Transport Costs,Vehicle MOTs,7/20/2011,49,"1,000.00",Revenue,V.O.S.A
,No FE Detail,Parks Investment,Construct Conversn Renovatn,Contractor - Site works,Contractor - Site works,7/21/2011,50,975.00,Capital,TAYLOR BUILDING COMPANY LTD
,No FE Detail,Payroll Summary Account,Fund Balances,Funded by Other grants & contr,Salary Sacrifice,7/22/2011,51,731.44,Revenue,ACCOR SERVICES
,No FE Detail,Payroll Summary Account,Fund Balances,Funded by Other grants & contr,Salary Sacrifice,7/22/2011,52,"13,299.00",Revenue,ACCOR SERVICES
,No FE Detail,Payroll Summary Account,Fund Balances,Funded by Other grants & contr,Advances- Chqs Drawn,7/22/2011,53,558.27,Revenue,REDACTED
Highways & Transport Services,Traffic Mgt & Road Safety,Tr Man & Accid Sch,Employees,Direct Employee Expenses,Agency Staff & Casual Paymts,7/25/2011,54,"5,040.00",Revenue,REDACTED
,No FE Detail,REDACTED,Fund Balances,,Deposits Refunded,7/27/2011,55,"2,785.00",Revenue,MORGAN LAROCHE LTD SOLICITORS
Childrens & Education Services,Family Support Services,CL CLA Team 1 - Sec 17,Transfer Payments,Adult Soc Servs Clients,Childr Act 1989 S17,7/27/2011,56,589.00,Revenue,REDACTED
Childrens & Education Services,Other Ch's & Family Services,CL Setting Up Home Allowance,Third Party Payments,Private Contractors,Miscellaneous Agency Services,7/27/2011,57,"1,150.62",Revenue,REDACTED
,No FE Detail,OFFICES AT GENERATOR BUSNESS C,Fund Balances,,Payments X,7/27/2011,58,825.00,Revenue,DEEP VISION CONSULTING LTD
,No FE Detail,All Saints/ South Wim YCC exp,Construct Conversn Renovatn,Other Costs - Site works,Other Costs - Site works,7/26/2011,59,687.00,Capital,THAMES WATER DEVELOPER SERVICE
Adult Social Care,Asylum seekers,AS Child Res Care  (No Grant),Third Party Payments,Private Contractors,Private Tenant/Landlord,7/26/2011,60,725.00,Revenue,REDACTED
,No FE Detail,Payroll Summary Account,Fund Balances,Funded by Other grants & contr,Salary Sacrifice,7/26/2011,61,652.13,Revenue,ACCOR SERVICES
,No FE Detail,Payroll Summary Account,Fund Balances,Funded by Other grants & contr,Salary Sacrifice,7/26/2011,62,"9,880.67",Revenue,ACCOR SERVICES
Childrens & Education Services,Adult Education,AE-additional learner SF,Supplies and Services,Services,Miscellaneous Fees,7/27/2011,63,519.00,Revenue,REDACTED
Childrens & Education Services,Other Ch's & Family Services,CL Permanency,Employees,Direct Employee Expenses,Agency Staff & Casual Paymts,7/26/2011,64,930.00,Revenue,REDACTED
Childrens & Education Services,Other Ch's & Family Services,CL Permanency,Employees,Direct Employee Expenses,Agency Staff & Casual Paymts,7/26/2011,65,930.00,Revenue,REDACTED
Childrens & Education Services,Supporting SEN,Sensory Team,Supplies and Services,Services,Consultants,7/26/2011,66,"1,827.90",Revenue,REDACTED
,No FE Detail,Payroll Summary Account,Fund Balances,Funded by Other grants & contr,Advances- Chqs Drawn,7/27/2011,67,510.37,Revenue,REDACTED
,No FE Detail,Payroll Summary Account,Fund Balances,Funded by Other grants & contr,Salary Sacrifice,7/27/2011,68,"2,042.00",Revenue,ACCOR SERVICES
,No FE Detail,B591a Street Scene Improvement,Construct Conversn Renovatn,Contractor - Site works,Contractor - Site works,7/27/2011,69,"11,258.64",Capital,VIRGIN MEDIA
Cultural Env Reg&Plan Services,Building Control,Building Control,Customer and client receipts,Fees,Building Regs Fees S,7/27/2011,70,999.00,Revenue,REDACTED
Cultural Env Reg&Plan Services,Building Control,Building Control,Customer and client receipts,Fees,Building Regs Fees S,7/27/2011,71,888.00,Revenue,REDACTED
,No FE Detail,VAT - M&S J C B,Fund Balances,Funded by borrowing,Vol Discl- Output T  X,7/27/2011,72,"2,766.19",Revenue,H M CUSTOMS AND EXCISE
Childrens & Education Services,Assuring Access To Schools,Merton Music Foundation,Supplies and Services,Grants and Subscriptions,Grants,7/27/2011,73,"88,437.00",Revenue,MERTON MUSIC FOUNDATION
,No FE Detail,ICT Harnessing Technolgy Grant,Vehicles Plant Equip & Machin,Software,Software,7/29/2011,74,"29,191.31",Capital,LONDON GRID FOR LEARNING TRUST
Adult Social Care,Asylum seekers,AS Child - Discret Pay (Grant),Third Party Payments,Private Contractors,Miscellaneous Agency Services,7/29/2011,75,524.10,Revenue,REDACTED
Childrens & Education Services,Other Ch's & Family Services,CL Setting Up Home Allowance,Third Party Payments,Private Contractors,Miscellaneous Agency Services,7/29/2011,76,"1,350.69",Revenue,REDACTED
Adult Social Care,Adult u65 Phys/Sensory Impair,PD EAST TEAM-Nursing,Third Party Payments,Private Contractors,Miscellaneous Agency Services,7/7/2011,77,"3,800.00",Revenue,QUEEN ALEXANDRA HOSPITAL HOME
Adult Social Care,Adlt u65 Learning Disabilities,LD Residential Care External,Third Party Payments,Private Contractors,Miscellaneous Agency Services,7/13/2011,78,"2,848.72",Revenue,THE GRANGE & WALTON COTTAGE
Adult Social Care,Adlt u65 Learning Disabilities,LD Residential Care External,Third Party Payments,Private Contractors,Miscellaneous Agency Services,7/4/2011,79,"2,074.68",Revenue,EL-SHADDAI
Adult Social Care,Older People 65&Over inc OP-MH,OP West -Direct Payment Scheme,Third Party Payments,Private Contractors,Direct Payments,7/5/2011,80,"1,911.60",Revenue,REDACTED
Adult Social Care,Asylum seekers,AS Child Res Care  (No Grant),Third Party Payments,Private Contractors,Private Tenant/Landlord,7/8/2011,81,784.56,Revenue,REDACTED
Adult Social Care,Older People 65&Over inc OP-MH,OP East - Nursing Care,Third Party Payments,Private Contractors,Miscellaneous Agency Services,7/1/2011,82,"2,334.52",Revenue,THE CROFT NURSING HOME
Adult Social Care,Older People 65&Over inc OP-MH,OP Hosp - Residential Care Ext,Third Party Payments,Private Contractors,Miscellaneous Agency Services,7/1/2011,83,"2,006.59",Revenue,STOKEFIELD CARE HOME
Childrens & Education Services,Family Support Services,CS Day Care CWD,Third Party Payments,Private Contractors,Playscheme,7/1/2011,84,881.50,Revenue,LITTLE CATERPILLARS PLAYGROUP
Adult Social Care,Adult u65 Mental Health Needs,MH ResidentialCare Ext - Wim,Third Party Payments,Private Contractors,Miscellaneous Agency Services,7/1/2011,85,"1,524.76",Revenue,ALDWICK RESIDENTIAL CARE HOME
Adult Social Care,Adult u65 Mental Health Needs,MH ResidentialCare Ext-Morden,Third Party Payments,Private Contractors,Miscellaneous Agency Services,7/1/2011,86,"6,320.90",Revenue,BROOKDALE HEALTH CARE
Adult Social Care,Adlt u65 Learning Disabilities,LD Residential Care External,Third Party Payments,Private Contractors,Miscellaneous Agency Services,7/1/2011,87,"1,997.21",Revenue,OAKDOWN HOUSE LTD
Adult Social Care,Adlt u65 Learning Disabilities,LD Residential Care External,Customer and client receipts,Charges,Miscellaneous Charges X,7/1/2011,88,-508.18,Revenue,OAKDOWN HOUSE LTD
Adult Social Care,Adlt u65 Learning Disabilities,LD Residential Care External,Third Party Payments,Private Contractors,Miscellaneous Agency Services,7/1/2011,89,"2,148.48",Revenue,OAKDOWN HOUSE LTD
Adult Social Care,Older People 65&Over inc OP-MH,OP West - Residential Care Ext,Third Party Payments,Private Contractors,Miscellaneous Agency Services,7/1/2011,90,"2,288.84",Revenue,OATLANDS CARE LIMITED
Childrens & Education Services,Other Ch's & Family Services,CL Setting Up Home Allowance,Third Party Payments,Private Contractors,Miscellaneous Agency Services,7/1/2011,91,855.18,Revenue,ARGOS BUSINESS SOLUTIONS LTD
Adult Social Care,Asylum seekers,AS Child - Res Care (Grant),Third Party Payments,Private Contractors,Supported Lodgings,7/1/2011,92,600.00,Revenue,REDACTED
Childrens & Education Services,Other Ch's & Family Services,CL Leaving Care/Supp Lodgings,Third Party Payments,Private Contractors,Supported Lodgings,7/1/2011,93,600.00,Revenue,REDACTED
Adult Social Care,Older People 65&Over inc OP-MH,OP Hosp - Residential Care Ext,Third Party Payments,Private Contractors,Miscellaneous Agency Services,7/1/2011,94,"1,558.86",Revenue,ABBEY HOUSE RESIDENTIAL HOMES
Adult Social Care,Older People 65&Over inc OP-MH,OP West - Residential Care Ext,Third Party Payments,Private Contractors,Miscellaneous Agency Services,7/1/2011,95,"3,434.68",Revenue,ABBEY HOUSE RESIDENTIAL HOMES
Adult Social Care,Adult u65 Phys/Sensory Impair,PD EAST TEAM-Residential,Third Party Payments,Private Contractors,Miscellaneous Agency Services,7/1/2011,96,"6,642.87",Revenue,BRAMBLEDOWN CARE HOME
Adult Social Care,Adult u65 Phys/Sensory Impair,PD WEST TEAM-Nursing,Customer and client receipts,Charges,Miscellaneous Charges X,7/1/2011,97,"-1,111.20",Revenue,BRITISH HOME
Adult Social Care,Adult u65 Phys/Sensory Impair,PD WEST TEAM-Nursing,Third Party Payments,Private Contractors,Miscellaneous Agency Services,7/1/2011,98,"2,775.76",Revenue,BRITISH HOME
Adult Social Care,Adult u65 Phys/Sensory Impair,PD EAST TEAM-Nursing,Third Party Payments,Private Contractors,Miscellaneous Agency Services,7/1/2011,99,"3,237.64",Revenue,BRITISH HOME
Adult Social Care,Adlt u65 Learning Disabilities,LD Residential Care External,Third Party Payments,Private Contractors,Miscellaneous Agency Services,7/1/2011,100,"2,352.24",Revenue,COTTISBRAINE HOUSE
Adult Social Care,Adlt u65 Learning Disabilities,LD Residential Care External,Third Party Payments,Private Contractors,Miscellaneous Agency Services,7/1/2011,101,"6,997.00",Revenue,CHHG LTD T/A GRETTON HOMES
Adult Social Care,Adlt u65 Learning Disabilities,LD Home Care External,Third Party Payments,Private Contractors,Miscellaneous Agency Services,7/1/2011,102,"3,234.96",Revenue,H F TRUST LTD
Adult Social Care,Older People 65&Over inc OP-MH,OP West - Nursing Care,Third Party Payments,Private Contractors,Miscellaneous Agency Services,7/1/2011,103,"2,134.60",Revenue,KELSTONE COURT NURSING HOME
Adult Social Care,Older People 65&Over inc OP-MH,OP Hosp - Nursing Care,Third Party Payments,Private Contractors,Miscellaneous Agency Services,7/1/2011,104,"2,341.84",Revenue,KELSTONE COURT NURSING HOME
Adult Social Care,Older People 65&Over inc OP-MH,OP Hosp - Nursing Care,Third Party Payments,Private Contractors,Miscellaneous Agency Services,7/1/2011,105,"2,380.00",Revenue,KELSTONE COURT NURSING HOME
Adult Social Care,Older People 65&Over inc OP-MH,OP West - Nursing Care,Third Party Payments,Private Contractors,Miscellaneous Agency Services,7/1/2011,106,"2,173.96",Revenue,KELSTONE COURT NURSING HOME
Adult Social Care,Older People 65&Over inc OP-MH,OP Hosp - Nursing Care,Third Party Payments,Private Contractors,Miscellaneous Agency Services,7/1/2011,107,"2,341.84",Revenue,KELSTONE COURT NURSING HOME
Adult Social Care,Older People 65&Over inc OP-MH,OP East - Nursing Care,Third Party Payments,Private Contractors,Miscellaneous Agency Services,7/1/2011,108,"2,341.84",Revenue,KELSTONE COURT NURSING HOME
Adult Social Care,Older People 65&Over inc OP-MH,OP East - Residential Care Ext,Third Party Payments,Private Contractors,Miscellaneous Agency Services,7/1/2011,109,"1,812.40",Revenue,KELSTONE COURT NURSING HOME
Adult Social Care,Older People 65&Over inc OP-MH,OP Hosp - Nursing Care,Third Party Payments,Private Contractors,Miscellaneous Agency Services,7/1/2011,110,"2,341.84",Revenue,KELSTONE COURT NURSING HOME
Adult Social Care,Older People 65&Over inc OP-MH,OP Hosp - Nursing Care,Third Party Payments,Private Contractors,Miscellaneous Agency Services,7/1/2011,111,"-44,996.78",Revenue,KELSTONE COURT NURSING HOME
Adult Social Care,Older People 65&Over inc OP-MH,OP Morden - Nursing Care,Third Party Payments,Private Contractors,Miscellaneous Agency Services,7/1/2011,112,"47,338.62",Revenue,KELSTONE COURT NURSING HOME
Adult Social Care,Older People 65&Over inc OP-MH,OP West - Nursing Care,Third Party Payments,Private Contractors,Miscellaneous Agency Services,7/1/2011,113,"2,341.84",Revenue,KELSTONE COURT NURSING HOME
Adult Social Care,Older People 65&Over inc OP-MH,OP Hosp - Nursing Care,Third Party Payments,Private Contractors,Miscellaneous Agency Services,7/1/2011,114,"-28,018.44",Revenue,KELSTONE COURT NURSING HOME
Adult Social Care,Older People 65&Over inc OP-MH,OP Morden - Nursing Care,Third Party Payments,Private Contractors,Miscellaneous Agency Services,7/1/2011,115,"30,360.28",Revenue,KELSTONE COURT NURSING HOME
Adult Social Care,Older People 65&Over inc OP-MH,OP Hosp - Residential Care Ext,Third Party Payments,Private Contractors,Miscellaneous Agency Services,7/1/2011,116,"1,812.00",Revenue,LAURELS CARE HOME
Adult Social Care,Older People 65&Over inc OP-MH,OP West - Nursing Care,Third Party Payments,Private Contractors,Miscellaneous Agency Services,7/1/2011,117,"2,378.57",Revenue,LYNWOOD NURSING HOME
Adult Social Care,Older People 65&Over inc OP-MH,OP West - Residential Care Ext,Third Party Payments,Private Contractors,Miscellaneous Agency Services,7/1/2011,118,"2,200.00",Revenue,MANOR HOUSE RESIDENTIAL HOME
Adult Social Care,Older People 65&Over inc OP-MH,OP West - Nursing Care,Third Party Payments,Private Contractors,Miscellaneous Agency Services,7/1/2011,119,"2,233.00",Revenue,MOWBRAY NURSING HOME
Adult Social Care,Adlt u65 Learning Disabilities,LD Residential Care External,Third Party Payments,Private Contractors,Miscellaneous Agency Services,7/1/2011,120,"2,672.76",Revenue,THE NAK CENTRE
Adult Social Care,Adlt u65 Learning Disabilities,LD Comm -Residential-Orch Hill,Third Party Payments,Private Contractors,Miscellaneous Agency Services,7/1/2011,121,"5,984.08",Revenue,PROSPECT HOUSING & SUPPORT SER
Adult Social Care,Older People 65&Over inc OP-MH,OP East - Nursing Care,Third Party Payments,Private Contractors,Miscellaneous Agency Services,7/1/2011,122,"2,090.93",Revenue,FAMILY STAR LTD
Adult Social Care,Older People 65&Over inc OP-MH,OP East - Residential Care Ext,Third Party Payments,Private Contractors,Miscellaneous Agency Services,7/1/2011,123,"2,029.81",Revenue,SOUTHPARK RESIDENTIAL HOME
Adult Social Care,Older People 65&Over inc OP-MH,OP East - Residential Care Ext,Third Party Payments,Private Contractors,Miscellaneous Agency Services,7/1/2011,124,"1,703.44",Revenue,SOUTHPARK RESIDENTIAL HOME
Adult Social Care,Older People 65&Over inc OP-MH,OP Hosp - Residential Care Ext,Third Party Payments,Private Contractors,Miscellaneous Agency Services,7/1/2011,125,"-17,606.17",Revenue,SOUTHPARK RESIDENTIAL HOME
Adult Social Care,Older People 65&Over inc OP-MH,OP West - Residential Care Ext,Third Party Payments,Private Contractors,Miscellaneous Agency Services,7/1/2011,126,"19,418.57",Revenue,SOUTHPARK RESIDENTIAL HOME
Adult Social Care,Older People 65&Over inc OP-MH,OP West - Residential Care Ext,Third Party Payments,Private Contractors,Miscellaneous Agency Services,7/1/2011,127,"2,000.00",Revenue,SOUTHPARK RESIDENTIAL HOME
Adult Social Care,Older People 65&Over inc OP-MH,OP West - Nursing Care,Third Party Payments,Private Contractors,Miscellaneous Agency Services,7/1/2011,128,"2,400.00",Revenue,ST TERESA`S HOME FORTHE ELDER
Adult Social Care,Older People 65&Over inc OP-MH,OP West - Residential Care Ext,Third Party Payments,Private Contractors,Miscellaneous Agency Services,7/1/2011,129,"2,341.84",Revenue,ST TERESA`S HOME FORTHE ELDER
Adult Social Care,Older People 65&Over inc OP-MH,OP West - Nursing Care,Third Party Payments,Private Contractors,Miscellaneous Agency Services,7/1/2011,130,"2,199.12",Revenue,ST TERESA`S HOME FORTHE ELDER
Adult Social Care,Older People 65&Over inc OP-MH,OP West - Residential Care Ext,Third Party Payments,Private Contractors,Miscellaneous Agency Services,7/1/2011,131,"1,888.16",Revenue,ST TERESA`S HOME FORTHE ELDER
Adult Social Care,Adult u65 Mental Health Needs,MH Res Care Ext- Mitcham West,Third Party Payments,Private Contractors,Miscellaneous Agency Services,7/1/2011,132,"2,145.00",Revenue,UNIQUE LODGE
Adult Social Care,Older People 65&Over inc OP-MH,OP West - Nursing Care,Third Party Payments,Private Contractors,Miscellaneous Agency Services,7/1/2011,133,"2,312.36",Revenue,WESTMINSTER HEALTHCARE LTD
Adult Social Care,Older People 65&Over inc OP-MH,OP East -Direct Payment Scheme,Third Party Payments,Private Contractors,Direct Payments,7/1/2011,134,724.20,Revenue,REDACTED
Adult Social Care,Older People 65&Over inc OP-MH,OP East - Home Care External,Third Party Payments,Private Contractors,Miscellaneous Agency Services,7/1/2011,135,"2,520.00",Revenue,HOLISTIC COMMUNITY CARE LTD
Childrens & Education Services,Family Support Services,CS Day Care CWD,Third Party Payments,Private Contractors,Miscellaneous Agency Services,7/1/2011,136,"1,392.35",Revenue,COMPLETE CARE CENTRE
Childrens & Education Services,Family Support Services,CS Day Care CWD,Third Party Payments,Private Contractors,Miscellaneous Agency Services,7/1/2011,137,"1,392.21",Revenue,COMPLETE CARE CENTRE
Childrens & Education Services,Other Ch's & Family Services,CL Leaving Care/Supp Lodgings,Third Party Payments,Private Contractors,Private Tenant/Landlord,7/1/2011,138,695.04,Revenue,REDACTED
Adult Social Care,Asylum seekers,AS Child - Res Care (Grant),Third Party Payments,Private Contractors,Miscellaneous Agency Services,7/1/2011,139,"1,250.00",Revenue,LIVINGSTONE SUPPORTED HOUSING
Adult Social Care,Adlt u65 Learning Disabilities,LD Adult Placements - HST,Third Party Payments,Private Contractors,Accommodation Based Support,7/4/2011,140,"1,758.56",Revenue,REDACTED
Adult Social Care,Adult u65 Phys/Sensory Impair,PD EAST TEAM-Nursing,Third Party Payments,Private Contractors,Miscellaneous Agency Services,7/4/2011,141,"5,800.00",Revenue,BUPA CARE HOMES
Adult Social Care,Older People 65&Over inc OP-MH,OP West - Nursing Care,Third Party Payments,Private Contractors,Miscellaneous Agency Services,7/4/2011,142,"3,200.00",Revenue,HEADINGTON NURSING HOME
Adult Social Care,Adlt u65 Learning Disabilities,LD Nursing Care,Third Party Payments,Private Contractors,Miscellaneous Agency Services,7/4/2011,143,"5,405.68",Revenue,HIGH HURLANDS HOMES
Adult Social Care,Older People 65&Over inc OP-MH,OP Hosp - Residential Care Ext,Third Party Payments,Private Contractors,Miscellaneous Agency Services,7/4/2011,144,"2,890.80",Revenue,NEWENT HOUSE
Adult Social Care,Older People 65&Over inc OP-MH,OP West - Residential Care Ext,Third Party Payments,Private Contractors,Miscellaneous Agency Services,7/4/2011,145,"1,784.20",Revenue,SOUTHPARK RESIDENTIAL HOME
Adult Social Care,Older People 65&Over inc OP-MH,OP Hosp - Residential Care Ext,Third Party Payments,Private Contractors,Miscellaneous Agency Services,7/4/2011,146,"1,920.00",Revenue,LITTLE SISTERS OF THE POOR
Adult Social Care,Older People 65&Over inc OP-MH,OP West - Nursing Care,Third Party Payments,Private Contractors,Miscellaneous Agency Services,7/6/2011,147,"3,045.00",Revenue,TRINITY COURT NURSING HOME
Adult Social Care,Adult u65 Mental Health Needs,MH Res Care Ext- Mitcham West,Third Party Payments,Private Contractors,Miscellaneous Agency Services,7/6/2011,148,"2,216.50",Revenue,UNIQUE LODGE
Adult Social Care,Older People 65&Over inc OP-MH,OP West - Nursing Care,Third Party Payments,Private Contractors,Miscellaneous Agency Services,7/4/2011,149,"2,552.88",Revenue,WESTMINSTER HEALTHCARE LTD
Adult Social Care,Older People 65&Over inc OP-MH,OP West - Residential Care Ext,Third Party Payments,Private Contractors,Miscellaneous Agency Services,7/4/2011,150,"2,552.88",Revenue,WESTMINSTER HEALTHCARE LTD
Adult Social Care,Older People 65&Over inc OP-MH,OP West - Nursing Care,Third Party Payments,Private Contractors,Miscellaneous Agency Services,7/4/2011,151,"2,996.00",Revenue,WIMBLEDON GUILD
Adult Social Care,Older People 65&Over inc OP-MH,OP R/Park-Residential Care Ext,Third Party Payments,Private Contractors,Miscellaneous Agency Services,7/4/2011,152,730.20,Revenue,WIMBLEDON GUILD
Adult Social Care,Older People 65&Over inc OP-MH,OP West - Residential Care Ext,Third Party Payments,Private Contractors,Miscellaneous Agency Services,7/4/2011,153,"1,314.36",Revenue,WIMBLEDON GUILD
Adult Social Care,Older People 65&Over inc OP-MH,OP West - Nursing Care,Third Party Payments,Private Contractors,Miscellaneous Agency Services,7/4/2011,154,"2,864.64",Revenue,WIMBLEDON GUILD
Adult Social Care,Older People 65&Over inc OP-MH,OP West - Nursing Care,Third Party Payments,Private Contractors,Miscellaneous Agency Services,7/4/2011,155,"3,085.60",Revenue,WIMBLEDON GUILD
Adult Social Care,Adlt u65 Learning Disabilities,LD Day Care Agency,Third Party Payments,Private Contractors,Miscellaneous Agency Services,7/4/2011,156,618.20,Revenue,HIGH HURLANDS HOMES
Childrens & Education Services,Other Ch's & Family Services,CL Leaving Care/Supp Lodgings,Third Party Payments,Private Contractors,Private Tenant/Landlord,7/4/2011,157,"4,800.00",Revenue,CJM PROPERTY INVESTMENT LTD
Childrens & Education Services,Other Ch's & Family Services,CL Leaving Care/Supp Lodgings,Third Party Payments,Private Contractors,Supported Lodgings,7/4/2011,158,600.00,Revenue,REDACTED
Adult Social Care,Older People 65&Over inc OP-MH,OP East -Direct Payment Scheme,Third Party Payments,Private Contractors,Direct Payments,7/4/2011,159,"3,386.68",Revenue,REDACTED
Adult Social Care,Adult u65 Phys/Sensory Impair,PD WEST TEAM-Direct Payment,Third Party Payments,Private Contractors,Direct Payments,7/4/2011,160,565.36,Revenue,REDACTED
Adult Social Care,Adult u65 Phys/Sensory Impair,PD EAST TEAM-Other Services,Third Party Payments,Private Contractors,Miscellaneous Agency Services,7/4/2011,161,"1,107.71",Revenue,JOHN JOSEPH PROPERTY SERVICES
Adult Social Care,Adlt u65 Learning Disabilities,LD Direct Payment Scheme,Third Party Payments,Private Contractors,Direct Payments,7/4/2011,162,683.56,Revenue,REDACTED
Adult Social Care,Older People 65&Over inc OP-MH,OP West -Direct Payment Scheme,Third Party Payments,Private Contractors,Direct Payments,7/4/2011,163,692.24,Revenue,REDACTED
Adult Social Care,Older People 65&Over inc OP-MH,OP West -Direct Payment Scheme,Third Party Payments,Private Contractors,Direct Payments,7/4/2011,164,"1,295.04",Revenue,REDACTED
Adult Social Care,Adult u65 Phys/Sensory Impair,PD WEST TEAM-Direct Payment,Third Party Payments,Private Contractors,Direct Payments,7/4/2011,165,776.92,Revenue,REDACTED
Adult Social Care,Adult u65 Phys/Sensory Impair,PD WEST TEAM-Direct Payment,Third Party Payments,Private Contractors,Direct Payments,7/4/2011,166,"2,982.00",Revenue,REDACTED
Adult Social Care,Adult u65 Phys/Sensory Impair,PD WEST TEAM-Direct Payment,Third Party Payments,Private Contractors,Direct Payments,7/4/2011,167,"1,661.40",Revenue,REDACTED
Adult Social Care,Adult u65 Phys/Sensory Impair,PD WEST TEAM-Direct Payment,Third Party Payments,Private Contractors,Direct Payments,7/4/2011,168,781.12,Revenue,REDACTED
Adult Social Care,Older People 65&Over inc OP-MH,OP West -Direct Payment Scheme,Third Party Payments,Private Contractors,Direct Payments,7/4/2011,169,"1,142.24",Revenue,REDACTED
Adult Social Care,Adlt u65 Learning Disabilities,LD Direct Payment Scheme,Third Party Payments,Private Contractors,Direct Payments,7/6/2011,170,724.20,Revenue,REDACTED
Adult Social Care,Adult u65 Phys/Sensory Impair,PD EAST TEAM-Direct Payment,Third Party Payments,Private Contractors,Direct Payments,7/4/2011,171,"1,491.00",Revenue,REDACTED
Adult Social Care,Adult u65 Phys/Sensory Impair,PD EAST TEAM-Direct Payment,Third Party Payments,Private Contractors,Direct Payments,7/4/2011,172,639.00,Revenue,REDACTED
Adult Social Care,Adult u65 Phys/Sensory Impair,PD WEST TEAM-Direct Payment,Third Party Payments,Private Contractors,Direct Payments,7/4/2011,173,"2,790.28",Revenue,REDACTED
Adult Social Care,Adult u65 Phys/Sensory Impair,PD WEST TEAM-Direct Payment,Third Party Payments,Private Contractors,Direct Payments,7/4/2011,174,598.16,Revenue,REDACTED
Adult Social Care,Older People 65&Over inc OP-MH,OP West -Direct Payment Scheme,Third Party Payments,Private Contractors,Direct Payments,7/4/2011,175,"1,219.56",Revenue,REDACTED
Adult Social Care,Older People 65&Over inc OP-MH,OP Hosp -Direct Payment Scheme,Third Party Payments,Private Contractors,Direct Payments,7/4/2011,176,873.28,Revenue,REDACTED
Adult Social Care,Adlt u65 Learning Disabilities,LD Direct Payment Scheme,Third Party Payments,Private Contractors,Direct Payments,7/4/2011,177,"1,170.20",Revenue,REDACTED
Adult Social Care,Older People 65&Over inc OP-MH,OP West -Direct Payment Scheme,Third Party Payments,Private Contractors,Direct Payments,7/4/2011,178,"1,684.48",Revenue,REDACTED
Adult Social Care,Older People 65&Over inc OP-MH,OP East -Direct Payment Scheme,Third Party Payments,Private Contractors,Direct Payments,7/4/2011,179,502.56,Revenue,REDACTED
Adult Social Care,Older People 65&Over inc OP-MH,OP East -Direct Payment Scheme,Third Party Payments,Private Contractors,Direct Payments,7/4/2011,180,774.80,Revenue,REDACTED
Adult Social Care,Older People 65&Over inc OP-MH,OP West -Direct Payment Scheme,Third Party Payments,Private Contractors,Direct Payments,7/4/2011,181,795.12,Revenue,REDACTED
Adult Social Care,Adlt u65 Learning Disabilities,LD Direct Payment Scheme,Third Party Payments,Private Contractors,Direct Payments,7/4/2011,182,504.00,Revenue,REDACTED
Adult Social Care,Adult u65 Phys/Sensory Impair,PD WEST TEAM-Direct Payment,Third Party Payments,Private Contractors,Direct Payments,7/4/2011,183,"1,778.56",Revenue,REDACTED
Adult Social Care,Older People 65&Over inc OP-MH,OP East -Direct Payment Scheme,Third Party Payments,Private Contractors,Direct Payments,7/4/2011,184,"1,606.64",Revenue,REDACTED
Adult Social Care,Adult u65 Phys/Sensory Impair,PD WEST TEAM-Direct Payment,Third Party Payments,Private Contractors,Direct Payments,7/4/2011,185,665.40,Revenue,REDACTED
Adult Social Care,Adult u65 Phys/Sensory Impair,PD EAST TEAM-Direct Payment,Third Party Payments,Private Contractors,Direct Payments,7/4/2011,186,724.20,Revenue,REDACTED
Adult Social Care,Other Adult Services,Fixed & Variable Client Paymen,Third Party Payments,Private Contractors,Miscellaneous Agency Services,7/4/2011,187,"37,839.24",Revenue,ABILITY HOUSING ASSOCIATION
Adult Social Care,Other Adult Services,Fixed & Variable Client Paymen,Third Party Payments,Private Contractors,Miscellaneous Agency Services,7/4/2011,188,"3,026.01",Revenue,ANCHOR SP PAYMENT FROM SEP'03
Adult Social Care,Other Adult Services,Fixed & Variable Client Paymen,Third Party Payments,Private Contractors,Miscellaneous Agency Services,7/4/2011,189,"1,522.50",Revenue,ASIAN ELDERLY GROUP OF MERTON
Adult Social Care,Other Adult Services,Fixed & Variable Client Paymen,Third Party Payments,Private Contractors,Miscellaneous Agency Services,7/4/2011,190,"1,413.96",Revenue,CENTRAL & CECIL HOUSING TRUST
Adult Social Care,Other Adult Services,Fixed & Variable Client Paymen,Third Party Payments,Private Contractors,Miscellaneous Agency Services,7/4/2011,191,"1,973.30",Revenue,CROYDON CHURCHES HOUSING ASSOC
Adult Social Care,Other Adult Services,Fixed & Variable Client Paymen,Third Party Payments,Private Contractors,Miscellaneous Agency Services,7/4/2011,192,"10,150.58",Revenue,EQUINOX
Adult Social Care,Other Adult Services,Fixed & Variable Client Paymen,Third Party Payments,Private Contractors,Miscellaneous Agency Services,7/4/2011,193,"12,458.43",Revenue,FAMILY HOUSING ASSOCIATION
Adult Social Care,Other Adult Services,Fixed & Variable Client Paymen,Third Party Payments,Private Contractors,Miscellaneous Agency Services,7/4/2011,194,"21,671.75",Revenue,GRENFELL HOUSING ASSOCIATION
Adult Social Care,Other Adult Services,Fixed & Variable Client Paymen,Third Party Payments,Private Contractors,Miscellaneous Agency Services,7/4/2011,195,823.39,Revenue,HANOVER HOUSING ASSOCIATION
Adult Social Care,Other Adult Services,Fixed & Variable Client Paymen,Third Party Payments,Private Contractors,Miscellaneous Agency Services,7/4/2011,196,"10,749.99",Revenue,HESTIA HOUSING AND SUPPORT
Adult Social Care,Other Adult Services,Fixed & Variable Client Paymen,Third Party Payments,Private Contractors,Miscellaneous Agency Services,7/4/2011,197,"1,558.40",Revenue,AMICUS HORIZON
Adult Social Care,Other Adult Services,Fixed & Variable Client Paymen,Third Party Payments,Private Contractors,Miscellaneous Agency Services,7/4/2011,198,"1,031.76",Revenue,HOUSING21
Adult Social Care,Other Adult Services,Fixed & Variable Client Paymen,Third Party Payments,Private Contractors,Miscellaneous Agency Services,7/4/2011,199,600.42,Revenue,KINGSTON CHURCHES ACTION ON HO
Adult Social Care,Other Adult Services,Fixed & Variable Client Paymen,Third Party Payments,Private Contractors,Miscellaneous Agency Services,7/4/2011,200,"12,060.41",Revenue,MERTON ACT.FOR SINGLE HOMELESS
Adult Social Care,Other Adult Services,Fixed & Variable Client Paymen,Third Party Payments,Private Contractors,Miscellaneous Agency Services,7/4/2011,201,"8,589.60",Revenue,MERTON REFUGE
Adult Social Care,Other Adult Services,Fixed & Variable Client Paymen,Third Party Payments,Private Contractors,Miscellaneous Agency Services,7/4/2011,202,"5,561.68",Revenue,MERTON PRIORY HOMES
Adult Social Care,Other Adult Services,Fixed & Variable Client Paymen,Third Party Payments,Private Contractors,Miscellaneous Agency Services,7/4/2011,203,"1,450.24",Revenue,MERTON PRIORY HOMES
Adult Social Care,Other Adult Services,Fixed & Variable Client Paymen,Third Party Payments,Private Contractors,Miscellaneous Agency Services,7/4/2011,204,"6,339.99",Revenue,METROPOLITAN SUPPORT TRUST
Adult Social Care,Other Adult Services,Fixed & Variable Client Paymen,Third Party Payments,Private Contractors,Miscellaneous Agency Services,7/4/2011,205,"5,895.51",Revenue,NOTTING HILL HOUSING
Adult Social Care,Other Adult Services,Fixed & Variable Client Paymen,Third Party Payments,Private Contractors,Miscellaneous Agency Services,7/4/2011,206,"1,398.88",Revenue,SANCTUARY CARE
Adult Social Care,Other Adult Services,Fixed & Variable Client Paymen,Third Party Payments,Private Contractors,Miscellaneous Agency Services,7/4/2011,207,"8,781.99",Revenue,SERVITE HOUSES
Adult Social Care,Other Adult Services,Fixed & Variable Client Paymen,Third Party Payments,Private Contractors,Miscellaneous Agency Services,7/4/2011,208,"26,886.55",Revenue,COMFORT CARE SERVICES (UK) LTD
Adult Social Care,Other Adult Services,Fixed & Variable Client Paymen,Third Party Payments,Private Contractors,Miscellaneous Agency Services,7/4/2011,209,584.00,Revenue,SHAFTESBURY HOUSING ASSOC.
Adult Social Care,Other Adult Services,Fixed & Variable Client Paymen,Third Party Payments,Private Contractors,Miscellaneous Agency Services,7/4/2011,210,"12,060.46",Revenue,SPEAR
Adult Social Care,Other Adult Services,Fixed & Variable Client Paymen,Third Party Payments,Private Contractors,Miscellaneous Agency Services,7/4/2011,211,"1,676.32",Revenue,REDACTED
Adult Social Care,Other Adult Services,Fixed & Variable Client Paymen,Third Party Payments,Private Contractors,Miscellaneous Agency Services,7/4/2011,212,709.45,Revenue,THRESHOLD CENTRE LTD
Adult Social Care,Other Adult Services,Fixed & Variable Client Paymen,Third Party Payments,Private Contractors,Miscellaneous Agency Services,7/4/2011,213,"17,468.60",Revenue,WANDLE HOUSING ASSOCIATION LTD
Adult Social Care,Other Adult Services,Fixed & Variable Client Paymen,Third Party Payments,Private Contractors,Miscellaneous Agency Services,7/4/2011,214,"33,899.28",Revenue,WIMBLEDON & DISTRICT YMCA
Adult Social Care,Asylum seekers,AS Child Res Care  (No Grant),Third Party Payments,Private Contractors,Private Tenant/Landlord,7/5/2011,215,600.00,Revenue,REDACTED
Adult Social Care,Older People 65&Over inc OP-MH,OP East - Residential Care Ext,Third Party Payments,Private Contractors,Miscellaneous Agency Services,7/5/2011,216,"1,884.24",Revenue,ABBEYFIELD PEABODY S.LOND.LTD
Adult Social Care,Older People 65&Over inc OP-MH,OP East - Residential Care Ext,Third Party Payments,Private Contractors,Miscellaneous Agency Services,7/5/2011,217,"1,812.40",Revenue,ABBEYFIELD PEABODY S.LOND.LTD
Adult Social Care,Older People 65&Over inc OP-MH,OP West - Residential Care Ext,Third Party Payments,Private Contractors,Miscellaneous Agency Services,7/5/2011,218,"1,904.00",Revenue,ABBEYFIELD PEABODY S.LOND.LTD
Adult Social Care,Older People 65&Over inc OP-MH,OP Hosp - Residential Care Ext,Third Party Payments,Private Contractors,Miscellaneous Agency Services,7/5/2011,219,"2,094.40",Revenue,ABBEYFIELD PEABODY S.LOND.LTD
Adult Social Care,Older People 65&Over inc OP-MH,OP West - Residential Care Ext,Third Party Payments,Private Contractors,Miscellaneous Agency Services,7/5/2011,220,"1,907.04",Revenue,ABBEYFIELD PEABODY S.LOND.LTD
Adult Social Care,Adlt u65 Learning Disabilities,LD Residential Care External,Third Party Payments,Private Contractors,Miscellaneous Agency Services,7/5/2011,221,"4,688.88",Revenue,CRAEGMOOR FACILITIES CO LTD
Adult Social Care,Adlt u65 Learning Disabilities,LD Residential Care External,Third Party Payments,Private Contractors,Miscellaneous Agency Services,7/5/2011,222,"6,400.00",Revenue,EVERGREEN PARTNERSHIP
Adult Social Care,Adlt u65 Learning Disabilities,LD Residential Care External,Third Party Payments,Private Contractors,Miscellaneous Agency Services,7/5/2011,223,"6,400.00",Revenue,EVERGREEN PARTNERSHIP
Adult Social Care,Older People 65&Over inc OP-MH,OP East - Residential Care Ext,Third Party Payments,Private Contractors,Miscellaneous Agency Services,7/5/2011,224,"1,812.40",Revenue,GRANGE COTTAGE LIMITED
Adult Social Care,Older People 65&Over inc OP-MH,OP West - Residential Care Ext,Third Party Payments,Private Contractors,Miscellaneous Agency Services,7/5/2011,225,"3,612.76",Revenue,GRANGE COTTAGE LIMITED
Adult Social Care,Adult u65 Phys/Sensory Impair,PD EAST TEAM-Residential,Third Party Payments,Private Contractors,Miscellaneous Agency Services,7/5/2011,226,"4,602.08",Revenue,GRANGE COTTAGE LIMITED
Adult Social Care,Older People 65&Over inc OP-MH,OP Hosp - Nursing Care,Third Party Payments,Private Contractors,Miscellaneous Agency Services,7/5/2011,227,"-2,174.57",Revenue,KELSTONE COURT NURSING HOME
Adult Social Care,Older People 65&Over inc OP-MH,OP West - Nursing Care,Third Party Payments,Private Contractors,Miscellaneous Agency Services,7/5/2011,228,"4,516.41",Revenue,KELSTONE COURT NURSING HOME
Adult Social Care,Adlt u65 Learning Disabilities,LD Residential Care External,Third Party Payments,Private Contractors,Miscellaneous Agency Services,7/5/2011,229,"3,406.60",Revenue,L'ARCHE
Adult Social Care,Adlt u65 Learning Disabilities,LD Residential Care External,Third Party Payments,Private Contractors,Miscellaneous Agency Services,7/5/2011,230,"3,406.60",Revenue,L'ARCHE
Adult Social Care,Adlt u65 Learning Disabilities,LD Residential Care External,Third Party Payments,Private Contractors,Miscellaneous Agency Services,7/5/2011,231,"3,406.60",Revenue,L'ARCHE
Adult Social Care,Adlt u65 Learning Disabilities,LD Residential Care External,Third Party Payments,Private Contractors,Miscellaneous Agency Services,7/5/2011,232,"3,180.44",Revenue,ODYSSEY CARE SOLUTIONS
Adult Social Care,Adlt u65 Learning Disabilities,LD Residential Care External,Third Party Payments,Private Contractors,Miscellaneous Agency Services,7/5/2011,233,"4,984.60",Revenue,ODYSSEY CARE SOLUTIONS
Adult Social Care,Adult u65 Phys/Sensory Impair,PD EAST TEAM-Other Services,Third Party Payments,Private Contractors,Miscellaneous Agency Services,7/5/2011,234,692.28,Revenue,JOHN JOSEPH PROPERTY SERVICES
Adult Social Care,Adult u65 Phys/Sensory Impair,PS Other Serv - NRTPF,Third Party Payments,Private Contractors,Miscellaneous Agency Services,7/5/2011,235,692.28,Revenue,JOHN JOSEPH PROPERTY SERVICES
Adult Social Care,Adult u65 Phys/Sensory Impair,PD WEST TEAM-Direct Payment,Third Party Payments,Private Contractors,Direct Payments,7/5/2011,236,596.40,Revenue,REDACTED
Adult Social Care,Adlt u65 Learning Disabilities,LD Home Care External,Third Party Payments,Private Contractors,Miscellaneous Agency Services,7/5/2011,237,"51,252.11",Revenue,WANDLE HOUSING ASSOCIATION LTD
Adult Social Care,Older People 65&Over inc OP-MH,OP East - Carer Services,Third Party Payments,Private Contractors,Miscellaneous Agency Services,7/5/2011,238,528.57,Revenue,HOLISTIC COMMUNITY CARE LTD
Adult Social Care,Adult u65 Phys/Sensory Impair,PD EAST TEAM-Homecare,Third Party Payments,Private Contractors,Miscellaneous Agency Services,7/5/2011,239,589.54,Revenue,HOLISTIC COMMUNITY CARE LTD
Adult Social Care,Adult u65 Phys/Sensory Impair,PS Home Care External - NRTPF,Third Party Payments,Private Contractors,Miscellaneous Agency Services,7/5/2011,240,990.46,Revenue,HOLISTIC COMMUNITY CARE LTD
Adult Social Care,Older People 65&Over inc OP-MH,OP West - Carer Services,Third Party Payments,Private Contractors,Miscellaneous Agency Services,7/5/2011,241,"1,397.75",Revenue,HOLISTIC COMMUNITY CARE LTD
Adult Social Care,Adult u65 Phys/Sensory Impair,PD WEST TEAM-Homecare,Third Party Payments,Private Contractors,Miscellaneous Agency Services,7/5/2011,242,"1,663.87",Revenue,HOLISTIC COMMUNITY CARE LTD
Adult Social Care,Older People 65&Over inc OP-MH,OP East - Home Care External,Third Party Payments,Private Contractors,Miscellaneous Agency Services,7/5/2011,243,"5,490.38",Revenue,HOLISTIC COMMUNITY CARE LTD
Adult Social Care,Older People 65&Over inc OP-MH,OP West - Home Care External,Third Party Payments,Private Contractors,Miscellaneous Agency Services,7/5/2011,244,"7,443.04",Revenue,HOLISTIC COMMUNITY CARE LTD
Adult Social Care,Adlt u65 Learning Disabilities,LD Home Care External,Third Party Payments,Private Contractors,Miscellaneous Agency Services,7/5/2011,245,812.24,Revenue,ROYAL MENCAP SOCIETY
Adult Social Care,Adlt u65 Learning Disabilities,LD Carer Services,Third Party Payments,Private Contractors,Miscellaneous Agency Services,7/5/2011,246,508.70,Revenue,SUPREME CARE SERVICES LIMITED
Adult Social Care,Adlt u65 Learning Disabilities,LD Home Care External,Third Party Payments,Private Contractors,Miscellaneous Agency Services,7/5/2011,247,539.04,Revenue,SUPREME CARE SERVICES LIMITED
Adult Social Care,Adult u65 Phys/Sensory Impair,PD WEST TEAM-Homecare,Third Party Payments,Private Contractors,Miscellaneous Agency Services,7/5/2011,248,720.56,Revenue,SUPREME CARE SERVICES LIMITED
Adult Social Care,Adult u65 Mental Health Needs,MH Home Care External-MitWest,Third Party Payments,Private Contractors,Miscellaneous Agency Services,7/5/2011,249,984.89,Revenue,SUPREME CARE SERVICES LIMITED
Adult Social Care,Adult u65 Phys/Sensory Impair,PD EAST TEAM-Homecare,Third Party Payments,Private Contractors,Miscellaneous Agency Services,7/5/2011,250,"1,021.96",Revenue,SUPREME CARE SERVICES LIMITED
Adult Social Care,Older People 65&Over inc OP-MH,OP Hosp - Home Care External,Third Party Payments,Private Contractors,Miscellaneous Agency Services,7/5/2011,251,"1,404.79",Revenue,SUPREME CARE SERVICES LIMITED
Adult Social Care,Older People 65&Over inc OP-MH,OP East - Carer Services,Third Party Payments,Private Contractors,Miscellaneous Agency Services,7/5/2011,252,"1,715.06",Revenue,SUPREME CARE SERVICES LIMITED
Adult Social Care,Older People 65&Over inc OP-MH,OP West - Carer Services,Third Party Payments,Private Contractors,Miscellaneous Agency Services,7/5/2011,253,"3,147.49",Revenue,SUPREME CARE SERVICES LIMITED
Adult Social Care,Older People 65&Over inc OP-MH,OP West - Home Care External,Third Party Payments,Private Contractors,Miscellaneous Agency Services,7/5/2011,254,"12,865.49",Revenue,SUPREME CARE SERVICES LIMITED
Adult Social Care,Older People 65&Over inc OP-MH,OP East - Home Care External,Third Party Payments,Private Contractors,Miscellaneous Agency Services,7/5/2011,255,"21,748.84",Revenue,SUPREME CARE SERVICES LIMITED
Adult Social Care,Adult u65 Mental Health Needs,HS Adult Placements,Third Party Payments,Private Contractors,Accommodation Based Support,7/5/2011,256,"2,055.04",Revenue,TRISWIT LIMITED
Childrens & Education Services,Children Looked After (24hrs+),CL Fostering Services,Supplies and Services,Services,Task Based Fostering,7/5/2011,257,"1,543.90",Revenue,REDACTED
Childrens & Education Services,Children Looked After (24hrs+),CL Fostering Services,Supplies and Services,Services,Task Based Fostering,7/5/2011,258,"1,543.90",Revenue,REDACTED
Childrens & Education Services,Children Looked After (24hrs+),CL Fostering Services,Supplies and Services,Services,Task Based Fostering,7/5/2011,259,"1,502.66",Revenue,REDACTED
Childrens & Education Services,Children Looked After (24hrs+),CL Fostering Services,Supplies and Services,Services,Task Based Fostering,7/5/2011,260,739.20,Revenue,REDACTED
Childrens & Education Services,Children Looked After (24hrs+),CL Fostering Services,Supplies and Services,Services,Task Based Fostering,7/5/2011,261,"2,300.08",Revenue,REDACTED
Childrens & Education Services,Children Looked After (24hrs+),CL Fostering Services,Supplies and Services,Services,Task Based Fostering,7/5/2011,262,"2,266.12",Revenue,REDACTED
Childrens & Education Services,Children Looked After (24hrs+),CL Fostering Services,Supplies and Services,Services,Task Based Fostering,7/5/2011,263,"1,519.64",Revenue,REDACTED
Childrens & Education Services,Children Looked After (24hrs+),CL Fostering Services,Supplies and Services,Services,Task Based Fostering,7/5/2011,264,"2,229.82",Revenue,REDACTED
Childrens & Education Services,Children Looked After (24hrs+),CL Fostering Services,Supplies and Services,Services,Task Based Fostering,7/5/2011,265,"2,324.34",Revenue,REDACTED
Childrens & Education Services,Children Looked After (24hrs+),CL Fostering Services,Supplies and Services,Services,Task Based Fostering,7/5/2011,266,"2,283.10",Revenue,REDACTED
Childrens & Education Services,Children Looked After (24hrs+),CL Fostering Services,Supplies and Services,Services,Task Based Fostering,7/5/2011,267,"1,543.90",Revenue,REDACTED
Childrens & Education Services,Children Looked After (24hrs+),CL Fostering Services,Supplies and Services,Services,Task Based Fostering,7/5/2011,268,760.00,Revenue,REDACTED
Childrens & Education Services,Children Looked After (24hrs+),CL Fostering Services,Supplies and Services,Services,Task Based Fostering,7/5/2011,269,"3,269.36",Revenue,REDACTED
Childrens & Education Services,Children Looked After (24hrs+),CL Fostering Services,Supplies and Services,Services,Task Based Fostering,7/5/2011,270,"1,560.88",Revenue,REDACTED
Childrens & Education Services,Children Looked After (24hrs+),CL Fostering Services,Supplies and Services,Services,Task Based Fostering,7/5/2011,271,"1,502.66",Revenue,REDACTED
Childrens & Education Services,Children Looked After (24hrs+),CL Fostering Services,Supplies and Services,Services,Task Based Fostering,7/5/2011,272,739.20,Revenue,REDACTED
Childrens & Education Services,Children Looked After (24hrs+),CL Fostering Services,Supplies and Services,Services,Task Based Fostering,7/5/2011,273,"1,560.88",Revenue,REDACTED
Childrens & Education Services,Children Looked After (24hrs+),CL Fostering Services,Supplies and Services,Services,Kinship Payments,7/5/2011,274,596.40,Revenue,REDACTED
Childrens & Education Services,Children Looked After (24hrs+),CL Fostering Services,Supplies and Services,Services,Task Based Fostering,7/5/2011,275,"1,543.90",Revenue,REDACTED
Childrens & Education Services,Children Looked After (24hrs+),CL Fostering Services,Supplies and Services,Services,Task Based Fostering,7/5/2011,276,"2,927.78",Revenue,REDACTED
Childrens & Education Services,Children Looked After (24hrs+),CL Fostering Services,Supplies and Services,Services,Task Based Fostering,7/5/2011,277,780.44,Revenue,REDACTED
Childrens & Education Services,Children Looked After (24hrs+),CL Fostering Services,Supplies and Services,Services,Task Based Fostering,7/5/2011,278,"2,241.86",Revenue,REDACTED
Childrens & Education Services,Children Looked After (24hrs+),CL Fostering Services,Supplies and Services,Services,Task Based Fostering,7/5/2011,279,"1,560.88",Revenue,REDACTED
Childrens & Education Services,Children Looked After (24hrs+),CL Fostering Services,Supplies and Services,Services,Task Based Fostering,7/5/2011,280,739.20,Revenue,REDACTED
Childrens & Education Services,Children Looked After (24hrs+),CL Fostering Services,Supplies and Services,Services,Task Based Fostering,7/5/2011,281,"2,241.86",Revenue,REDACTED
Childrens & Education Services,Children Looked After (24hrs+),CL Fostering Services,Supplies and Services,Services,Task Based Fostering,7/5/2011,282,"1,543.90",Revenue,REDACTED
Childrens & Education Services,Children Looked After (24hrs+),CL Fostering Services,Supplies and Services,Services,Task Based Fostering,7/5/2011,283,739.20,Revenue,REDACTED
Adult Social Care,Adlt u65 Learning Disabilities,LD Home Care External,Third Party Payments,Private Contractors,Miscellaneous Agency Services,7/6/2011,284,655.30,Revenue,BEECH HOME CARE SERVICES
Adult Social Care,Adult u65 Phys/Sensory Impair,PD WEST TEAM-Homecare,Third Party Payments,Private Contractors,Miscellaneous Agency Services,7/6/2011,285,850.00,Revenue,BELGRAVIA NURS. & CARE BUREAU
Adult Social Care,Adult u65 Phys/Sensory Impair,PD EAST TEAM-Homecare,Third Party Payments,Private Contractors,Miscellaneous Agency Services,7/6/2011,286,664.42,Revenue,BELGRAVIA NURS. & CARE BUREAU
Adult Social Care,Adult u65 Phys/Sensory Impair,PD EAST TEAM-Homecare,Third Party Payments,Private Contractors,Miscellaneous Agency Services,7/6/2011,287,"1,172.08",Revenue,BESPOKE CARE SOLUTIONS LTD
Adult Social Care,Adlt u65 Learning Disabilities,LD Day Care Agency,Third Party Payments,Private Contractors,Miscellaneous Agency Services,7/6/2011,288,648.96,Revenue,ELIZABETH FITZROY HOMES
Adult Social Care,Adlt u65 Learning Disabilities,LD Home Care External,Third Party Payments,Private Contractors,Miscellaneous Agency Services,7/6/2011,289,"2,488.48",Revenue,ELIZABETH FITZROY HOMES
Adult Social Care,Adult u65 Phys/Sensory Impair,PD EAST TEAM-Day Care,Third Party Payments,Private Contractors,Miscellaneous Agency Services,7/6/2011,290,574.00,Revenue,THE GARWOOD FOUNDATION
Adult Social Care,Adult u65 Phys/Sensory Impair,PD WEST TEAM-Day Care,Third Party Payments,Private Contractors,Miscellaneous Agency Services,7/6/2011,291,574.00,Revenue,THE GARWOOD FOUNDATION
Adult Social Care,Adlt u65 Learning Disabilities,LD Home Care External,Third Party Payments,Private Contractors,Miscellaneous Agency Services,7/6/2011,292,"2,854.50",Revenue,HUMANITIES EXCHANGE LIMITED
Adult Social Care,Adlt u65 Learning Disabilities,LD Home Care External,Third Party Payments,Private Contractors,Miscellaneous Agency Services,7/6/2011,293,"1,552.08",Revenue,HUMANITIES EXCHANGE LIMITED
Adult Social Care,Adlt u65 Learning Disabilities,LD Home Care External,Third Party Payments,Private Contractors,Miscellaneous Agency Services,7/6/2011,294,"1,220.64",Revenue,HUMANITIES EXCHANGE LIMITED
Adult Social Care,Adult u65 Mental Health Needs,MH Home Care External-MitWest,Third Party Payments,Private Contractors,Miscellaneous Agency Services,7/6/2011,295,804.80,Revenue,LIFEWAYS COMMUNITY CARE LTD
Adult Social Care,Adult u65 Phys/Sensory Impair,PD EAST TEAM-Homecare,Third Party Payments,Private Contractors,Miscellaneous Agency Services,7/6/2011,296,712.76,Revenue,LIFEWAYS COMMUNITY CARE LTD
Adult Social Care,Adlt u65 Learning Disabilities,LD Home Care External,Third Party Payments,Private Contractors,Miscellaneous Agency Services,7/6/2011,297,"8,901.00",Revenue,LIFEWAYS COMMUNITY CARE LTD
Adult Social Care,Adult u65 Phys/Sensory Impair,PD EAST TEAM-Homecare,Third Party Payments,Private Contractors,Miscellaneous Agency Services,7/6/2011,298,672.00,Revenue,REDACTED
Adult Social Care,Adult u65 Phys/Sensory Impair,PD EAST TEAM-Homecare,Third Party Payments,Private Contractors,Miscellaneous Agency Services,7/6/2011,299,"1,445.09",Revenue,SANCTUARY HOME CARE
Adult Social Care,Older People 65&Over inc OP-MH,OP East - Home Care External,Third Party Payments,Private Contractors,Miscellaneous Agency Services,7/6/2011,300,"4,333.00",Revenue,SANCTUARY HOME CARE
Adult Social Care,Older People 65&Over inc OP-MH,OP West - Home Care External,Third Party Payments,Private Contractors,Miscellaneous Agency Services,7/6/2011,301,"25,525.33",Revenue,SANCTUARY HOME CARE
Adult Social Care,Adlt u65 Learning Disabilities,LD Day Care Agency,Third Party Payments,Private Contractors,Miscellaneous Agency Services,7/6/2011,302,708.00,Revenue,WORKSHOP 305
Childrens & Education Services,Other Ch's & Family Services,CL Leaving Care/Supp Lodgings,Third Party Payments,Private Contractors,Miscellaneous Agency Services,7/6/2011,303,997.76,Revenue,CROYDON CHURCHES HOUSING ASSOC
Childrens & Education Services,Family Support Services,CS Day Care CWD,Third Party Payments,Private Contractors,Miscellaneous Agency Services,7/6/2011,304,951.35,Revenue,COMPLETE CARE CENTRE
Adult Social Care,Older People 65&Over inc OP-MH,OP East - Residential Care Ext,Third Party Payments,Private Contractors,Miscellaneous Agency Services,7/6/2011,305,"1,873.20",Revenue,BETHUNE COURT
Adult Social Care,Older People 65&Over inc OP-MH,OP East - Residential Care Ext,Third Party Payments,Private Contractors,Miscellaneous Agency Services,7/6/2011,306,"2,056.24",Revenue,BOLTERS CORNER CARE HOME
Adult Social Care,Adlt u65 Learning Disabilities,LD Residential Care External,Third Party Payments,Private Contractors,Miscellaneous Agency Services,7/6/2011,307,"2,471.60",Revenue,CANTERBURY OAST TRUST LTD
Adult Social Care,Adlt u65 Learning Disabilities,LD Residential Care External,Third Party Payments,Private Contractors,Miscellaneous Agency Services,7/6/2011,308,"10,068.80",Revenue,DANESWOOD
Adult Social Care,Adlt u65 Learning Disabilities,LD Residential Care External,Third Party Payments,Private Contractors,Miscellaneous Agency Services,7/6/2011,309,"9,744.00",Revenue,DANESWOOD
Adult Social Care,Adlt u65 Learning Disabilities,LD Residential Care External,Third Party Payments,Private Contractors,Miscellaneous Agency Services,7/6/2011,310,"10,068.80",Revenue,DANESWOOD
Adult Social Care,Adult u65 Phys/Sensory Impair,PD EAST TEAM-Residential,Third Party Payments,Private Contractors,Miscellaneous Agency Services,7/6/2011,311,"4,226.28",Revenue,THE DISABILITIES TRUST
Adult Social Care,Adult u65 Mental Health Needs,MH Res Care Ext- Mitcham West,Third Party Payments,Private Contractors,Miscellaneous Agency Services,7/6/2011,312,"1,497.04",Revenue,ENNIS REST HOME
Adult Social Care,Adult u65 Mental Health Needs,MH ResidentialCare Ext-Morden,Third Party Payments,Private Contractors,Miscellaneous Agency Services,7/6/2011,313,"1,763.16",Revenue,ENNIS REST HOME
Adult Social Care,Older People 65&Over inc OP-MH,OP East - Residential Care Ext,Third Party Payments,Private Contractors,Miscellaneous Agency Services,7/6/2011,314,"1,526.60",Revenue,FAIRFIELDS HOUSE LTD
Adult Social Care,Older People 65&Over inc OP-MH,OP Hosp - Nursing Care,Third Party Payments,Private Contractors,Miscellaneous Agency Services,7/6/2011,315,"2,341.84",Revenue,HOME CLOSE
Adult Social Care,Older People 65&Over inc OP-MH,OP Hosp - Residential Care Ext,Third Party Payments,Private Contractors,Miscellaneous Agency Services,7/6/2011,316,"1,800.00",Revenue,REDACTED
Adult Social Care,Older People 65&Over inc OP-MH,OP West - Residential Care Ext,Customer and client receipts,Charges,Miscellaneous Charges X,7/6/2011,317,"-1,113.60",Revenue,LINK HOUSE
Adult Social Care,Older People 65&Over inc OP-MH,OP West - Nursing Care,Customer and client receipts,Charges,Bd&Acc-contrib coll by home X,7/6/2011,318,-635.68,Revenue,LINK HOUSE
Adult Social Care,Older People 65&Over inc OP-MH,OP East - Residential Care Ext,Third Party Payments,Private Contractors,Miscellaneous Agency Services,7/6/2011,319,"6,853.52",Revenue,LINK HOUSE
Adult Social Care,Older People 65&Over inc OP-MH,OP Hosp - Residential Care Ext,Third Party Payments,Private Contractors,Miscellaneous Agency Services,7/6/2011,320,"7,865.44",Revenue,LINK HOUSE
Adult Social Care,Older People 65&Over inc OP-MH,OP East - Nursing Care,Third Party Payments,Private Contractors,Miscellaneous Agency Services,7/6/2011,321,"14,314.35",Revenue,LINK HOUSE
Adult Social Care,Older People 65&Over inc OP-MH,OP West - Nursing Care,Third Party Payments,Private Contractors,Miscellaneous Agency Services,7/6/2011,322,"21,243.61",Revenue,LINK HOUSE
Adult Social Care,Older People 65&Over inc OP-MH,OP West - Residential Care Ext,Third Party Payments,Private Contractors,Miscellaneous Agency Services,7/6/2011,323,"37,814.50",Revenue,LINK HOUSE
Adult Social Care,Older People 65&Over inc OP-MH,OP West - Residential Care Ext,Third Party Payments,Private Contractors,Miscellaneous Agency Services,7/6/2011,324,"3,272.40",Revenue,LYNCROFT RESIDENTIAL HOME
Adult Social Care,Older People 65&Over inc OP-MH,OP East - Residential Care Ext,Third Party Payments,Private Contractors,Miscellaneous Agency Services,7/6/2011,325,"1,386.08",Revenue,REDACTED
Adult Social Care,Adlt u65 Learning Disabilities,LD Residential Care External,Third Party Payments,Private Contractors,Miscellaneous Agency Services,7/6/2011,326,"5,230.77",Revenue,MACINTYRE
Adult Social Care,Adlt u65 Learning Disabilities,LD Residential Care External,Third Party Payments,Private Contractors,Miscellaneous Agency Services,7/6/2011,327,"3,045.24",Revenue,MACINTYRE
Adult Social Care,Adlt u65 Learning Disabilities,LD Residential Care External,Third Party Payments,Private Contractors,Miscellaneous Agency Services,7/6/2011,328,"7,860.66",Revenue,NCYPE
Adult Social Care,Adlt u65 Learning Disabilities,LD Residential Care External,Third Party Payments,Private Contractors,Miscellaneous Agency Services,7/6/2011,329,"5,288.04",Revenue,REDACTED
Adult Social Care,Older People 65&Over inc OP-MH,OP West - Residential Care Ext,Third Party Payments,Private Contractors,Miscellaneous Agency Services,7/6/2011,330,"3,710.56",Revenue,PORTELET LODGE
Adult Social Care,Adult u65 Phys/Sensory Impair,PD EAST TEAM-Nursing,Third Party Payments,Private Contractors,Miscellaneous Agency Services,7/6/2011,331,"3,392.86",Revenue,QUEEN ALEXANDRA HOSPITAL HOME
Adult Social Care,Older People 65&Over inc OP-MH,OP Hosp - Residential Care Ext,Third Party Payments,Private Contractors,Miscellaneous Agency Services,7/6/2011,332,"2,100.00",Revenue,ROYAL CAMBRIDGE HOME
Adult Social Care,Older People 65&Over inc OP-MH,OP East - Nursing Care,Third Party Payments,Private Contractors,Miscellaneous Agency Services,7/6/2011,333,"2,255.16",Revenue,FAMILY STAR LTD
Adult Social Care,Older People 65&Over inc OP-MH,OP West - Nursing Care,Third Party Payments,Private Contractors,Miscellaneous Agency Services,7/6/2011,334,"2,314.20",Revenue,FAMILY STAR LTD
Adult Social Care,Adult u65 Mental Health Needs,MH ResidentialCare Ext - Wim,Third Party Payments,Private Contractors,Miscellaneous Agency Services,7/6/2011,335,"6,500.00",Revenue,SIGNHEALTH
Adult Social Care,Older People 65&Over inc OP-MH,OP West - Nursing Care,Third Party Payments,Private Contractors,Miscellaneous Agency Services,7/6/2011,336,"2,509.20",Revenue,THE CROFT NURSING HOME
Adult Social Care,Adult u65 Phys/Sensory Impair,PD WEST TEAM-Residential Care,Third Party Payments,Private Contractors,Miscellaneous Agency Services,7/6/2011,337,595.00,Revenue,VITALISE
Adult Social Care,Older People 65&Over inc OP-MH,OP West - Residential Care Ext,Third Party Payments,Private Contractors,Miscellaneous Agency Services,7/6/2011,338,985.00,Revenue,VITALISE
Adult Social Care,Older People 65&Over inc OP-MH,OP East - Residential Care Ext,Third Party Payments,Private Contractors,Miscellaneous Agency Services,7/6/2011,339,"8,790.26",Revenue,LINK HOUSE
Adult Social Care,Adlt u65 Learning Disabilities,LD AdultPlacementCont,Third Party Payments,Private Contractors,Accommodation Based Support,7/6/2011,340,"1,071.52",Revenue,REDACTED
Adult Social Care,Adlt u65 Learning Disabilities,LD AdultPlacementCont,Third Party Payments,Private Contractors,Accommodation Based Support,7/7/2011,341,606.40,Revenue,REDACTED
Adult Social Care,Adult u65 Mental Health Needs,HS Adult Placements,Third Party Payments,Private Contractors,Accommodation Based Support,7/7/2011,342,"1,167.60",Revenue,REDACTED
Adult Social Care,Adult u65 Mental Health Needs,HS Adult Placements,Third Party Payments,Private Contractors,Accommodation Based Support,7/7/2011,343,"1,432.76",Revenue,REDACTED
Adult Social Care,Adult u65 Mental Health Needs,MH Adult Placement Cont-Morden,Third Party Payments,Private Contractors,Accommodation Based Support,7/7/2011,344,848.96,Revenue,EL-SHADDAI
Adult Social Care,Adult u65 Mental Health Needs,MH Adult PlacementCont-MitWest,Third Party Payments,Private Contractors,Accommodation Based Support,7/7/2011,345,848.96,Revenue,EL-SHADDAI
Adult Social Care,Older People 65&Over inc OP-MH,OP Hosp - Nursing Care,Customer and client receipts,Charges,Bd&Acc-contrib coll by home X,7/7/2011,346,"-7,237.76",Revenue,AVONMEAD NURSING HOME
Adult Social Care,Older People 65&Over inc OP-MH,OP Hosp - Residential Care Ext,Customer and client receipts,Charges,Bd&Acc-contrib coll by home X,7/7/2011,347,"-4,679.72",Revenue,AVONMEAD NURSING HOME
Adult Social Care,Older People 65&Over inc OP-MH,OP Hosp - Residential Care Ext,Third Party Payments,Private Contractors,Miscellaneous Agency Services,7/7/2011,348,"1,836.48",Revenue,AVONMEAD NURSING HOME
Adult Social Care,Older People 65&Over inc OP-MH,OP Hosp - Nursing Care,Third Party Payments,Private Contractors,Miscellaneous Agency Services,7/7/2011,349,"14,238.78",Revenue,AVONMEAD NURSING HOME
Adult Social Care,Older People 65&Over inc OP-MH,OP Hosp - Nursing Care,Customer and client receipts,Charges,Bd&Acc-contrib coll by home X,7/7/2011,350,-989.50,Revenue,AVONMEAD NURSING HOME
Adult Social Care,Older People 65&Over inc OP-MH,OP Hosp - Nursing Care,Third Party Payments,Private Contractors,Miscellaneous Agency Services,7/7/2011,351,"1,950.20",Revenue,AVONMEAD NURSING HOME
Adult Social Care,Older People 65&Over inc OP-MH,OP Hosp - Nursing Care,Customer and client receipts,Charges,Bd&Acc-contrib coll by home X,7/7/2011,352,"-1,224.92",Revenue,AVONMEAD NURSING HOME
Adult Social Care,Older People 65&Over inc OP-MH,OP Hosp - Nursing Care,Third Party Payments,Private Contractors,Miscellaneous Agency Services,7/7/2011,353,"2,374.16",Revenue,AVONMEAD NURSING HOME
Adult Social Care,Older People 65&Over inc OP-MH,OP East - Residential Care Ext,Third Party Payments,Private Contractors,Miscellaneous Agency Services,7/8/2011,354,"1,767.08",Revenue,CENTRAL & CECIL
Adult Social Care,Adult u65 Phys/Sensory Impair,PD WEST TEAM-Nursing,Customer and client receipts,Charges,Miscellaneous Charges X,7/7/2011,355,-786.00,Revenue,REDACTED
Adult Social Care,Adult u65 Phys/Sensory Impair,PD WEST TEAM-Nursing,Third Party Payments,Private Contractors,Miscellaneous Agency Services,7/7/2011,356,"4,254.28",Revenue,REDACTED
Adult Social Care,Adlt u65 Learning Disabilities,LD Residential Care External,Third Party Payments,Private Contractors,Miscellaneous Agency Services,7/7/2011,357,"2,000.00",Revenue,LINK HOUSE
Adult Social Care,Older People 65&Over inc OP-MH,OP West - Residential Care Ext,Third Party Payments,Private Contractors,Miscellaneous Agency Services,7/7/2011,358,"2,730.00",Revenue,LINK HOUSE
Adult Social Care,Older People 65&Over inc OP-MH,OP Hosp - Residential Care Ext,Third Party Payments,Private Contractors,Miscellaneous Agency Services,7/7/2011,359,"2,000.00",Revenue,LINK HOUSE
Adult Social Care,Older People 65&Over inc OP-MH,OP Hosp - Residential Care Ext,Third Party Payments,Private Contractors,Miscellaneous Agency Services,7/8/2011,360,"-5,012.09",Revenue,NIGHTINGALE HOUSE
Adult Social Care,Older People 65&Over inc OP-MH,OP West - Residential Care Ext,Third Party Payments,Private Contractors,Miscellaneous Agency Services,7/8/2011,361,"7,482.84",Revenue,NIGHTINGALE HOUSE
Adult Social Care,Older People 65&Over inc OP-MH,OP East - Nursing Care,Customer and client receipts,Charges,Miscellaneous Charges X,7/8/2011,362,-543.50,Revenue,NIGHTINGALE HOUSE
Adult Social Care,Older People 65&Over inc OP-MH,OP East - Nursing Care,Third Party Payments,Private Contractors,Miscellaneous Agency Services,7/8/2011,363,"3,025.30",Revenue,NIGHTINGALE HOUSE
Adult Social Care,Older People 65&Over inc OP-MH,OP West - Residential Care Ext,Third Party Payments,Private Contractors,Miscellaneous Agency Services,7/8/2011,364,"1,976.60",Revenue,NIGHTINGALE HOUSE
Adult Social Care,Older People 65&Over inc OP-MH,OP East - Nursing Care,Third Party Payments,Private Contractors,Miscellaneous Agency Services,7/8/2011,365,"2,420.24",Revenue,NIGHTINGALE HOUSE
Adult Social Care,Older People 65&Over inc OP-MH,OP West - Nursing Care,Third Party Payments,Private Contractors,Miscellaneous Agency Services,7/8/2011,366,"2,173.96",Revenue,THE WHITE HOUSE NURSING HOME
Adult Social Care,Older People 65&Over inc OP-MH,OP West - Nursing Care,Third Party Payments,Private Contractors,Miscellaneous Agency Services,7/8/2011,367,"2,233.00",Revenue,THE WHITE HOUSE NURSING HOME
Adult Social Care,Older People 65&Over inc OP-MH,OP East - Residential Care Ext,Third Party Payments,Private Contractors,Miscellaneous Agency Services,7/7/2011,368,"2,000.00",Revenue,WOODLANDS
Adult Social Care,Older People 65&Over inc OP-MH,OP West - Residential Care Ext,Third Party Payments,Private Contractors,Miscellaneous Agency Services,7/7/2011,369,"2,000.00",Revenue,WOODLANDS
Adult Social Care,Older People 65&Over inc OP-MH,OP West - Residential Care Ext,Third Party Payments,Private Contractors,Miscellaneous Agency Services,7/7/2011,370,"2,044.56",Revenue,WOODLANDS
Adult Social Care,Older People 65&Over inc OP-MH,OP East - Nursing Care,Third Party Payments,Private Contractors,Miscellaneous Agency Services,7/7/2011,371,"2,552.88",Revenue,WOODLANDS
Adult Social Care,Older People 65&Over inc OP-MH,OP Hosp - Residential Care Ext,Third Party Payments,Private Contractors,Miscellaneous Agency Services,7/7/2011,372,"2,200.00",Revenue,WOODLANDS
Childrens & Education Services,Family Support Services,CS Referral & Assessment Sec17,Transfer Payments,Adult Soc Servs Clients,Childr Act 1989 S17,7/7/2011,373,"8,920.00",Revenue,THE NEW LEVEL OF LIFE
Adult Social Care,Adult u65 Mental Health Needs,MH Home Care External-MitWest,Third Party Payments,Private Contractors,Miscellaneous Agency Services,7/7/2011,374,526.32,Revenue,ANCHOR CARE
Adult Social Care,Older People 65&Over inc OP-MH,OP Hosp - Home Care External,Third Party Payments,Private Contractors,Miscellaneous Agency Services,7/7/2011,375,812.58,Revenue,ANCHOR CARE
Adult Social Care,Adult u65 Phys/Sensory Impair,PD EAST TEAM-Homecare,Third Party Payments,Private Contractors,Miscellaneous Agency Services,7/7/2011,376,"1,594.54",Revenue,ANCHOR CARE
Adult Social Care,Older People 65&Over inc OP-MH,OP East - Carer Services,Third Party Payments,Private Contractors,Miscellaneous Agency Services,7/7/2011,377,"1,641.23",Revenue,ANCHOR CARE
Adult Social Care,Adult u65 Phys/Sensory Impair,PD WEST TEAM-Homecare,Third Party Payments,Private Contractors,Miscellaneous Agency Services,7/7/2011,378,"1,774.92",Revenue,ANCHOR CARE
Adult Social Care,Older People 65&Over inc OP-MH,OP West - Home Care External,Third Party Payments,Private Contractors,Miscellaneous Agency Services,7/7/2011,379,"14,760.39",Revenue,ANCHOR CARE
Adult Social Care,Older People 65&Over inc OP-MH,OP East - Home Care External,Third Party Payments,Private Contractors,Miscellaneous Agency Services,7/7/2011,380,"21,757.25",Revenue,ANCHOR CARE
Adult Social Care,Adult u65 Phys/Sensory Impair,PD WEST TEAM-Homecare,Third Party Payments,Private Contractors,Miscellaneous Agency Services,7/7/2011,381,"1,004.48",Revenue,GOLDSBOROUGH HOMECARE
Adult Social Care,Older People 65&Over inc OP-MH,OP West - Carer Services,Third Party Payments,Private Contractors,Miscellaneous Agency Services,7/7/2011,382,"1,712.13",Revenue,GOLDSBOROUGH HOMECARE
Adult Social Care,Adult u65 Phys/Sensory Impair,PD EAST TEAM-Homecare,Third Party Payments,Private Contractors,Miscellaneous Agency Services,7/7/2011,383,"2,033.69",Revenue,GOLDSBOROUGH HOMECARE
Adult Social Care,Older People 65&Over inc OP-MH,OP East - Carer Services,Third Party Payments,Private Contractors,Miscellaneous Agency Services,7/7/2011,384,"2,168.88",Revenue,GOLDSBOROUGH HOMECARE
Adult Social Care,Older People 65&Over inc OP-MH,OP Hosp - Home Care External,Third Party Payments,Private Contractors,Miscellaneous Agency Services,7/7/2011,385,"2,380.86",Revenue,GOLDSBOROUGH HOMECARE
Adult Social Care,Older People 65&Over inc OP-MH,OP West - Home Care External,Third Party Payments,Private Contractors,Miscellaneous Agency Services,7/7/2011,386,"13,433.50",Revenue,GOLDSBOROUGH HOMECARE
Adult Social Care,Older People 65&Over inc OP-MH,OP East - Home Care External,Third Party Payments,Private Contractors,Miscellaneous Agency Services,7/7/2011,387,"40,065.84",Revenue,GOLDSBOROUGH HOMECARE
Adult Social Care,Adlt u65 Learning Disabilities,LD AdultPlacementCont,Third Party Payments,Private Contractors,Accommodation Based Support,7/8/2011,388,"5,850.00",Revenue,PROVIDENCE CARE UK LTD
Adult Social Care,Older People 65&Over inc OP-MH,OP East - Home Care External,Third Party Payments,Private Contractors,Miscellaneous Agency Services,7/8/2011,389,704.73,Revenue,COMPASSIONATE CARING AGENCY UK
Adult Social Care,Older People 65&Over inc OP-MH,OP West - Home Care External,Third Party Payments,Private Contractors,Miscellaneous Agency Services,7/8/2011,390,"1,327.25",Revenue,COMPASSIONATE CARING AGENCY UK
Adult Social Care,Adult u65 Phys/Sensory Impair,PD WEST TEAM-Homecare,Third Party Payments,Private Contractors,Miscellaneous Agency Services,7/8/2011,391,"1,490.88",Revenue,COMPASSIONATE CARING AGENCY UK
Adult Social Care,Adult u65 Phys/Sensory Impair,PD EAST TEAM-Homecare,Third Party Payments,Private Contractors,Miscellaneous Agency Services,7/8/2011,392,"1,727.98",Revenue,COMPASSIONATE CARING AGENCY UK
Adult Social Care,Older People 65&Over inc OP-MH,OP West - Home Care External,Third Party Payments,Private Contractors,Miscellaneous Agency Services,7/8/2011,393,"2,418.18",Revenue,COMPASSIONATE CARING AGENCY UK
Adult Social Care,Older People 65&Over inc OP-MH,OP West - Home Care External,Third Party Payments,Private Contractors,Miscellaneous Agency Services,7/8/2011,394,"2,138.79",Revenue,COMPASSIONATE CARING AGENCY UK
Adult Social Care,Older People 65&Over inc OP-MH,OP Hosp - Home Care External,Third Party Payments,Private Contractors,Miscellaneous Agency Services,7/8/2011,395,"1,305.70",Revenue,COMPASSIONATE CARING AGENCY UK
Adult Social Care,Older People 65&Over inc OP-MH,OP East - Home Care External,Third Party Payments,Private Contractors,Miscellaneous Agency Services,7/8/2011,396,576.26,Revenue,COMPASSIONATE CARING AGENCY UK
Adult Social Care,Older People 65&Over inc OP-MH,OP East - Home Care External,Third Party Payments,Private Contractors,Miscellaneous Agency Services,7/8/2011,397,"1,956.76",Revenue,COMPASSIONATE CARING AGENCY UK
Adult Social Care,Adult u65 Phys/Sensory Impair,PD EAST TEAM-Homecare,Third Party Payments,Private Contractors,Miscellaneous Agency Services,7/8/2011,398,959.63,Revenue,COMPASSIONATE CARING AGENCY UK
Adult Social Care,Adult u65 Phys/Sensory Impair,PD EAST TEAM-Homecare,Third Party Payments,Private Contractors,Miscellaneous Agency Services,7/8/2011,399,"2,076.67",Revenue,COMPASSIONATE CARING AGENCY UK
Adult Social Care,Older People 65&Over inc OP-MH,OP West - Home Care External,Third Party Payments,Private Contractors,Miscellaneous Agency Services,7/8/2011,400,"2,034.30",Revenue,COMPASSIONATE CARING AGENCY UK
Adult Social Care,Older People 65&Over inc OP-MH,OP East - Home Care External,Third Party Payments,Private Contractors,Miscellaneous Agency Services,7/8/2011,401,"1,808.54",Revenue,COMPASSIONATE CARING AGENCY UK
Adult Social Care,Older People 65&Over inc OP-MH,OP East - Home Care External,Third Party Payments,Private Contractors,Miscellaneous Agency Services,7/8/2011,402,"2,418.24",Revenue,COMPASSIONATE CARING AGENCY UK
Adult Social Care,Adult u65 Phys/Sensory Impair,PD EAST TEAM-Homecare,Third Party Payments,Private Contractors,Miscellaneous Agency Services,7/8/2011,403,623.41,Revenue,ENARA COMMUNITY CARE
Adult Social Care,Older People 65&Over inc OP-MH,OP East - Carer Services,Third Party Payments,Private Contractors,Miscellaneous Agency Services,7/8/2011,404,655.04,Revenue,ENARA COMMUNITY CARE
Adult Social Care,Adult u65 Phys/Sensory Impair,PD WEST TEAM-Homecare,Third Party Payments,Private Contractors,Miscellaneous Agency Services,7/8/2011,405,"1,003.62",Revenue,ENARA COMMUNITY CARE
Adult Social Care,Older People 65&Over inc OP-MH,OP West - Home Care External,Third Party Payments,Private Contractors,Miscellaneous Agency Services,7/8/2011,406,"8,266.10",Revenue,ENARA COMMUNITY CARE
Adult Social Care,Older People 65&Over inc OP-MH,OP East - Home Care External,Third Party Payments,Private Contractors,Miscellaneous Agency Services,7/8/2011,407,"9,184.10",Revenue,ENARA COMMUNITY CARE
Adult Social Care,Older People 65&Over inc OP-MH,OP West - Daycare,Third Party Payments,Private Contractors,Miscellaneous Agency Services,7/8/2011,408,740.62,Revenue,ENTERPRISE CARE SUPPORT LTD
Adult Social Care,Adult u65 Mental Health Needs,MH Day Care - Morden,Third Party Payments,Private Contractors,Miscellaneous Agency Services,7/8/2011,409,623.68,Revenue,ENTERPRISE CARE SUPPORT LTD
Adult Social Care,Older People 65&Over inc OP-MH,OP East - Daycare,Third Party Payments,Private Contractors,Miscellaneous Agency Services,7/8/2011,410,740.62,Revenue,ENTERPRISE CARE SUPPORT LTD
Adult Social Care,Older People 65&Over inc OP-MH,OP East - Daycare,Third Party Payments,Private Contractors,Miscellaneous Agency Services,7/8/2011,411,740.62,Revenue,ENTERPRISE CARE SUPPORT LTD
Adult Social Care,Older People 65&Over inc OP-MH,OP East - Home Care External,Third Party Payments,Private Contractors,Miscellaneous Agency Services,7/8/2011,412,630.00,Revenue,ENTERPRISE CARE SUPPORT LTD
Adult Social Care,Older People 65&Over inc OP-MH,OP East - Home Care External,Third Party Payments,Private Contractors,Miscellaneous Agency Services,7/8/2011,413,689.00,Revenue,SYNERGY PERSONNEL SOLUTIONS LT
Adult Social Care,Adlt u65 Learning Disabilities,LD Residential Care External,Third Party Payments,Private Contractors,Miscellaneous Agency Services,7/8/2011,414,"3,798.04",Revenue,BRIGSTOCK HOUSE
Adult Social Care,Older People 65&Over inc OP-MH,OP East - Nursing Care,Third Party Payments,Private Contractors,Miscellaneous Agency Services,7/8/2011,415,"2,714.70",Revenue,CARE UK
Adult Social Care,Older People 65&Over inc OP-MH,OP Hosp - Nursing Care,Third Party Payments,Private Contractors,Miscellaneous Agency Services,7/20/2011,416,"2,341.84",Revenue,REDACTED
Adult Social Care,Older People 65&Over inc OP-MH,OP Hosp - Nursing Care,Third Party Payments,Private Contractors,Miscellaneous Agency Services,7/8/2011,417,"2,341.84",Revenue,REDACTED
Adult Social Care,Older People 65&Over inc OP-MH,OP East - Nursing Care,Third Party Payments,Private Contractors,Miscellaneous Agency Services,7/8/2011,418,"2,221.84",Revenue,REDACTED
Adult Social Care,Adlt u65 Learning Disabilities,LD Residential Care External,Third Party Payments,Private Contractors,Miscellaneous Agency Services,7/8/2011,419,"4,113.72",Revenue,ESTHER CARE HOMES LIMITED
Adult Social Care,Adult u65 Mental Health Needs,MH ResidentialCare Ext - Wim,Third Party Payments,Private Contractors,Miscellaneous Agency Services,7/8/2011,420,"3,171.08",Revenue,MENTAL HEALTH CARE (UK) LTD
Adult Social Care,Older People 65&Over inc OP-MH,OP West - Residential Care Ext,Third Party Payments,Private Contractors,Miscellaneous Agency Services,7/8/2011,421,"1,692.00",Revenue,METHODIST HOMES FOR THE AGED
Adult Social Care,Adlt u65 Learning Disabilities,LD Residential Care External,Third Party Payments,Private Contractors,Miscellaneous Agency Services,7/8/2011,422,"4,000.00",Revenue,PROVIDENCE CARE UK LTD
Adult Social Care,Adlt u65 Learning Disabilities,LD Residential Care External,Third Party Payments,Private Contractors,Miscellaneous Agency Services,7/8/2011,423,"29,881.60",Revenue,ST LUKE'S HOSPITAL- OLD LEIGH
Adult Social Care,Adlt u65 Learning Disabilities,LD Residential Care External,Third Party Payments,Private Contractors,Miscellaneous Agency Services,7/8/2011,424,"18,250.00",Revenue,ST LUKE'S HOSPITAL- OLD LEIGH
Adult Social Care,Older People 65&Over inc OP-MH,OP East - Residential Care Ext,Third Party Payments,Private Contractors,Miscellaneous Agency Services,7/8/2011,425,"1,812.40",Revenue,ST MARY'S LODGE
Adult Social Care,Older People 65&Over inc OP-MH,OP East - Residential Care Ext,Third Party Payments,Private Contractors,Miscellaneous Agency Services,7/8/2011,426,"1,812.40",Revenue,ST MARY'S LODGE
Adult Social Care,Older People 65&Over inc OP-MH,OP Hosp - Residential Care Ext,Third Party Payments,Private Contractors,Miscellaneous Agency Services,7/8/2011,427,"1,812.40",Revenue,ST MARY'S LODGE
Adult Social Care,Older People 65&Over inc OP-MH,OP Hosp - Residential Care Ext,Third Party Payments,Private Contractors,Miscellaneous Agency Services,7/8/2011,428,"1,812.40",Revenue,ST MARY'S LODGE
Adult Social Care,Older People 65&Over inc OP-MH,OP Hosp - Residential Care Ext,Third Party Payments,Private Contractors,Miscellaneous Agency Services,7/8/2011,429,"1,812.40",Revenue,ST MARY'S LODGE
Adult Social Care,Older People 65&Over inc OP-MH,OP Hosp - Residential Care Ext,Third Party Payments,Private Contractors,Miscellaneous Agency Services,7/8/2011,430,"1,812.40",Revenue,ST MARY'S LODGE
Adult Social Care,Older People 65&Over inc OP-MH,OP West - Residential Care Ext,Third Party Payments,Private Contractors,Miscellaneous Agency Services,7/8/2011,431,"1,682.94",Revenue,ST MARY'S LODGE
Adult Social Care,Older People 65&Over inc OP-MH,OP Hosp - Residential Care Ext,Third Party Payments,Private Contractors,Miscellaneous Agency Services,7/8/2011,432,"1,812.40",Revenue,ST MARY'S LODGE
Adult Social Care,Older People 65&Over inc OP-MH,OP East - Residential Care Ext,Third Party Payments,Private Contractors,Miscellaneous Agency Services,7/8/2011,433,"1,812.40",Revenue,ST MARY'S LODGE
Adult Social Care,Adlt u65 Learning Disabilities,LD Residential Care External,Third Party Payments,Private Contractors,Miscellaneous Agency Services,7/8/2011,434,"10,995.68",Revenue,AIMS CARE PARTNERSHIP
Adult Social Care,Adult u65 Mental Health Needs,MH Res Care Ext- Mitcham West,Third Party Payments,Private Contractors,Miscellaneous Agency Services,7/8/2011,435,"2,145.00",Revenue,UNIQUE LODGE
Adult Social Care,Adult u65 Mental Health Needs,MH Res Care Ext- Mitcham West,Third Party Payments,Private Contractors,Miscellaneous Agency Services,7/8/2011,436,"1,573.00",Revenue,UNIQUE LODGE
Childrens & Education Services,Children Looked After (24hrs+),CL Independent Fostering,Supplies and Services,Services,Long Term Fostering,7/8/2011,437,"3,710.92",Revenue,ETHELBERT SPECIALIST HOMES LTD
Childrens & Education Services,Other Ch's & Family Services,CL Leaving Care/Supp Lodgings,Third Party Payments,Private Contractors,Private Tenant/Landlord,7/8/2011,438,600.00,Revenue,REDACTED
Adult Social Care,Adlt u65 Learning Disabilities,LD Home Care External,Third Party Payments,Private Contractors,Miscellaneous Agency Services,7/11/2011,439,"7,649.70",Revenue,COMMUNITY HOME CARE PROVIDER
Adult Social Care,Older People 65&Over inc OP-MH,OP East - Daycare,Third Party Payments,Private Contractors,Miscellaneous Agency Services,7/11/2011,440,740.62,Revenue,ENTERPRISE CARE SUPPORT LTD
Adult Social Care,Older People 65&Over inc OP-MH,OP West - Daycare,Third Party Payments,Private Contractors,Miscellaneous Agency Services,7/11/2011,441,740.62,Revenue,ENTERPRISE CARE SUPPORT LTD
Adult Social Care,Older People 65&Over inc OP-MH,OP East - Daycare,Third Party Payments,Private Contractors,Miscellaneous Agency Services,7/11/2011,442,740.62,Revenue,ENTERPRISE CARE SUPPORT LTD
Adult Social Care,Older People 65&Over inc OP-MH,OP West - Home Care External,Third Party Payments,Private Contractors,Miscellaneous Agency Services,7/11/2011,443,"1,116.31",Revenue,HFH HOMECARE LTD
Adult Social Care,Older People 65&Over inc OP-MH,OP East - Carer Services,Third Party Payments,Private Contractors,Miscellaneous Agency Services,7/11/2011,444,"1,858.36",Revenue,HFH HOMECARE LTD
Adult Social Care,Older People 65&Over inc OP-MH,OP East - Home Care External,Third Party Payments,Private Contractors,Miscellaneous Agency Services,7/11/2011,445,"2,341.03",Revenue,HFH HOMECARE LTD
Adult Social Care,Adlt u65 Learning Disabilities,LD Home Care External,Third Party Payments,Private Contractors,Miscellaneous Agency Services,7/11/2011,446,"1,038.53",Revenue,HOUSING21
Adult Social Care,Older People 65&Over inc OP-MH,OP West - Home Care External,Third Party Payments,Private Contractors,Miscellaneous Agency Services,7/11/2011,447,"3,976.72",Revenue,HOUSING21
Adult Social Care,Older People 65&Over inc OP-MH,OP East - Home Care External,Third Party Payments,Private Contractors,Miscellaneous Agency Services,7/11/2011,448,"6,160.66",Revenue,HOUSING21
Adult Social Care,Adlt u65 Learning Disabilities,LD Home Care External,Third Party Payments,Private Contractors,Miscellaneous Agency Services,7/11/2011,449,886.24,Revenue,HOUSING21
Adult Social Care,Older People 65&Over inc OP-MH,OP West - Home Care External,Third Party Payments,Private Contractors,Miscellaneous Agency Services,7/11/2011,450,"4,829.33",Revenue,HOUSING21
Adult Social Care,Older People 65&Over inc OP-MH,OP East - Home Care External,Third Party Payments,Private Contractors,Miscellaneous Agency Services,7/11/2011,451,"5,836.30",Revenue,HOUSING21
Adult Social Care,Older People 65&Over inc OP-MH,OP West - Home Care External,Third Party Payments,Private Contractors,Miscellaneous Agency Services,7/11/2011,452,"3,389.40",Revenue,HOUSING21
Adult Social Care,Adult u65 Mental Health Needs,HS Adult Placements,Third Party Payments,Private Contractors,Accommodation Based Support,7/13/2011,453,"2,473.88",Revenue,REDACTED
Adult Social Care,Adult u65 Mental Health Needs,HS Adult Placements,Third Party Payments,Private Contractors,Accommodation Based Support,7/13/2011,454,806.20,Revenue,REDACTED
Adult Social Care,Adult u65 Mental Health Needs,MH Res Care Ext- Mitcham West,Third Party Payments,Private Contractors,Miscellaneous Agency Services,7/12/2011,455,"5,092.99",Revenue,BIBBY FACTORS SLOUGH LTD
Adult Social Care,Adult u65 Mental Health Needs,HS Adult Placements,Third Party Payments,Private Contractors,Accommodation Based Support,7/12/2011,456,973.00,Revenue,REDACTED
Adult Social Care,Adult u65 Mental Health Needs,HS Adult Placements,Third Party Payments,Private Contractors,Accommodation Based Support,7/12/2011,457,742.84,Revenue,REDACTED
Childrens & Education Services,Other Ch's & Family Services,CL Leaving Care/Supp Lodgings,Third Party Payments,Private Contractors,Private Tenant/Landlord,7/11/2011,458,930.00,Revenue,REDACTED
Adult Social Care,Adult u65 Mental Health Needs,MH Hostels/B & B - NRTPF,Third Party Payments,Private Contractors,Miscellaneous Agency Services,7/11/2011,459,"1,380.40",Revenue,ASTRA HOMES
Adult Social Care,Adult u65 Mental Health Needs,MH Hostels/B & B- Mitcham West,Third Party Payments,Private Contractors,Miscellaneous Agency Services,7/11/2011,460,"1,000.00",Revenue,ASTRA HOMES
Adult Social Care,Adult u65 Mental Health Needs,MH Hostels/ B & B - Wim,Third Party Payments,Private Contractors,Miscellaneous Agency Services,7/11/2011,461,"1,222.04",Revenue,ASTRA HOMES
Adult Social Care,Adult u65 Mental Health Needs,MH Hostels/ B & B - Wim,Third Party Payments,Private Contractors,Miscellaneous Agency Services,7/11/2011,462,763.24,Revenue,ASTRA HOMES
Adult Social Care,Adlt u65 Learning Disabilities,LD Supported Housing,Third Party Payments,Private Contractors,Miscellaneous Agency Services,7/11/2011,463,965.68,Revenue,ASTRA HOMES
Adult Social Care,Adlt u65 Learning Disabilities,LD Supported Housing,Third Party Payments,Private Contractors,Miscellaneous Agency Services,7/11/2011,464,"1,287.68",Revenue,ASTRA HOMES
Adult Social Care,Older People 65&Over inc OP-MH,OP East - Nursing Care,Third Party Payments,Private Contractors,Miscellaneous Agency Services,7/11/2011,465,"2,074.68",Revenue,BUPA CARE HOMES
Adult Social Care,Older People 65&Over inc OP-MH,OP Hosp - Residential Care Ext,Third Party Payments,Private Contractors,Miscellaneous Agency Services,7/13/2011,466,"1,920.00",Revenue,THE ELMS REST HOME LTD
Adult Social Care,Older People 65&Over inc OP-MH,OP East - Residential Care Ext,Third Party Payments,Private Contractors,Miscellaneous Agency Services,7/13/2011,467,"1,880.00",Revenue,THE ELMS REST HOME LTD
Adult Social Care,Older People 65&Over inc OP-MH,OP Hosp - Residential Care Ext,Third Party Payments,Private Contractors,Miscellaneous Agency Services,7/13/2011,468,"1,840.00",Revenue,THE ELMS REST HOME LTD
Adult Social Care,Older People 65&Over inc OP-MH,OP East - Residential Care Ext,Third Party Payments,Private Contractors,Miscellaneous Agency Services,7/13/2011,469,"1,880.00",Revenue,THE ELMS REST HOME LTD
Adult Social Care,Older People 65&Over inc OP-MH,OP Hosp - Residential Care Ext,Third Party Payments,Private Contractors,Miscellaneous Agency Services,7/11/2011,470,"3,689.53",Revenue,HARTLEY HOUSE
Adult Social Care,Adlt u65 Learning Disabilities,LD Residential Care External,Third Party Payments,Private Contractors,Miscellaneous Agency Services,7/13/2011,471,"5,931.68",Revenue,THE LEO TRUST
Adult Social Care,Adlt u65 Learning Disabilities,LD Residential Care External,Customer and client receipts,Charges,Miscellaneous Charges X,7/11/2011,472,-811.25,Revenue,THE LODGE TRUST
Adult Social Care,Adlt u65 Learning Disabilities,LD Residential Care External,Third Party Payments,Private Contractors,Miscellaneous Agency Services,7/11/2011,473,"12,024.93",Revenue,THE LODGE TRUST
Adult Social Care,Older People 65&Over inc OP-MH,OP East - Residential Care Ext,Third Party Payments,Private Contractors,Miscellaneous Agency Services,7/11/2011,474,"2,117.70",Revenue,MANOR HOUSE RESIDENTIAL HOME
Adult Social Care,Older People 65&Over inc OP-MH,OP East - Residential Care Ext,Third Party Payments,Private Contractors,Miscellaneous Agency Services,7/11/2011,475,"2,280.60",Revenue,MANOR HOUSE RESIDENTIAL HOME
Adult Social Care,Older People 65&Over inc OP-MH,OP West - Residential Care Ext,Third Party Payments,Private Contractors,Miscellaneous Agency Services,7/11/2011,476,"2,200.00",Revenue,MANOR HOUSE RESIDENTIAL HOME
Adult Social Care,Older People 65&Over inc OP-MH,OP Hosp - Residential Care Ext,Third Party Payments,Private Contractors,Miscellaneous Agency Services,7/11/2011,477,"2,080.00",Revenue,MANOR HOUSE RESIDENTIAL HOME
Adult Social Care,Older People 65&Over inc OP-MH,OP Hosp - Residential Care Ext,Third Party Payments,Private Contractors,Miscellaneous Agency Services,7/11/2011,478,"2,030.00",Revenue,MANOR HOUSE RESIDENTIAL HOME
Adult Social Care,Older People 65&Over inc OP-MH,OP East - Residential Care Ext,Third Party Payments,Private Contractors,Miscellaneous Agency Services,7/11/2011,479,"2,028.00",Revenue,MANOR HOUSE RESIDENTIAL HOME
Adult Social Care,Older People 65&Over inc OP-MH,OP Hosp - Residential Care Ext,Third Party Payments,Private Contractors,Miscellaneous Agency Services,7/11/2011,480,"2,080.00",Revenue,MANOR HOUSE RESIDENTIAL HOME
Adult Social Care,Older People 65&Over inc OP-MH,OP Hosp - Residential Care Ext,Third Party Payments,Private Contractors,Miscellaneous Agency Services,7/11/2011,481,"-1,232.50",Revenue,MANOR HOUSE RESIDENTIAL HOME
Adult Social Care,Older People 65&Over inc OP-MH,OP West - Residential Care Ext,Third Party Payments,Private Contractors,Miscellaneous Agency Services,7/11/2011,482,"1,303.71",Revenue,MANOR HOUSE RESIDENTIAL HOME
Adult Social Care,Older People 65&Over inc OP-MH,OP R/Park-Residential Care Ext,Third Party Payments,Private Contractors,Miscellaneous Agency Services,7/11/2011,483,"1,956.79",Revenue,MANOR HOUSE RESIDENTIAL HOME
Adult Social Care,Older People 65&Over inc OP-MH,OP East - Residential Care Ext,Customer and client receipts,Charges,Miscellaneous Charges X,7/11/2011,484,-721.56,Revenue,MANOR HOUSE RESIDENTIAL HOME
Adult Social Care,Older People 65&Over inc OP-MH,OP East - Residential Care Ext,Third Party Payments,Private Contractors,Miscellaneous Agency Services,7/11/2011,485,"1,675.60",Revenue,MANOR HOUSE RESIDENTIAL HOME
Adult Social Care,Adult u65 Phys/Sensory Impair,PD WEST TEAM-Nursing,Third Party Payments,Private Contractors,Miscellaneous Agency Services,7/11/2011,486,"1,923.65",Revenue,SUTTON COURT CARE CENTRE
Adult Social Care,Older People 65&Over inc OP-MH,OP East - Residential Care Ext,Third Party Payments,Private Contractors,Miscellaneous Agency Services,7/11/2011,487,"1,386.08",Revenue,EL-SHADDAI
Adult Social Care,Adlt u65 Learning Disabilities,LD Residential Care External,Third Party Payments,Private Contractors,Miscellaneous Agency Services,7/11/2011,488,"1,438.44",Revenue,EL-SHADDAI
Adult Social Care,Adlt u65 Learning Disabilities,LD Direct Payment Scheme,Third Party Payments,Private Contractors,Direct Payments,7/11/2011,489,"1,268.40",Revenue,REDACTED
Childrens & Education Services,Children Looked After (24hrs+),CL Fostering Services,Supplies and Services,Services,Task Based Fostering,7/12/2011,490,763.46,Revenue,REDACTED
Childrens & Education Services,Children Looked After (24hrs+),CL Fostering Services,Supplies and Services,Services,Task Based Fostering,7/12/2011,491,"1,543.90",Revenue,REDACTED
Childrens & Education Services,Children Looked After (24hrs+),CL Fostering Services,Supplies and Services,Services,Task Based Fostering,7/12/2011,492,"1,502.66",Revenue,REDACTED
Childrens & Education Services,Children Looked After (24hrs+),CL Fostering Services,Supplies and Services,Services,Task Based Fostering,7/12/2011,493,739.20,Revenue,REDACTED
Childrens & Education Services,Children Looked After (24hrs+),CL Fostering Services,Supplies and Services,Services,Task Based Fostering,7/12/2011,494,"2,300.08",Revenue,REDACTED
Childrens & Education Services,Children Looked After (24hrs+),CL Fostering Services,Supplies and Services,Services,Task Based Fostering,7/12/2011,495,"2,266.12",Revenue,REDACTED
Childrens & Education Services,Children Looked After (24hrs+),CL Fostering Services,Supplies and Services,Services,Task Based Fostering,7/12/2011,496,"1,519.64",Revenue,REDACTED
Childrens & Education Services,Children Looked After (24hrs+),CL Fostering Services,Supplies and Services,Services,Task Based Fostering,7/12/2011,497,780.44,Revenue,REDACTED
Childrens & Education Services,Children Looked After (24hrs+),CL Fostering Services,Supplies and Services,Services,Task Based Fostering,7/12/2011,498,"2,324.34",Revenue,REDACTED
Childrens & Education Services,Children Looked After (24hrs+),CL Fostering Services,Supplies and Services,Services,Task Based Fostering,7/12/2011,499,"2,283.10",Revenue,REDACTED
Childrens & Education Services,Children Looked After (24hrs+),CL Fostering Services,Supplies and Services,Services,Task Based Fostering,7/12/2011,500,"1,737.42",Revenue,REDACTED
Childrens & Education Services,Children Looked After (24hrs+),CL Fostering Services,Supplies and Services,Services,Task Based Fostering,7/12/2011,501,760.00,Revenue,REDACTED
Childrens & Education Services,Children Looked After (24hrs+),CL Fostering Services,Supplies and Services,Services,Task Based Fostering,7/12/2011,502,"2,307.36",Revenue,REDACTED
Childrens & Education Services,Children Looked After (24hrs+),CL Fostering Services,Supplies and Services,Services,Task Based Fostering,7/12/2011,503,"1,560.88",Revenue,REDACTED
Childrens & Education Services,Children Looked After (24hrs+),CL Fostering Services,Supplies and Services,Services,Task Based Fostering,7/12/2011,504,"3,247.72",Revenue,REDACTED
Childrens & Education Services,Children Looked After (24hrs+),CL Fostering Services,Supplies and Services,Services,Task Based Fostering,7/12/2011,505,739.20,Revenue,REDACTED
Childrens & Education Services,Children Looked After (24hrs+),CL Fostering Services,Supplies and Services,Services,Task Based Fostering,7/12/2011,506,"2,978.74",Revenue,REDACTED
Childrens & Education Services,Children Looked After (24hrs+),CL Fostering Services,Supplies and Services,Services,Task Based Fostering,7/12/2011,507,"1,543.90",Revenue,REDACTED
Childrens & Education Services,Children Looked After (24hrs+),CL Fostering Services,Supplies and Services,Services,Task Based Fostering,7/12/2011,508,"2,258.84",Revenue,REDACTED
Childrens & Education Services,Children Looked After (24hrs+),CL Fostering Services,Supplies and Services,Services,Task Based Fostering,7/12/2011,509,780.44,Revenue,REDACTED
Childrens & Education Services,Children Looked After (24hrs+),CL Fostering Services,Supplies and Services,Services,Task Based Fostering,7/12/2011,510,"2,241.86",Revenue,REDACTED
Childrens & Education Services,Children Looked After (24hrs+),CL Fostering Services,Supplies and Services,Services,Task Based Fostering,7/12/2011,511,"2,323.20",Revenue,REDACTED
Childrens & Education Services,Children Looked After (24hrs+),CL Fostering Services,Supplies and Services,Services,Task Based Fostering,7/12/2011,512,"1,021.44",Revenue,REDACTED
Childrens & Education Services,Children Looked After (24hrs+),CL Fostering Services,Supplies and Services,Services,Task Based Fostering,7/12/2011,513,739.20,Revenue,REDACTED
Childrens & Education Services,Children Looked After (24hrs+),CL Fostering Services,Supplies and Services,Services,Task Based Fostering,7/12/2011,514,"2,241.86",Revenue,REDACTED
Childrens & Education Services,Children Looked After (24hrs+),CL Fostering Services,Supplies and Services,Services,Task Based Fostering,7/12/2011,515,"1,543.90",Revenue,REDACTED
Childrens & Education Services,Children Looked After (24hrs+),CL Fostering Services,Supplies and Services,Services,Task Based Fostering,7/12/2011,516,739.20,Revenue,REDACTED
Childrens & Education Services,Other Ch's & Family Services,CL Adoption Allowances,Transfer Payments,Adult Soc Servs Clients,Adodption Allowances,7/12/2011,517,562.88,Revenue,REDACTED
Childrens & Education Services,Other Ch's & Family Services,CL Adoption Allowances,Transfer Payments,Adult Soc Servs Clients,Adodption Allowances,7/12/2011,518,607.08,Revenue,REDACTED
Childrens & Education Services,Other Ch's & Family Services,CL Adoption Allowances,Transfer Payments,Adult Soc Servs Clients,Adodption Allowances,7/12/2011,519,912.40,Revenue,REDACTED
Childrens & Education Services,Family Support Services,CL Residence Orders,Supplies and Services,Grants and Subscriptions,Residence Orders,7/12/2011,520,879.02,Revenue,REDACTED
Childrens & Education Services,Children Looked After (24hrs+),CL Independent Fostering,Supplies and Services,Services,Task Based Fostering,7/12/2011,521,"5,645.92",Revenue,FOSTERING OUTCOMES LTD
Childrens & Education Services,Other Ch's & Family Services,CL Leaving Care/Supp Lodgings,Third Party Payments,Private Contractors,Supported Lodgings,7/12/2011,522,600.00,Revenue,REDACTED
Adult Social Care,Asylum seekers,AS Child - Res Care (Grant),Third Party Payments,Private Contractors,Miscellaneous Agency Services,7/12/2011,523,800.00,Revenue,KEYA SUPPORT LTD
Childrens & Education Services,Other Ch's & Family Services,CL Leaving Care/Supp Lodgings,Third Party Payments,Private Contractors,Supported Lodgings,7/12/2011,524,800.00,Revenue,REDACTED
Childrens & Education Services,Other Ch's & Family Services,CL Leaving Care/Supp Lodgings,Third Party Payments,Private Contractors,Miscellaneous Agency Services,7/13/2011,525,"1,199.80",Revenue,ON BEHALF SP HOMES LTD NO2 ACC
Childrens & Education Services,Other Ch's & Family Services,CL Leaving Care/Supp Lodgings,Third Party Payments,Private Contractors,Supported Lodgings,7/13/2011,526,800.00,Revenue,REDACTED
Childrens & Education Services,Other Ch's & Family Services,CL Leaving Care/Supp Lodgings,Third Party Payments,Private Contractors,Supported Lodgings,7/12/2011,527,600.00,Revenue,REDACTED
Adult Social Care,Adult u65 Phys/Sensory Impair,PS Home Care External,Third Party Payments,Private Contractors,Miscellaneous Agency Services,7/12/2011,528,"-2,653.16",Revenue,HOMECARE SERVICES LTD
Adult Social Care,Adult u65 Phys/Sensory Impair,PD EAST TEAM-Homecare,Third Party Payments,Private Contractors,Miscellaneous Agency Services,7/12/2011,529,"6,368.08",Revenue,HOMECARE SERVICES LTD
Adult Social Care,Adult u65 Mental Health Needs,MH Day Care - Mitcham West,Third Party Payments,Private Contractors,Miscellaneous Agency Services,7/12/2011,530,"1,305.48",Revenue,NAS SERVICES LIMITED
Adult Social Care,Older People 65&Over inc OP-MH,OP East - Daycare,Third Party Payments,Private Contractors,Miscellaneous Agency Services,7/12/2011,531,740.43,Revenue,SOLACE COMMUNITY CARE LTD
Adult Social Care,Adult u65 Mental Health Needs,HS Adult Placements,Third Party Payments,Private Contractors,Accommodation Based Support,7/12/2011,532,"1,167.60",Revenue,REDACTED
Adult Social Care,Adult u65 Mental Health Needs,HS Adult Placements,Third Party Payments,Private Contractors,Accommodation Based Support,7/12/2011,533,879.28,Revenue,REDACTED
Adult Social Care,Adult u65 Mental Health Needs,MH Adult Placement Cont-Morden,Third Party Payments,Private Contractors,Accommodation Based Support,7/12/2011,534,879.28,Revenue,REDACTED
Adult Social Care,Adult u65 Mental Health Needs,HS Adult Placements,Third Party Payments,Private Contractors,Accommodation Based Support,7/12/2011,535,636.72,Revenue,REDACTED
Adult Social Care,Adlt u65 Learning Disabilities,LD Adult Placements - HST,Third Party Payments,Private Contractors,Accommodation Based Support,7/12/2011,536,848.96,Revenue,REDACTED
Adult Social Care,Adult u65 Mental Health Needs,MH Adult PlacementCont-MitWest,Third Party Payments,Private Contractors,Accommodation Based Support,7/12/2011,537,729.75,Revenue,REDACTED
Adult Social Care,Older People 65&Over inc OP-MH,OP East - Residential Care Ext,Third Party Payments,Private Contractors,Miscellaneous Agency Services,7/12/2011,538,"1,887.90",Revenue,ABBEYGATE RESIDENTIAL HOME
Adult Social Care,Older People 65&Over inc OP-MH,OP West - Residential Care Ext,Third Party Payments,Private Contractors,Miscellaneous Agency Services,7/12/2011,539,"1,380.00",Revenue,ASHMOUNT RESIDENTIAL & NURSING
Adult Social Care,Adlt u65 Learning Disabilities,LD Residential Care External,Third Party Payments,Private Contractors,Miscellaneous Agency Services,7/12/2011,540,"4,939.16",Revenue,ASHTEAD HOUSE LIMITED
Adult Social Care,Adult u65 Mental Health Needs,MH ResidentialCare Ext - Wim,Third Party Payments,Private Contractors,Miscellaneous Agency Services,7/13/2011,541,"2,756.36",Revenue,ASRA G.LONDON HOUSING ASS.LTD
Adult Social Care,Adlt u65 Learning Disabilities,LD Residential Care External,Third Party Payments,Private Contractors,Miscellaneous Agency Services,7/13/2011,542,"1,830.80",Revenue,ASRA G.LONDON HOUSING ASS.LTD
Adult Social Care,Adult u65 Mental Health Needs,MH Res Care Ext- Mitcham West,Third Party Payments,Private Contractors,Miscellaneous Agency Services,7/12/2011,543,"2,074.72",Revenue,ASTRA HOMES
Adult Social Care,Older People 65&Over inc OP-MH,OP West - Nursing Care,Third Party Payments,Private Contractors,Miscellaneous Agency Services,7/12/2011,544,"2,130.25",Revenue,BEACH LAWNS
Adult Social Care,Older People 65&Over inc OP-MH,OP Hosp - Residential Care Ext,Third Party Payments,Private Contractors,Miscellaneous Agency Services,7/12/2011,545,"-5,510.00",Revenue,THE BEECHES
Adult Social Care,Older People 65&Over inc OP-MH,OP East - Residential Care Ext,Third Party Payments,Private Contractors,Miscellaneous Agency Services,7/12/2011,546,"7,540.00",Revenue,THE BEECHES
Adult Social Care,Older People 65&Over inc OP-MH,OP East - Nursing Care,Third Party Payments,Private Contractors,Miscellaneous Agency Services,7/12/2011,547,"2,552.00",Revenue,BEVERLEY LODGE NURSING HOME
Adult Social Care,Older People 65&Over inc OP-MH,OP East - Nursing Care,Third Party Payments,Private Contractors,Miscellaneous Agency Services,7/12/2011,548,"2,533.72",Revenue,CARE UK
Adult Social Care,Older People 65&Over inc OP-MH,OP Hosp - Residential Care Ext,Third Party Payments,Private Contractors,Miscellaneous Agency Services,7/12/2011,549,"2,200.00",Revenue,CARTER HOUSE
Adult Social Care,Older People 65&Over inc OP-MH,OP West - Residential Care Ext,Third Party Payments,Private Contractors,Miscellaneous Agency Services,7/12/2011,550,"2,700.00",Revenue,CARTER HOUSE
Adult Social Care,Older People 65&Over inc OP-MH,OP Hosp - Nursing Care,Third Party Payments,Private Contractors,Miscellaneous Agency Services,7/13/2011,551,"9,283.72",Revenue,REDACTED
Adult Social Care,Adlt u65 Learning Disabilities,LD Residential Care External,Third Party Payments,Private Contractors,Miscellaneous Agency Services,7/12/2011,552,"4,760.00",Revenue,CARE MANAGEMENT GROUP
Adult Social Care,Adlt u65 Learning Disabilities,LD Residential Care External,Third Party Payments,Private Contractors,Miscellaneous Agency Services,7/12/2011,553,"5,380.00",Revenue,CARE MANAGEMENT GROUP
Adult Social Care,Adlt u65 Learning Disabilities,LD Residential Care External,Third Party Payments,Private Contractors,Miscellaneous Agency Services,7/12/2011,554,"5,500.00",Revenue,CARE MANAGEMENT GROUP
Adult Social Care,Adlt u65 Learning Disabilities,LD Residential Care External,Third Party Payments,Private Contractors,Miscellaneous Agency Services,7/12/2011,555,"5,981.20",Revenue,CARE MANAGEMENT GROUP
Adult Social Care,Adult u65 Mental Health Needs,MH ResidentialCare Ext - Wim,Third Party Payments,Private Contractors,Miscellaneous Agency Services,7/12/2011,556,"3,632.00",Revenue,CARE MANAGEMENT GROUP
Adult Social Care,Adlt u65 Learning Disabilities,LD Residential Care External,Third Party Payments,Private Contractors,Miscellaneous Agency Services,7/12/2011,557,"5,980.00",Revenue,CARE MANAGEMENT GROUP
Adult Social Care,Adult u65 Phys/Sensory Impair,PD WEST TEAM-Homecare,Third Party Payments,Private Contractors,Miscellaneous Agency Services,7/12/2011,558,"5,520.00",Revenue,CARE MANAGEMENT GROUP
Adult Social Care,Adult u65 Phys/Sensory Impair,PD EAST TEAM-Homecare,Third Party Payments,Private Contractors,Miscellaneous Agency Services,7/12/2011,559,"4,168.00",Revenue,CARE MANAGEMENT GROUP
Adult Social Care,Adlt u65 Learning Disabilities,LD Residential Care External,Third Party Payments,Private Contractors,Miscellaneous Agency Services,7/12/2011,560,"5,044.00",Revenue,CARE MANAGEMENT GROUP
Adult Social Care,Adlt u65 Learning Disabilities,LD Residential Care External,Third Party Payments,Private Contractors,Miscellaneous Agency Services,7/12/2011,561,"3,336.00",Revenue,CARE MANAGEMENT GROUP
Adult Social Care,Older People 65&Over inc OP-MH,OP Hosp - Residential Care Ext,Third Party Payments,Private Contractors,Miscellaneous Agency Services,7/12/2011,562,"2,701.43",Revenue,AVERY HOMES LEEDS
Adult Social Care,Adlt u65 Learning Disabilities,LD Comm-Residential-Surrey Oak,Third Party Payments,Private Contractors,Miscellaneous Agency Services,7/12/2011,563,"4,610.56",Revenue,COTTISBRAINE HOUSE
Adult Social Care,Older People 65&Over inc OP-MH,OP Hosp - Nursing Care,Third Party Payments,Private Contractors,Miscellaneous Agency Services,7/12/2011,564,"2,406.60",Revenue,GROSVENOR PARK NURSING HOME
Adult Social Care,Adlt u65 Learning Disabilities,LD Residential Care External,Third Party Payments,Private Contractors,Miscellaneous Agency Services,7/12/2011,565,"2,697.04",Revenue,REDACTED
Adult Social Care,Older People 65&Over inc OP-MH,OP East - Residential Care Ext,Third Party Payments,Private Contractors,Miscellaneous Agency Services,7/18/2011,566,"3,032.24",Revenue,SCOPE
Adult Social Care,Adlt u65 Learning Disabilities,LD Residential Care External,Third Party Payments,Private Contractors,Miscellaneous Agency Services,7/18/2011,567,"3,487.92",Revenue,SCOPE
Adult Social Care,Adult u65 Phys/Sensory Impair,PD WEST TEAM-Residential Care,Third Party Payments,Private Contractors,Miscellaneous Agency Services,7/18/2011,568,"3,300.96",Revenue,SCOPE
Adult Social Care,Adult u65 Phys/Sensory Impair,PD EAST TEAM-Residential,Third Party Payments,Private Contractors,Miscellaneous Agency Services,7/12/2011,569,"3,249.68",Revenue,SCOPE
Adult Social Care,Older People 65&Over inc OP-MH,OP Hosp - Nursing Care,Third Party Payments,Private Contractors,Miscellaneous Agency Services,7/12/2011,570,"2,341.84",Revenue,SUTTON COURT CARE CENTRE
Adult Social Care,Older People 65&Over inc OP-MH,OP Hosp - Nursing Care,Third Party Payments,Private Contractors,Miscellaneous Agency Services,7/12/2011,571,"2,341.84",Revenue,SUTTON COURT CARE CENTRE
Adult Social Care,Older People 65&Over inc OP-MH,OP West - Nursing Care,Third Party Payments,Private Contractors,Miscellaneous Agency Services,7/12/2011,572,"2,341.84",Revenue,SUTTON COURT CARE CENTRE
Adult Social Care,Older People 65&Over inc OP-MH,OP Hosp - Nursing Care,Third Party Payments,Private Contractors,Miscellaneous Agency Services,7/12/2011,573,"2,341.84",Revenue,SUTTON COURT CARE CENTRE
Adult Social Care,Older People 65&Over inc OP-MH,OP West - Nursing Care,Third Party Payments,Private Contractors,Miscellaneous Agency Services,7/12/2011,574,752.73,Revenue,THE CROFT NURSING HOME
Adult Social Care,Older People 65&Over inc OP-MH,OP West - Residential Care Ext,Third Party Payments,Private Contractors,Miscellaneous Agency Services,7/13/2011,575,"2,100.00",Revenue,THE DEVONSHIRE RESID CARE HOME
Adult Social Care,Older People 65&Over inc OP-MH,OP West - Nursing Care,Third Party Payments,Private Contractors,Miscellaneous Agency Services,7/13/2011,576,"3,146.50",Revenue,TRINITY COURT NURSING HOME
Adult Social Care,Adlt u65 Learning Disabilities,LD Nursing Care,Third Party Payments,Private Contractors,Miscellaneous Agency Services,7/12/2011,577,"5,122.60",Revenue,WINGREACH LIMITED
Adult Social Care,Older People 65&Over inc OP-MH,OP Hosp - Residential Care Ext,Third Party Payments,Private Contractors,Miscellaneous Agency Services,7/13/2011,578,"2,006.63",Revenue,ASLOCKTON HALL
Adult Social Care,Older People 65&Over inc OP-MH,OP Hosp - Nursing Care,Third Party Payments,Private Contractors,Miscellaneous Agency Services,7/13/2011,579,"2,341.84",Revenue,ST AUBYNS NURSING HOME
Adult Social Care,Older People 65&Over inc OP-MH,OP West - Residential Care Ext,Customer and client receipts,Charges,Miscellaneous Charges X,7/13/2011,580,"-1,008.40",Revenue,CARTER HOUSE
Adult Social Care,Older People 65&Over inc OP-MH,OP East - Nursing Care,Third Party Payments,Private Contractors,Miscellaneous Agency Services,7/13/2011,581,"2,735.23",Revenue,CARTER HOUSE
Adult Social Care,Older People 65&Over inc OP-MH,OP Hosp - Nursing Care,Third Party Payments,Private Contractors,Miscellaneous Agency Services,7/13/2011,582,"5,105.76",Revenue,CARTER HOUSE
Adult Social Care,Older People 65&Over inc OP-MH,OP East - Residential Care Ext,Third Party Payments,Private Contractors,Miscellaneous Agency Services,7/13/2011,583,"5,977.28",Revenue,CARTER HOUSE
Adult Social Care,Older People 65&Over inc OP-MH,OP Hosp - Residential Care Ext,Third Party Payments,Private Contractors,Miscellaneous Agency Services,7/13/2011,584,"6,790.86",Revenue,CARTER HOUSE
Adult Social Care,Older People 65&Over inc OP-MH,OP West - Nursing Care,Third Party Payments,Private Contractors,Miscellaneous Agency Services,7/13/2011,585,"12,764.40",Revenue,CARTER HOUSE
Adult Social Care,Older People 65&Over inc OP-MH,OP West - Residential Care Ext,Third Party Payments,Private Contractors,Miscellaneous Agency Services,7/13/2011,586,"26,110.08",Revenue,CARTER HOUSE
Adult Social Care,Older People 65&Over inc OP-MH,OP Hosp - Nursing Care,Third Party Payments,Private Contractors,Miscellaneous Agency Services,7/13/2011,587,"2,746.40",Revenue,CHELSTON PARK
Adult Social Care,Older People 65&Over inc OP-MH,OP East - Nursing Care,Third Party Payments,Private Contractors,Miscellaneous Agency Services,7/13/2011,588,"2,632.43",Revenue,CLAREMONT CARE SVS LTD
Adult Social Care,Older People 65&Over inc OP-MH,OP Hosp - Nursing Care,Third Party Payments,Private Contractors,Miscellaneous Agency Services,7/13/2011,589,"2,463.84",Revenue,CLAREMONT CARE SVS LTD
Adult Social Care,Older People 65&Over inc OP-MH,OP Hosp - Nursing Care,Third Party Payments,Private Contractors,Miscellaneous Agency Services,7/13/2011,590,"2,337.20",Revenue,CLARENDON LS
Adult Social Care,Older People 65&Over inc OP-MH,OP West - Nursing Care,Third Party Payments,Private Contractors,Miscellaneous Agency Services,7/13/2011,591,"2,354.80",Revenue,GALLEON CARE HOMES LTD
Adult Social Care,Older People 65&Over inc OP-MH,OP West - Residential Care Ext,Customer and client receipts,Charges,Miscellaneous Charges X,7/18/2011,592,"-1,147.50",Revenue,DEEPDENE CARE LIMITED
Adult Social Care,Older People 65&Over inc OP-MH,OP West - Residential Care Ext,Customer and client receipts,Charges,Bd&Acc-contrib coll by home X,7/18/2011,593,661.80,Revenue,DEEPDENE CARE LIMITED
Adult Social Care,Older People 65&Over inc OP-MH,OP West - Residential Care Ext,Third Party Payments,Private Contractors,Miscellaneous Agency Services,7/18/2011,594,"1,825.16",Revenue,DEEPDENE CARE LIMITED
Adult Social Care,Adult u65 Mental Health Needs,MH ResidentialCare Ext - Wim,Customer and client receipts,Charges,Miscellaneous Charges X,7/18/2011,595,-737.50,Revenue,DEEPDENE CARE LIMITED
Adult Social Care,Adult u65 Mental Health Needs,MH ResidentialCare Ext - Wim,Third Party Payments,Private Contractors,Miscellaneous Agency Services,7/18/2011,596,"1,825.16",Revenue,DEEPDENE CARE LIMITED
Adult Social Care,Adlt u65 Learning Disabilities,LD Residential Care External,Third Party Payments,Private Contractors,Miscellaneous Agency Services,7/13/2011,597,"4,113.72",Revenue,ESTHER CARE HOMES LIMITED
Adult Social Care,Adlt u65 Learning Disabilities,LD Residential Care External,Third Party Payments,Private Contractors,Miscellaneous Agency Services,7/13/2011,598,"4,780.00",Revenue,GREENFIELD CARE HOMES LTD
Adult Social Care,Adlt u65 Learning Disabilities,LD Residential Care External,Third Party Payments,Private Contractors,Miscellaneous Agency Services,7/13/2011,599,"4,868.00",Revenue,GREENFIELD CARE HOMES LTD
Adult Social Care,Adlt u65 Learning Disabilities,LD Residential Care External,Third Party Payments,Private Contractors,Miscellaneous Agency Services,7/13/2011,600,"4,624.00",Revenue,GREENFIELD CARE HOMES LTD
Adult Social Care,Adlt u65 Learning Disabilities,LD Residential Care External,Third Party Payments,Private Contractors,Miscellaneous Agency Services,7/13/2011,601,"4,744.00",Revenue,GREENFIELD CARE HOMES LTD
Adult Social Care,Adlt u65 Learning Disabilities,LD Residential Care External,Third Party Payments,Private Contractors,Miscellaneous Agency Services,7/13/2011,602,"4,780.00",Revenue,GREENFIELD CARE HOMES LTD
Adult Social Care,Adlt u65 Learning Disabilities,LD Residential Care External,Third Party Payments,Private Contractors,Miscellaneous Agency Services,7/13/2011,603,"4,780.00",Revenue,GREENFIELD CARE HOMES LTD
Adult Social Care,Adlt u65 Learning Disabilities,LD Residential Care External,Third Party Payments,Private Contractors,Miscellaneous Agency Services,7/13/2011,604,"4,732.00",Revenue,GREENFIELD CARE HOMES LTD
Adult Social Care,Older People 65&Over inc OP-MH,OP East - Residential Care Ext,Third Party Payments,Private Contractors,Miscellaneous Agency Services,7/13/2011,605,"1,522.36",Revenue,CHICHESTER HALL CARE HOME LTD
Adult Social Care,Older People 65&Over inc OP-MH,OP Hosp - Residential Care Ext,Third Party Payments,Private Contractors,Miscellaneous Agency Services,7/13/2011,606,"2,200.00",Revenue,HASLINGTON RESIDENTIAL HOME
Adult Social Care,Adlt u65 Learning Disabilities,LD Residential Care External,Third Party Payments,Private Contractors,Miscellaneous Agency Services,7/13/2011,607,"3,521.24",Revenue,HAYDON PARK LODGE
Adult Social Care,Adlt u65 Learning Disabilities,LD Residential Care External,Customer and client receipts,Charges,Miscellaneous Charges X,7/13/2011,608,-688.50,Revenue,HAYDON PARK LODGE
Adult Social Care,Adlt u65 Learning Disabilities,LD Residential Care External,Third Party Payments,Private Contractors,Miscellaneous Agency Services,7/13/2011,609,"2,719.32",Revenue,HAYDON PARK LODGE
Adult Social Care,Adlt u65 Learning Disabilities,LD Residential Care External,Customer and client receipts,Charges,Miscellaneous Charges X,7/13/2011,610,-512.74,Revenue,HAYDON PARK LODGE
Adult Social Care,Adlt u65 Learning Disabilities,LD Residential Care External,Third Party Payments,Private Contractors,Miscellaneous Agency Services,7/13/2011,611,"1,975.28",Revenue,HAYDON PARK LODGE
Adult Social Care,Adlt u65 Learning Disabilities,LD Residential Care External,Third Party Payments,Private Contractors,Miscellaneous Agency Services,7/13/2011,612,"3,720.00",Revenue,HAYDON PARK LODGE
Adult Social Care,Adlt u65 Learning Disabilities,LD Residential Care External,Third Party Payments,Private Contractors,Miscellaneous Agency Services,7/13/2011,613,"2,458.36",Revenue,HAYDON PARK LODGE
Adult Social Care,Adlt u65 Learning Disabilities,LD Residential Care External,Customer and client receipts,Charges,Miscellaneous Charges X,7/13/2011,614,-688.50,Revenue,HAYDON PARK LODGE
Adult Social Care,Adlt u65 Learning Disabilities,LD Residential Care External,Third Party Payments,Private Contractors,Miscellaneous Agency Services,7/13/2011,615,"2,816.00",Revenue,HAYDON PARK LODGE
Adult Social Care,Adlt u65 Learning Disabilities,LD Residential Care External,Third Party Payments,Private Contractors,Miscellaneous Agency Services,7/13/2011,616,"3,532.48",Revenue,HAYDON PARK LODGE
Adult Social Care,Adlt u65 Learning Disabilities,LD Residential Care External,Third Party Payments,Private Contractors,Miscellaneous Agency Services,7/13/2011,617,"3,451.00",Revenue,HAYDON PARK LODGE
Adult Social Care,Older People 65&Over inc OP-MH,OP Hosp - Residential Care Ext,Third Party Payments,Private Contractors,Miscellaneous Agency Services,7/13/2011,618,"1,682.94",Revenue,HAZELHURST CARE HOME
Adult Social Care,Older People 65&Over inc OP-MH,OP East - Nursing Care,Third Party Payments,Private Contractors,Miscellaneous Agency Services,7/13/2011,619,"2,341.84",Revenue,HOPELIT UK LTD
Adult Social Care,Adult u65 Mental Health Needs,MH ResidentialCare Ext-Morden,Third Party Payments,Private Contractors,Miscellaneous Agency Services,7/13/2011,620,"2,839.00",Revenue,REDACTED
Adult Social Care,Adlt u65 Learning Disabilities,LD Residential Care External,Third Party Payments,Private Contractors,Miscellaneous Agency Services,7/13/2011,621,"3,406.60",Revenue,L'ARCHE
Adult Social Care,Adlt u65 Learning Disabilities,LD Residential Care External,Third Party Payments,Private Contractors,Miscellaneous Agency Services,7/20/2011,622,"2,087.64",Revenue,LINKAGE COMMUNITY TR.LONG-STAY
Adult Social Care,Adlt u65 Learning Disabilities,LD Residential Care External,Customer and client receipts,Charges,Miscellaneous Charges X,7/13/2011,623,-885.00,Revenue,METROPOLITAN SUPPORT TRUST
Adult Social Care,Adlt u65 Learning Disabilities,LD Residential Care External,Third Party Payments,Private Contractors,Miscellaneous Agency Services,7/13/2011,624,"14,971.20",Revenue,METROPOLITAN SUPPORT TRUST
Adult Social Care,Adlt u65 Learning Disabilities,LD Residential Care External,Customer and client receipts,Charges,Miscellaneous Charges X,7/13/2011,625,-885.00,Revenue,METROPOLITAN SUPPORT TRUST
Adult Social Care,Adlt u65 Learning Disabilities,LD Residential Care External,Third Party Payments,Private Contractors,Miscellaneous Agency Services,7/13/2011,626,"14,971.20",Revenue,METROPOLITAN SUPPORT TRUST
Adult Social Care,Older People 65&Over inc OP-MH,OP East - Residential Care Ext,Third Party Payments,Private Contractors,Miscellaneous Agency Services,7/13/2011,627,"3,308.92",Revenue,RNID - ACTION ON HEARING LOSS
Adult Social Care,Older People 65&Over inc OP-MH,OP Hosp - Residential Care Ext,Third Party Payments,Private Contractors,Miscellaneous Agency Services,7/13/2011,628,"1,799.84",Revenue,ROSEDALE REST HOME
Adult Social Care,Older People 65&Over inc OP-MH,OP East - Residential Care Ext,Third Party Payments,Private Contractors,Miscellaneous Agency Services,7/13/2011,629,"1,464.64",Revenue,ROSEDALE REST HOME
Adult Social Care,Older People 65&Over inc OP-MH,OP East - Residential Care Ext,Third Party Payments,Private Contractors,Miscellaneous Agency Services,7/13/2011,630,"1,786.40",Revenue,ROSEDALE REST HOME
Adult Social Care,Older People 65&Over inc OP-MH,OP East - Residential Care Ext,Third Party Payments,Private Contractors,Miscellaneous Agency Services,7/13/2011,631,"1,745.80",Revenue,ROSEDALE REST HOME
Adult Social Care,Adult u65 Mental Health Needs,MH ResidentialCare Ext-Morden,Third Party Payments,Private Contractors,Miscellaneous Agency Services,7/13/2011,632,"1,834.52",Revenue,ROSEDALE REST HOME
Adult Social Care,Adult u65 Phys/Sensory Impair,PD EAST TEAM-Residential,Third Party Payments,Private Contractors,Miscellaneous Agency Services,7/13/2011,633,"8,384.84",Revenue,RNID
Adult Social Care,Older People 65&Over inc OP-MH,OP East - Nursing Care,Third Party Payments,Private Contractors,Miscellaneous Agency Services,7/13/2011,634,"2,341.84",Revenue,ST JOHNS NURSING HOME
Adult Social Care,Older People 65&Over inc OP-MH,OP East - Residential Care Ext,Third Party Payments,Private Contractors,Miscellaneous Agency Services,7/13/2011,635,"3,164.00",Revenue,SUNRISE SENIOR LIVING RES.HOME
Adult Social Care,Adlt u65 Learning Disabilities,LD Residential Care External,Third Party Payments,Private Contractors,Miscellaneous Agency Services,7/13/2011,636,"2,074.68",Revenue,EL-SHADDAI
Adult Social Care,Adlt u65 Learning Disabilities,LD Residential Care External,Third Party Payments,Private Contractors,Miscellaneous Agency Services,7/13/2011,637,"1,438.44",Revenue,EL-SHADDAI
Adult Social Care,Older People 65&Over inc OP-MH,OP East -Direct Payment Scheme,Third Party Payments,Private Contractors,Direct Payments,7/13/2011,638,913.76,Revenue,REDACTED
Adult Social Care,Older People 65&Over inc OP-MH,OP East -Direct Payment Scheme,Third Party Payments,Private Contractors,Direct Payments,7/13/2011,639,"1,356.84",Revenue,REDACTED
Adult Social Care,Adult u65 Phys/Sensory Impair,PD EAST TEAM-Direct Payment,Third Party Payments,Private Contractors,Direct Payments,7/13/2011,640,915.88,Revenue,REDACTED
Adult Social Care,Older People 65&Over inc OP-MH,OP East -Direct Payment Scheme,Third Party Payments,Private Contractors,Direct Payments,7/13/2011,641,"3,386.68",Revenue,REDACTED
Adult Social Care,Older People 65&Over inc OP-MH,OP West -Direct Payment Scheme,Third Party Payments,Private Contractors,Direct Payments,7/13/2011,642,511.20,Revenue,REDACTED
Adult Social Care,Adult u65 Phys/Sensory Impair,PD EAST TEAM-Direct Payment,Third Party Payments,Private Contractors,Direct Payments,7/13/2011,643,532.48,Revenue,REDACTED
Adult Social Care,Adult u65 Mental Health Needs,MH Direct Payment Scheme- West,Third Party Payments,Private Contractors,Direct Payments,7/13/2011,644,718.48,Revenue,REDACTED
Adult Social Care,Adult u65 Phys/Sensory Impair,PD WEST TEAM-Direct Payment,Third Party Payments,Private Contractors,Direct Payments,7/13/2011,645,"1,323.72",Revenue,REDACTED
Adult Social Care,Older People 65&Over inc OP-MH,OP West -Direct Payment Scheme,Customer and client receipts,Charges,Bd&Acc-contrib coll by home X,7/13/2011,646,-577.20,Revenue,REDACTED
Adult Social Care,Older People 65&Over inc OP-MH,OP West -Direct Payment Scheme,Third Party Payments,Private Contractors,Direct Payments,7/13/2011,647,596.40,Revenue,REDACTED
Adult Social Care,Older People 65&Over inc OP-MH,OP West -Direct Payment Scheme,Third Party Payments,Private Contractors,Direct Payments,7/13/2011,648,502.56,Revenue,REDACTED
Adult Social Care,Older People 65&Over inc OP-MH,OP West -Direct Payment Scheme,Third Party Payments,Private Contractors,Direct Payments,7/13/2011,649,"1,128.88",Revenue,REDACTED
Adult Social Care,Older People 65&Over inc OP-MH,OP East -Direct Payment Scheme,Customer and client receipts,Charges,Bd&Acc-contrib coll by home X,7/13/2011,650,-658.12,Revenue,REDACTED
Adult Social Care,Older People 65&Over inc OP-MH,OP East -Direct Payment Scheme,Third Party Payments,Private Contractors,Direct Payments,7/13/2011,651,756.04,Revenue,REDACTED
Adult Social Care,Adult u65 Mental Health Needs,MH Direct Payment Scheme- West,Third Party Payments,Private Contractors,Direct Payments,7/13/2011,652,838.00,Revenue,REDACTED
Adult Social Care,Adult u65 Phys/Sensory Impair,PD WEST TEAM-Direct Payment,Third Party Payments,Private Contractors,Direct Payments,7/13/2011,653,"1,833.32",Revenue,REDACTED
Adult Social Care,Adult u65 Phys/Sensory Impair,PD EAST TEAM-Direct Payment,Third Party Payments,Private Contractors,Direct Payments,7/13/2011,654,745.48,Revenue,REDACTED
Adult Social Care,Adult u65 Phys/Sensory Impair,PD WEST TEAM-Direct Payment,Third Party Payments,Private Contractors,Direct Payments,7/13/2011,655,711.96,Revenue,REDACTED
Adult Social Care,Older People 65&Over inc OP-MH,OP East -Direct Payment Scheme,Third Party Payments,Private Contractors,Direct Payments,7/13/2011,656,"1,435.44",Revenue,REDACTED
Adult Social Care,Adult u65 Phys/Sensory Impair,PD WEST TEAM-Direct Payment,Third Party Payments,Private Contractors,Direct Payments,7/13/2011,657,565.36,Revenue,REDACTED
Adult Social Care,Older People 65&Over inc OP-MH,OP East -Direct Payment Scheme,Third Party Payments,Private Contractors,Direct Payments,7/13/2011,658,832.16,Revenue,REDACTED
Adult Social Care,Adult u65 Phys/Sensory Impair,PD WEST TEAM-Direct Payment,Third Party Payments,Private Contractors,Direct Payments,7/13/2011,659,"1,244.04",Revenue,REDACTED
Adult Social Care,Older People 65&Over inc OP-MH,OP East -Direct Payment Scheme,Third Party Payments,Private Contractors,Direct Payments,7/13/2011,660,"2,384.16",Revenue,REDACTED
Adult Social Care,Adult u65 Phys/Sensory Impair,PD EAST TEAM-Direct Payment,Third Party Payments,Private Contractors,Direct Payments,7/13/2011,661,"3,077.48",Revenue,REDACTED
Adult Social Care,Older People 65&Over inc OP-MH,OP East -Direct Payment Scheme,Third Party Payments,Private Contractors,Direct Payments,7/13/2011,662,"1,704.00",Revenue,REDACTED
Adult Social Care,Adlt u65 Learning Disabilities,LD Direct Payment Scheme,Third Party Payments,Private Contractors,Direct Payments,7/13/2011,663,533.28,Revenue,REDACTED
Adult Social Care,Adult u65 Phys/Sensory Impair,PD EAST TEAM-Direct Payment,Third Party Payments,Private Contractors,Direct Payments,7/13/2011,664,693.06,Revenue,REDACTED
Adult Social Care,Older People 65&Over inc OP-MH,OP East -Direct Payment Scheme,Third Party Payments,Private Contractors,Direct Payments,7/13/2011,665,833.20,Revenue,REDACTED
Adult Social Care,Adult u65 Phys/Sensory Impair,PD EAST TEAM-Direct Payment,Third Party Payments,Private Contractors,Direct Payments,7/13/2011,666,511.20,Revenue,REDACTED
Adult Social Care,Older People 65&Over inc OP-MH,OP West -Direct Payment Scheme,Third Party Payments,Private Contractors,Direct Payments,7/13/2011,667,894.60,Revenue,REDACTED
Adult Social Care,Older People 65&Over inc OP-MH,OP East -Direct Payment Scheme,Third Party Payments,Private Contractors,Direct Payments,7/13/2011,668,"1,130.76",Revenue,REDACTED
Adult Social Care,Older People 65&Over inc OP-MH,OP West -Direct Payment Scheme,Third Party Payments,Private Contractors,Direct Payments,7/13/2011,669,"1,172.64",Revenue,REDACTED
Adult Social Care,Older People 65&Over inc OP-MH,OP East -Direct Payment Scheme,Third Party Payments,Private Contractors,Direct Payments,7/13/2011,670,521.84,Revenue,REDACTED
Adult Social Care,Older People 65&Over inc OP-MH,OP East -Direct Payment Scheme,Third Party Payments,Private Contractors,Direct Payments,7/13/2011,671,"1,278.00",Revenue,REDACTED
Adult Social Care,Older People 65&Over inc OP-MH,OP Hosp -Direct Payment Scheme,Third Party Payments,Private Contractors,Direct Payments,7/13/2011,672,"4,038.68",Revenue,REDACTED
Adult Social Care,Adult u65 Phys/Sensory Impair,PD WEST TEAM-Direct Payment,Third Party Payments,Private Contractors,Direct Payments,7/13/2011,673,"1,280.00",Revenue,REDACTED
Adult Social Care,Older People 65&Over inc OP-MH,OP East -Direct Payment Scheme,Third Party Payments,Private Contractors,Direct Payments,7/13/2011,674,500.52,Revenue,REDACTED
Adult Social Care,Older People 65&Over inc OP-MH,OP West -Direct Payment Scheme,Third Party Payments,Private Contractors,Direct Payments,7/13/2011,675,745.48,Revenue,REDACTED
Adult Social Care,Older People 65&Over inc OP-MH,OP East -Direct Payment Scheme,Third Party Payments,Private Contractors,Direct Payments,7/13/2011,676,"1,132.72",Revenue,REDACTED
Adult Social Care,Adult u65 Phys/Sensory Impair,PD WEST TEAM-Direct Payment,Third Party Payments,Private Contractors,Direct Payments,7/13/2011,677,"3,444.28",Revenue,REDACTED
Adult Social Care,Adult u65 Phys/Sensory Impair,PD EAST TEAM-Direct Payment,Third Party Payments,Private Contractors,Direct Payments,7/13/2011,678,"1,022.40",Revenue,REDACTED
Adult Social Care,Adult u65 Phys/Sensory Impair,PD EAST TEAM-Direct Payment,Third Party Payments,Private Contractors,Direct Payments,7/13/2011,679,766.80,Revenue,REDACTED
Adult Social Care,Older People 65&Over inc OP-MH,OP East -Direct Payment Scheme,Third Party Payments,Private Contractors,Direct Payments,7/13/2011,680,607.04,Revenue,REDACTED
Adult Social Care,Older People 65&Over inc OP-MH,OP West -Direct Payment Scheme,Third Party Payments,Private Contractors,Direct Payments,7/13/2011,681,"1,045.20",Revenue,REDACTED
Adult Social Care,Adlt u65 Learning Disabilities,LD Direct Payment Scheme,Third Party Payments,Private Contractors,Direct Payments,7/13/2011,682,511.20,Revenue,REDACTED
Adult Social Care,Adult u65 Mental Health Needs,MH Direct Payment Sche -Morden,Third Party Payments,Private Contractors,Direct Payments,7/13/2011,683,"1,192.80",Revenue,REDACTED
Adult Social Care,Adult u65 Phys/Sensory Impair,PD WEST TEAM-Direct Payment,Third Party Payments,Private Contractors,Direct Payments,7/13/2011,684,867.04,Revenue,REDACTED
Adult Social Care,Adlt u65 Learning Disabilities,LD Direct Payment Scheme,Third Party Payments,Private Contractors,Direct Payments,7/13/2011,685,683.56,Revenue,REDACTED
Adult Social Care,Older People 65&Over inc OP-MH,OP West -Direct Payment Scheme,Third Party Payments,Private Contractors,Direct Payments,7/13/2011,686,692.24,Revenue,REDACTED
Adult Social Care,Older People 65&Over inc OP-MH,OP West -Direct Payment Scheme,Third Party Payments,Private Contractors,Direct Payments,7/13/2011,687,"1,295.04",Revenue,REDACTED
Adult Social Care,Adult u65 Phys/Sensory Impair,PD WEST TEAM-Direct Payment,Third Party Payments,Private Contractors,Direct Payments,7/13/2011,688,776.92,Revenue,REDACTED
Adult Social Care,Adult u65 Phys/Sensory Impair,PD WEST TEAM-Direct Payment,Third Party Payments,Private Contractors,Direct Payments,7/13/2011,689,"2,982.00",Revenue,REDACTED
Adult Social Care,Adult u65 Phys/Sensory Impair,PD WEST TEAM-Direct Payment,Third Party Payments,Private Contractors,Direct Payments,7/13/2011,690,"1,661.40",Revenue,REDACTED
Adult Social Care,Adult u65 Phys/Sensory Impair,PD WEST TEAM-Direct Payment,Third Party Payments,Private Contractors,Direct Payments,7/13/2011,691,781.12,Revenue,REDACTED
Adult Social Care,Older People 65&Over inc OP-MH,OP East -Direct Payment Scheme,Third Party Payments,Private Contractors,Direct Payments,7/13/2011,692,884.00,Revenue,REDACTED
Adult Social Care,Older People 65&Over inc OP-MH,OP West -Direct Payment Scheme,Third Party Payments,Private Contractors,Direct Payments,7/13/2011,693,"5,712.00",Revenue,REDACTED
Adult Social Care,Older People 65&Over inc OP-MH,OP West -Direct Payment Scheme,Third Party Payments,Private Contractors,Direct Payments,7/13/2011,694,"1,142.24",Revenue,REDACTED
Adult Social Care,Older People 65&Over inc OP-MH,OP West -Direct Payment Scheme,Third Party Payments,Private Contractors,Direct Payments,7/13/2011,695,617.68,Revenue,REDACTED
Adult Social Care,Adlt u65 Learning Disabilities,LD Direct Payment Scheme,Third Party Payments,Private Contractors,Direct Payments,7/13/2011,696,724.20,Revenue,REDACTED
Adult Social Care,Adult u65 Phys/Sensory Impair,PD EAST TEAM-Direct Payment,Third Party Payments,Private Contractors,Direct Payments,7/13/2011,697,"1,491.00",Revenue,REDACTED
Adult Social Care,Adult u65 Phys/Sensory Impair,PD EAST TEAM-Direct Payment,Third Party Payments,Private Contractors,Direct Payments,7/13/2011,698,639.00,Revenue,REDACTED
Adult Social Care,Adult u65 Phys/Sensory Impair,PD WEST TEAM-Direct Payment,Third Party Payments,Private Contractors,Direct Payments,7/13/2011,699,"2,790.28",Revenue,REDACTED
Adult Social Care,Adult u65 Phys/Sensory Impair,PD WEST TEAM-Direct Payment,Third Party Payments,Private Contractors,Direct Payments,7/13/2011,700,598.16,Revenue,REDACTED
Adult Social Care,Older People 65&Over inc OP-MH,OP West -Direct Payment Scheme,Third Party Payments,Private Contractors,Direct Payments,7/13/2011,701,"1,219.56",Revenue,REDACTED
Adult Social Care,Older People 65&Over inc OP-MH,OP Hosp -Direct Payment Scheme,Third Party Payments,Private Contractors,Direct Payments,7/13/2011,702,873.28,Revenue,REDACTED
Adult Social Care,Adlt u65 Learning Disabilities,LD Direct Payment Scheme,Third Party Payments,Private Contractors,Direct Payments,7/13/2011,703,"1,170.20",Revenue,REDACTED
Adult Social Care,Older People 65&Over inc OP-MH,OP West -Direct Payment Scheme,Third Party Payments,Private Contractors,Direct Payments,7/13/2011,704,"1,684.48",Revenue,REDACTED
Adult Social Care,Older People 65&Over inc OP-MH,OP East -Direct Payment Scheme,Third Party Payments,Private Contractors,Direct Payments,7/13/2011,705,502.56,Revenue,REDACTED
Adult Social Care,Older People 65&Over inc OP-MH,OP East -Direct Payment Scheme,Third Party Payments,Private Contractors,Direct Payments,7/13/2011,706,"1,054.36",Revenue,REDACTED
Adult Social Care,Older People 65&Over inc OP-MH,OP East -Direct Payment Scheme,Third Party Payments,Private Contractors,Direct Payments,7/13/2011,707,774.80,Revenue,REDACTED
Adult Social Care,Older People 65&Over inc OP-MH,OP West -Direct Payment Scheme,Third Party Payments,Private Contractors,Direct Payments,7/13/2011,708,795.12,Revenue,REDACTED
Adult Social Care,Adlt u65 Learning Disabilities,LD Direct Payment Scheme,Third Party Payments,Private Contractors,Direct Payments,7/13/2011,709,504.00,Revenue,REDACTED
Adult Social Care,Adult u65 Phys/Sensory Impair,PD WEST TEAM-Direct Payment,Third Party Payments,Private Contractors,Direct Payments,7/13/2011,710,"1,778.56",Revenue,REDACTED
Adult Social Care,Adult u65 Phys/Sensory Impair,PD EAST TEAM-Direct Payment,Third Party Payments,Private Contractors,Direct Payments,7/13/2011,711,607.04,Revenue,REDACTED
Adult Social Care,Older People 65&Over inc OP-MH,OP East -Direct Payment Scheme,Third Party Payments,Private Contractors,Direct Payments,7/13/2011,712,937.20,Revenue,REDACTED
Adult Social Care,Older People 65&Over inc OP-MH,OP West -Direct Payment Scheme,Third Party Payments,Private Contractors,Direct Payments,7/13/2011,713,858.52,Revenue,REDACTED
Adult Social Care,Older People 65&Over inc OP-MH,OP East -Direct Payment Scheme,Third Party Payments,Private Contractors,Direct Payments,7/13/2011,714,"1,606.64",Revenue,REDACTED
Adult Social Care,Older People 65&Over inc OP-MH,OP Hosp -Direct Payment Scheme,Third Party Payments,Private Contractors,Direct Payments,7/13/2011,715,"1,183.08",Revenue,REDACTED
Adult Social Care,Older People 65&Over inc OP-MH,OP West -Direct Payment Scheme,Third Party Payments,Private Contractors,Direct Payments,7/13/2011,716,553.80,Revenue,REDACTED
Adult Social Care,Adult u65 Phys/Sensory Impair,PD EAST TEAM-Direct Payment,Third Party Payments,Private Contractors,Direct Payments,7/13/2011,717,"1,949.08",Revenue,REDACTED
Adult Social Care,Older People 65&Over inc OP-MH,OP Hosp -Direct Payment Scheme,Third Party Payments,Private Contractors,Direct Payments,7/13/2011,718,"2,279.08",Revenue,REDACTED
Adult Social Care,Adlt u65 Learning Disabilities,LD Direct Payment Scheme,Third Party Payments,Private Contractors,Direct Payments,7/13/2011,719,887.32,Revenue,REDACTED
Adult Social Care,Adult u65 Phys/Sensory Impair,PD EAST TEAM-Direct Payment,Third Party Payments,Private Contractors,Direct Payments,7/13/2011,720,894.60,Revenue,REDACTED
Adult Social Care,Adult u65 Phys/Sensory Impair,PD WEST TEAM-Direct Payment,Third Party Payments,Private Contractors,Direct Payments,7/13/2011,721,766.80,Revenue,REDACTED
Adult Social Care,Older People 65&Over inc OP-MH,OP East -Direct Payment Scheme,Third Party Payments,Private Contractors,Direct Payments,7/13/2011,722,692.24,Revenue,REDACTED
Adult Social Care,Older People 65&Over inc OP-MH,OP East -Direct Payment Scheme,Third Party Payments,Private Contractors,Direct Payments,7/13/2011,723,593.60,Revenue,REDACTED
Adult Social Care,Adlt u65 Learning Disabilities,LD Direct Payment Scheme,Third Party Payments,Private Contractors,Direct Payments,7/13/2011,724,894.60,Revenue,REDACTED
Adult Social Care,Adult u65 Phys/Sensory Impair,PD EAST TEAM-Direct Payment,Third Party Payments,Private Contractors,Direct Payments,7/13/2011,725,958.48,Revenue,REDACTED
Adult Social Care,Older People 65&Over inc OP-MH,OP West -Direct Payment Scheme,Third Party Payments,Private Contractors,Direct Payments,7/13/2011,726,"1,565.56",Revenue,REDACTED
Adult Social Care,Adult u65 Phys/Sensory Impair,PD EAST TEAM-Direct Payment,Third Party Payments,Private Contractors,Direct Payments,7/13/2011,727,724.20,Revenue,REDACTED
Adult Social Care,Adlt u65 Learning Disabilities,LD Direct Payment Scheme,Third Party Payments,Private Contractors,Direct Payments,7/13/2011,728,596.80,Revenue,REDACTED
Adult Social Care,Older People 65&Over inc OP-MH,OP East -Direct Payment Scheme,Third Party Payments,Private Contractors,Direct Payments,7/13/2011,729,745.52,Revenue,REDACTED
Adult Social Care,Adlt u65 Learning Disabilities,LD Direct Payment Scheme,Third Party Payments,Private Contractors,Direct Payments,7/13/2011,730,"2,635.20",Revenue,REDACTED
Adult Social Care,Older People 65&Over inc OP-MH,OP West -Direct Payment Scheme,Third Party Payments,Private Contractors,Direct Payments,7/13/2011,731,555.72,Revenue,REDACTED
Adult Social Care,Adult u65 Phys/Sensory Impair,PD WEST TEAM-Direct Payment,Third Party Payments,Private Contractors,Direct Payments,7/13/2011,732,665.40,Revenue,REDACTED
Adult Social Care,Adult u65 Mental Health Needs,MH Direct Payment Scheme- West,Third Party Payments,Private Contractors,Direct Payments,7/13/2011,733,986.60,Revenue,REDACTED
Adult Social Care,Older People 65&Over inc OP-MH,OP East -Direct Payment Scheme,Third Party Payments,Private Contractors,Direct Payments,7/13/2011,734,596.40,Revenue,REDACTED
Adult Social Care,Adult u65 Phys/Sensory Impair,PD EAST TEAM-Direct Payment,Third Party Payments,Private Contractors,Direct Payments,7/13/2011,735,724.20,Revenue,REDACTED
Adult Social Care,Older People 65&Over inc OP-MH,OP West -Direct Payment Scheme,Third Party Payments,Private Contractors,Direct Payments,7/13/2011,736,"1,119.60",Revenue,REDACTED
Adult Social Care,Older People 65&Over inc OP-MH,OP East -Direct Payment Scheme,Third Party Payments,Private Contractors,Direct Payments,7/13/2011,737,"3,230.76",Revenue,REDACTED
Adult Social Care,Older People 65&Over inc OP-MH,OP West -Direct Payment Scheme,Third Party Payments,Private Contractors,Direct Payments,7/13/2011,738,596.40,Revenue,REDACTED
Adult Social Care,Older People 65&Over inc OP-MH,OP Hosp -Direct Payment Scheme,Third Party Payments,Private Contractors,Direct Payments,7/13/2011,739,"1,192.80",Revenue,REDACTED
Adult Social Care,Older People 65&Over inc OP-MH,OP Hosp -Direct Payment Scheme,Third Party Payments,Private Contractors,Direct Payments,7/13/2011,740,"1,661.40",Revenue,REDACTED
Adult Social Care,Older People 65&Over inc OP-MH,OP East -Direct Payment Scheme,Third Party Payments,Private Contractors,Direct Payments,7/13/2011,741,"1,813.40",Revenue,REDACTED
Adult Social Care,Older People 65&Over inc OP-MH,OP East -Direct Payment Scheme,Third Party Payments,Private Contractors,Direct Payments,7/13/2011,742,"1,341.88",Revenue,REDACTED
Adult Social Care,Adlt u65 Learning Disabilities,LD Direct Payment Scheme,Third Party Payments,Private Contractors,Direct Payments,7/13/2011,743,565.04,Revenue,REDACTED
Adult Social Care,Adlt u65 Learning Disabilities,LD Direct Payment Scheme,Third Party Payments,Private Contractors,Direct Payments,7/13/2011,744,646.88,Revenue,REDACTED
Adult Social Care,Adult u65 Phys/Sensory Impair,PD EAST TEAM-Direct Payment,Third Party Payments,Private Contractors,Direct Payments,7/13/2011,745,596.40,Revenue,REDACTED
Childrens & Education Services,Children Looked After (24hrs+),CL Residential Care Homes CLA,Third Party Payments,Private Contractors,Miscellaneous Agency Services,7/13/2011,746,"12,075.56",Revenue,REDACTED
Childrens & Education Services,Children Looked After (24hrs+),CL Independent Fostering,Supplies and Services,Services,Task Based Fostering,7/13/2011,747,"5,520.00",Revenue,CHILDREN OF COLOUR
Childrens & Education Services,Children Looked After (24hrs+),CL Independent Fostering,Supplies and Services,Services,Task Based Fostering,7/13/2011,748,"6,400.00",Revenue,CHILDREN OF COLOUR
Childrens & Education Services,Children Looked After (24hrs+),CL Independent Fostering,Supplies and Services,Services,Task Based Fostering,7/13/2011,749,"6,560.00",Revenue,CHILDREN OF COLOUR
Childrens & Education Services,Children Looked After (24hrs+),CL Independent Fostering,Supplies and Services,Services,Long Term Fostering,7/13/2011,750,"2,877.60",Revenue,FOSTERPLUS LTD
Childrens & Education Services,Children Looked After (24hrs+),CL Independent Fostering,Supplies and Services,Services,Long Term Fostering,7/13/2011,751,"2,811.30",Revenue,FOSTER CARE ASSOCIATES LTD
Childrens & Education Services,Children Looked After (24hrs+),CL Independent Fostering,Supplies and Services,Services,Task Based Fostering,7/13/2011,752,"6,690.60",Revenue,HILLCREST CARE LTD
Childrens & Education Services,Children Looked After (24hrs+),CL Independent Fostering,Supplies and Services,Services,Task Based Fostering,7/13/2011,753,"6,954.00",Revenue,HILLCREST CARE LTD
Childrens & Education Services,Children Looked After (24hrs+),CL Independent Fostering,Supplies and Services,Services,Task Based Fostering,7/13/2011,754,"6,690.60",Revenue,HILLCREST CARE LTD
Childrens & Education Services,Children Looked After (24hrs+),CL Independent Fostering,Supplies and Services,Services,Task Based Fostering,7/13/2011,755,896.32,Revenue,KINDERCARE FOSTERING
Childrens & Education Services,Children Looked After (24hrs+),CL Independent Fostering,Supplies and Services,Services,Task Based Fostering,7/13/2011,756,"9,600.00",Revenue,NEXT STEP FOSTERING SERV'S LTD
Childrens & Education Services,Children Looked After (24hrs+),CL Independent Fostering,Supplies and Services,Services,Task Based Fostering,7/13/2011,757,"1,569.26",Revenue,CORNERWAYS FOSTERING SERV.LTD
Childrens & Education Services,Children Looked After (24hrs+),CL Independent Fostering,Supplies and Services,Services,Task Based Fostering,7/13/2011,758,"1,569.26",Revenue,CORNERWAYS FOSTERING SERV.LTD
Adult Social Care,Older People 65&Over inc OP-MH,OP West - Home Care External,Third Party Payments,Private Contractors,Miscellaneous Agency Services,7/13/2011,759,"2,078.82",Revenue,COMPASSIONATE CARING AGENCY UK
Adult Social Care,Older People 65&Over inc OP-MH,OP West - Home Care External,Third Party Payments,Private Contractors,Miscellaneous Agency Services,7/13/2011,760,"2,196.55",Revenue,COMPASSIONATE CARING AGENCY UK
Adult Social Care,Older People 65&Over inc OP-MH,OP West - Home Care External,Third Party Payments,Private Contractors,Miscellaneous Agency Services,7/13/2011,761,"2,068.32",Revenue,COMPASSIONATE CARING AGENCY UK
Adult Social Care,Older People 65&Over inc OP-MH,OP West - Home Care External,Third Party Payments,Private Contractors,Miscellaneous Agency Services,7/13/2011,762,"1,429.35",Revenue,COMPASSIONATE CARING AGENCY UK
Adult Social Care,Older People 65&Over inc OP-MH,OP East - Home Care External,Third Party Payments,Private Contractors,Miscellaneous Agency Services,7/13/2011,763,633.83,Revenue,COMPASSIONATE CARING AGENCY UK
Adult Social Care,Older People 65&Over inc OP-MH,OP West - Home Care External,Third Party Payments,Private Contractors,Miscellaneous Agency Services,7/13/2011,764,"2,036.82",Revenue,COMPASSIONATE CARING AGENCY UK
Adult Social Care,Older People 65&Over inc OP-MH,OP Hosp - Home Care External,Third Party Payments,Private Contractors,Miscellaneous Agency Services,7/13/2011,765,"1,613.34",Revenue,COMPASSIONATE CARING AGENCY UK
Adult Social Care,Older People 65&Over inc OP-MH,OP East - Home Care External,Third Party Payments,Private Contractors,Miscellaneous Agency Services,7/13/2011,766,"1,956.76",Revenue,COMPASSIONATE CARING AGENCY UK
Adult Social Care,Adult u65 Phys/Sensory Impair,PD EAST TEAM-Homecare,Third Party Payments,Private Contractors,Miscellaneous Agency Services,7/13/2011,767,"1,056.09",Revenue,COMPASSIONATE CARING AGENCY UK
Adult Social Care,Older People 65&Over inc OP-MH,OP East - Home Care External,Third Party Payments,Private Contractors,Miscellaneous Agency Services,7/13/2011,768,"1,849.18",Revenue,COMPASSIONATE CARING AGENCY UK
Adult Social Care,Adult u65 Phys/Sensory Impair,PD EAST TEAM-Homecare,Third Party Payments,Private Contractors,Miscellaneous Agency Services,7/13/2011,769,678.84,Revenue,ENARA COMMUNITY CARE
Adult Social Care,Older People 65&Over inc OP-MH,OP East - Carer Services,Third Party Payments,Private Contractors,Miscellaneous Agency Services,7/13/2011,770,971.92,Revenue,ENARA COMMUNITY CARE
Adult Social Care,Adult u65 Phys/Sensory Impair,PD WEST TEAM-Homecare,Third Party Payments,Private Contractors,Miscellaneous Agency Services,7/13/2011,771,"4,886.30",Revenue,ENARA COMMUNITY CARE
Adult Social Care,Older People 65&Over inc OP-MH,OP West - Home Care External,Third Party Payments,Private Contractors,Miscellaneous Agency Services,7/13/2011,772,"8,063.08",Revenue,ENARA COMMUNITY CARE
Adult Social Care,Older People 65&Over inc OP-MH,OP East - Home Care External,Third Party Payments,Private Contractors,Miscellaneous Agency Services,7/13/2011,773,"12,721.73",Revenue,ENARA COMMUNITY CARE
Childrens & Education Services,Children's Services - C & S W,CL IndepAssess Expert Witness,Third Party Payments,Private Contractors,Miscellaneous Agency Services,7/13/2011,774,"1,100.00",Revenue,REDACTED
Childrens & Education Services,Family Support Services,CS Direct Payments,Third Party Payments,Private Contractors,Direct Payments,7/13/2011,775,766.80,Revenue,REDACTED
Childrens & Education Services,Family Support Services,CS Direct Payments,Third Party Payments,Private Contractors,Direct Payments,7/13/2011,776,958.50,Revenue,REDACTED
Childrens & Education Services,Family Support Services,CS Direct Payments,Third Party Payments,Private Contractors,Direct Payments,7/13/2011,777,639.00,Revenue,REDACTED
Adult Social Care,Adlt u65 Learning Disabilities,LD Direct Payment Scheme,Third Party Payments,Private Contractors,Direct Payments,7/13/2011,778,"1,278.00",Revenue,REDACTED
Adult Social Care,Adult u65 Phys/Sensory Impair,PD EAST TEAM-Direct Payment,Third Party Payments,Private Contractors,Direct Payments,7/13/2011,779,681.60,Revenue,REDACTED
Adult Social Care,Adult u65 Phys/Sensory Impair,PD EAST TEAM-Direct Payment,Third Party Payments,Private Contractors,Direct Payments,7/13/2011,780,"2,363.00",Revenue,REDACTED
Adult Social Care,Adlt u65 Learning Disabilities,LD Direct Payment Scheme,Third Party Payments,Private Contractors,Direct Payments,7/13/2011,781,852.00,Revenue,REDACTED
Adult Social Care,Older People 65&Over inc OP-MH,OP Hosp -Direct Payment Scheme,Customer and client receipts,Charges,Bd&Acc-contrib coll by home X,7/13/2011,782,-579.08,Revenue,REDACTED
Adult Social Care,Older People 65&Over inc OP-MH,OP Hosp -Direct Payment Scheme,Third Party Payments,Private Contractors,Direct Payments,7/13/2011,783,"2,515.12",Revenue,REDACTED
Adult Social Care,Older People 65&Over inc OP-MH,OP East -Direct Payment Scheme,Third Party Payments,Private Contractors,Direct Payments,7/13/2011,784,"1,533.60",Revenue,REDACTED
Adult Social Care,Older People 65&Over inc OP-MH,OP West -Direct Payment Scheme,Third Party Payments,Private Contractors,Direct Payments,7/13/2011,785,"1,584.20",Revenue,REDACTED
Adult Social Care,Adlt u65 Learning Disabilities,LD Direct Payment Scheme,Third Party Payments,Private Contractors,Direct Payments,7/13/2011,786,"2,275.64",Revenue,REDACTED
Adult Social Care,Adult u65 Phys/Sensory Impair,PD WEST TEAM-Direct Payment,Third Party Payments,Private Contractors,Direct Payments,7/13/2011,787,596.40,Revenue,REDACTED
Adult Social Care,Older People 65&Over inc OP-MH,OP West -Direct Payment Scheme,Third Party Payments,Private Contractors,Direct Payments,7/13/2011,788,695.28,Revenue,REDACTED
Adult Social Care,Adlt u65 Learning Disabilities,LD Direct Payment Scheme,Third Party Payments,Private Contractors,Direct Payments,7/13/2011,789,"1,241.72",Revenue,REDACTED
Adult Social Care,Adlt u65 Learning Disabilities,LD Direct Payment Scheme,Third Party Payments,Private Contractors,Direct Payments,7/13/2011,790,668.72,Revenue,REDACTED
Adult Social Care,Adlt u65 Learning Disabilities,LD Direct Payment Scheme,Third Party Payments,Private Contractors,Direct Payments,7/13/2011,791,593.88,Revenue,REDACTED
Adult Social Care,Adult u65 Phys/Sensory Impair,PD WEST TEAM-Direct Payment,Third Party Payments,Private Contractors,Direct Payments,7/13/2011,792,881.60,Revenue,REDACTED
Adult Social Care,Adult u65 Phys/Sensory Impair,PD EAST TEAM-Direct Payment,Third Party Payments,Private Contractors,Direct Payments,7/13/2011,793,"2,301.80",Revenue,REDACTED
Adult Social Care,Older People 65&Over inc OP-MH,OP West -Direct Payment Scheme,Third Party Payments,Private Contractors,Direct Payments,7/13/2011,794,"1,911.60",Revenue,REDACTED
Adult Social Care,Older People 65&Over inc OP-MH,OP East -Direct Payment Scheme,Third Party Payments,Private Contractors,Direct Payments,7/13/2011,795,724.20,Revenue,REDACTED
Adult Social Care,Adult u65 Phys/Sensory Impair,PD EAST TEAM-Direct Payment,Third Party Payments,Private Contractors,Direct Payments,7/13/2011,796,"1,150.20",Revenue,REDACTED
Adult Social Care,Older People 65&Over inc OP-MH,OP East -Direct Payment Scheme,Third Party Payments,Private Contractors,Direct Payments,7/13/2011,797,"1,210.64",Revenue,REDACTED
Adult Social Care,Older People 65&Over inc OP-MH,OP West -Direct Payment Scheme,Third Party Payments,Private Contractors,Direct Payments,7/13/2011,798,691.96,Revenue,REDACTED
Adult Social Care,Older People 65&Over inc OP-MH,OP Hosp -Direct Payment Scheme,Third Party Payments,Private Contractors,Direct Payments,7/13/2011,799,"1,235.40",Revenue,REDACTED
Adult Social Care,Older People 65&Over inc OP-MH,OP East -Direct Payment Scheme,Third Party Payments,Private Contractors,Direct Payments,7/13/2011,800,769.20,Revenue,REDACTED
Adult Social Care,Older People 65&Over inc OP-MH,OP East -Direct Payment Scheme,Third Party Payments,Private Contractors,Direct Payments,7/13/2011,801,779.60,Revenue,REDACTED
Adult Social Care,Adlt u65 Learning Disabilities,LD Direct Payment Scheme,Third Party Payments,Private Contractors,Direct Payments,7/13/2011,802,532.48,Revenue,REDACTED
Adult Social Care,Older People 65&Over inc OP-MH,OP East - Residential Care Ext,Third Party Payments,Private Contractors,Miscellaneous Agency Services,7/13/2011,803,"6,310.79",Revenue,CARTER HOUSE
Adult Social Care,Adult u65 Mental Health Needs,MH ResidentialCare Ext-Morden,Third Party Payments,Private Contractors,Miscellaneous Agency Services,7/14/2011,804,"1,028.57",Revenue,ABBEY HOUSE RESIDENTIAL HOMES
Adult Social Care,Adlt u65 Learning Disabilities,LD Residential Care External,Third Party Payments,Private Contractors,Miscellaneous Agency Services,7/14/2011,805,"4,992.52",Revenue,ASHBROOK HOUSE
Adult Social Care,Adlt u65 Learning Disabilities,LD Residential Care External,Third Party Payments,Private Contractors,Miscellaneous Agency Services,7/14/2011,806,"4,157.24",Revenue,ASHINGTON HOUSE
Adult Social Care,Older People 65&Over inc OP-MH,OP East - Residential Care Ext,Third Party Payments,Private Contractors,Miscellaneous Agency Services,7/14/2011,807,"3,860.00",Revenue,ATHOL HOUSE
Adult Social Care,Older People 65&Over inc OP-MH,OP East - Residential Care Ext,Third Party Payments,Private Contractors,Miscellaneous Agency Services,7/14/2011,808,"1,680.00",Revenue,BELL MEMORIAL HOME
Adult Social Care,Older People 65&Over inc OP-MH,OP East - Residential Care Ext,Third Party Payments,Private Contractors,Miscellaneous Agency Services,7/14/2011,809,"1,873.20",Revenue,BETHUNE COURT
Adult Social Care,Adult u65 Mental Health Needs,MH ResidentialCare Ext-Morden,Third Party Payments,Private Contractors,Miscellaneous Agency Services,7/14/2011,810,"2,321.90",Revenue,BROOKDALE HEALTH CARE
Adult Social Care,Adult u65 Mental Health Needs,MH Nursing Care - Morden,Third Party Payments,Private Contractors,Miscellaneous Agency Services,7/14/2011,811,"3,480.58",Revenue,BROOME PARK NURSING HOME
Adult Social Care,Older People 65&Over inc OP-MH,OP East - Residential Care Ext,Third Party Payments,Private Contractors,Miscellaneous Agency Services,7/14/2011,812,"1,992.85",Revenue,CHASE HOUSE REST HOME
Adult Social Care,Older People 65&Over inc OP-MH,OP East - Residential Care Ext,Third Party Payments,Private Contractors,Miscellaneous Agency Services,7/14/2011,813,"2,086.84",Revenue,CHURCH FARM RESIDENTIAL HOME
Adult Social Care,Older People 65&Over inc OP-MH,OP Hosp - Nursing Care,Third Party Payments,Private Contractors,Miscellaneous Agency Services,7/14/2011,814,"2,755.04",Revenue,CRNH LTD
Adult Social Care,Older People 65&Over inc OP-MH,OP Hosp - Nursing Care,Third Party Payments,Private Contractors,Miscellaneous Agency Services,7/14/2011,815,"2,755.04",Revenue,CRNH LTD
Adult Social Care,Older People 65&Over inc OP-MH,OP Hosp - Nursing Care,Third Party Payments,Private Contractors,Miscellaneous Agency Services,7/14/2011,816,"2,341.84",Revenue,CRNH LTD
Adult Social Care,Older People 65&Over inc OP-MH,OP Hosp - Nursing Care,Third Party Payments,Private Contractors,Miscellaneous Agency Services,7/14/2011,817,"2,341.84",Revenue,CRNH LTD
Adult Social Care,Adult u65 Mental Health Needs,MH Res Care Ext- Mitcham West,Third Party Payments,Private Contractors,Miscellaneous Agency Services,7/14/2011,818,"5,681.56",Revenue,COMMUNITY CARE SOLUTIONS LTD
Adult Social Care,Older People 65&Over inc OP-MH,OP West - Nursing Care,Customer and client receipts,Charges,Miscellaneous Charges X,7/14/2011,819,-579.76,Revenue,GRACE MANOR NURSING HOME
Adult Social Care,Older People 65&Over inc OP-MH,OP West - Nursing Care,Third Party Payments,Private Contractors,Miscellaneous Agency Services,7/14/2011,820,"2,232.84",Revenue,GRACE MANOR NURSING HOME
Adult Social Care,Older People 65&Over inc OP-MH,OP West - Nursing Care,Third Party Payments,Private Contractors,Miscellaneous Agency Services,7/14/2011,821,"2,341.84",Revenue,LYNTON HALL NURSING HOME
Adult Social Care,Adlt u65 Learning Disabilities,LD Residential Care External,Third Party Payments,Private Contractors,Miscellaneous Agency Services,7/14/2011,822,"3,451.00",Revenue,HAYDON PARK LODGE
Adult Social Care,Adult u65 Phys/Sensory Impair,PD WEST TEAM-Residential Care,Third Party Payments,Private Contractors,Miscellaneous Agency Services,7/14/2011,823,"4,149.44",Revenue,HOTHFIELD MANOR FSHC
Adult Social Care,Older People 65&Over inc OP-MH,OP West - Residential Care Ext,Customer and client receipts,Charges,Miscellaneous Charges X,7/14/2011,824,-866.32,Revenue,THE ABBEYFIELD SOCIETY
Adult Social Care,Older People 65&Over inc OP-MH,OP West - Residential Care Ext,Third Party Payments,Private Contractors,Miscellaneous Agency Services,7/14/2011,825,"1,616.44",Revenue,THE ABBEYFIELD SOCIETY
Adult Social Care,Older People 65&Over inc OP-MH,OP West - Residential Care Ext,Customer and client receipts,Charges,Miscellaneous Charges X,7/14/2011,826,-866.32,Revenue,THE ABBEYFIELD SOCIETY
Adult Social Care,Older People 65&Over inc OP-MH,OP West - Residential Care Ext,Third Party Payments,Private Contractors,Miscellaneous Agency Services,7/14/2011,827,"1,616.44",Revenue,THE ABBEYFIELD SOCIETY
Adult Social Care,Older People 65&Over inc OP-MH,OP West - Residential Care Ext,Third Party Payments,Private Contractors,Miscellaneous Agency Services,7/14/2011,828,"1,812.40",Revenue,THE ABBEYFIELD SOCIETY
Adult Social Care,Older People 65&Over inc OP-MH,OP West - Nursing Care,Customer and client receipts,Charges,Bd&Acc-contrib coll by home X,7/15/2011,829,"-2,185.92",Revenue,NAZARETH HOUSE
Adult Social Care,Older People 65&Over inc OP-MH,OP West - Nursing Care,Third Party Payments,Private Contractors,Miscellaneous Agency Services,7/15/2011,830,"4,560.00",Revenue,NAZARETH HOUSE
Adult Social Care,Adult u65 Phys/Sensory Impair,PD EAST TEAM-Residential,Third Party Payments,Private Contractors,Miscellaneous Agency Services,7/14/2011,831,"5,068.72",Revenue,RNIB REDHILL COLLEGE
Adult Social Care,Older People 65&Over inc OP-MH,OP West - Residential Care Ext,Third Party Payments,Private Contractors,Miscellaneous Agency Services,7/14/2011,832,"2,400.00",Revenue,RUTLAND HOME
Adult Social Care,Older People 65&Over inc OP-MH,OP Hosp - Residential Care Ext,Third Party Payments,Private Contractors,Miscellaneous Agency Services,7/14/2011,833,"1,920.00",Revenue,LITTLE SISTERS OF THE POOR
Adult Social Care,Older People 65&Over inc OP-MH,OP West - Nursing Care,Third Party Payments,Private Contractors,Miscellaneous Agency Services,7/15/2011,834,"2,400.00",Revenue,ST TERESA`S HOME FORTHE ELDER
Adult Social Care,Older People 65&Over inc OP-MH,OP West - Residential Care Ext,Third Party Payments,Private Contractors,Miscellaneous Agency Services,7/15/2011,835,"2,341.84",Revenue,ST TERESA`S HOME FORTHE ELDER
Adult Social Care,Older People 65&Over inc OP-MH,OP West - Nursing Care,Third Party Payments,Private Contractors,Miscellaneous Agency Services,7/15/2011,836,"2,199.12",Revenue,ST TERESA`S HOME FORTHE ELDER
Adult Social Care,Older People 65&Over inc OP-MH,OP West - Residential Care Ext,Third Party Payments,Private Contractors,Miscellaneous Agency Services,7/15/2011,837,"1,888.16",Revenue,ST TERESA`S HOME FORTHE ELDER
Adult Social Care,Older People 65&Over inc OP-MH,OP Hosp - Nursing Care,Third Party Payments,Private Contractors,Miscellaneous Agency Services,7/14/2011,838,"2,757.44",Revenue,SUTTON COURT CARE CENTRE
Adult Social Care,Older People 65&Over inc OP-MH,OP East - Nursing Care,Third Party Payments,Private Contractors,Miscellaneous Agency Services,7/14/2011,839,"2,552.88",Revenue,SUTTON COURT CARE CENTRE
Adult Social Care,Older People 65&Over inc OP-MH,OP Hosp - Nursing Care,Third Party Payments,Private Contractors,Miscellaneous Agency Services,7/14/2011,840,"2,341.84",Revenue,SUTTON COURT CARE CENTRE
Adult Social Care,Adult u65 Phys/Sensory Impair,PS Nursing Care - NRTPF,Third Party Payments,Private Contractors,Miscellaneous Agency Services,7/14/2011,841,"2,341.84",Revenue,SUTTON COURT CARE CENTRE
Adult Social Care,Older People 65&Over inc OP-MH,OP West - Residential Care Ext,Third Party Payments,Private Contractors,Miscellaneous Agency Services,7/14/2011,842,"2,200.00",Revenue,THRESHFIELD CRT NURSING HOME
Adult Social Care,Older People 65&Over inc OP-MH,OP East - Residential Care Ext,Third Party Payments,Private Contractors,Miscellaneous Agency Services,7/15/2011,843,"1,551.84",Revenue,WILLETT LODGE
Childrens & Education Services,Family Support Services,CS Referral & Assessment Sec17,Transfer Payments,Adult Soc Servs Clients,Childr Act 1989 S17,7/14/2011,844,"1,285.50",Revenue,ADMINLAND LTD
Adult Social Care,Adult u65 Mental Health Needs,MH Adult PlacementCont-MitWest,Third Party Payments,Private Contractors,Accommodation Based Support,7/14/2011,845,"1,000.00",Revenue,REDACTED
Adult Social Care,Adult u65 Mental Health Needs,MH Res Care Ext- Mitcham West,Third Party Payments,Private Contractors,Miscellaneous Agency Services,7/14/2011,846,"2,214.33",Revenue,BIBBY FACTORS SLOUGH LTD
Adult Social Care,Older People 65&Over inc OP-MH,OP West - Carer Services,Third Party Payments,Private Contractors,Miscellaneous Agency Services,7/14/2011,847,602.22,Revenue,ALPENBEST LIMITED
Adult Social Care,Older People 65&Over inc OP-MH,OP Hosp - Home Care External,Third Party Payments,Private Contractors,Miscellaneous Agency Services,7/14/2011,848,663.46,Revenue,ALPENBEST LIMITED
Adult Social Care,Adult u65 Phys/Sensory Impair,PD WEST TEAM-Homecare,Third Party Payments,Private Contractors,Miscellaneous Agency Services,7/14/2011,849,919.49,Revenue,ALPENBEST LIMITED
Adult Social Care,Older People 65&Over inc OP-MH,OP East - Home Care External,Third Party Payments,Private Contractors,Miscellaneous Agency Services,7/14/2011,850,"4,869.65",Revenue,ALPENBEST LIMITED
Adult Social Care,Older People 65&Over inc OP-MH,OP West - Home Care External,Third Party Payments,Private Contractors,Miscellaneous Agency Services,7/14/2011,851,"7,143.56",Revenue,ALPENBEST LIMITED
Adult Social Care,Older People 65&Over inc OP-MH,OP West - Carer Services,Third Party Payments,Private Contractors,Miscellaneous Agency Services,7/14/2011,852,533.00,Revenue,ALPENBEST LIMITED
Adult Social Care,Older People 65&Over inc OP-MH,OP Hosp - Home Care External,Third Party Payments,Private Contractors,Miscellaneous Agency Services,7/14/2011,853,607.80,Revenue,ALPENBEST LIMITED
Adult Social Care,Adult u65 Phys/Sensory Impair,PD WEST TEAM-Homecare,Third Party Payments,Private Contractors,Miscellaneous Agency Services,7/14/2011,854,"1,490.23",Revenue,ALPENBEST LIMITED
Adult Social Care,Older People 65&Over inc OP-MH,OP East - Home Care External,Third Party Payments,Private Contractors,Miscellaneous Agency Services,7/14/2011,855,"3,925.32",Revenue,ALPENBEST LIMITED
Adult Social Care,Older People 65&Over inc OP-MH,OP West - Home Care External,Third Party Payments,Private Contractors,Miscellaneous Agency Services,7/14/2011,856,"6,635.13",Revenue,ALPENBEST LIMITED
Adult Social Care,Older People 65&Over inc OP-MH,OP West - Carer Services,Third Party Payments,Private Contractors,Miscellaneous Agency Services,7/14/2011,857,551.70,Revenue,ALPENBEST LIMITED
Adult Social Care,Adult u65 Phys/Sensory Impair,PD WEST TEAM-Homecare,Third Party Payments,Private Contractors,Miscellaneous Agency Services,7/14/2011,858,"1,495.95",Revenue,ALPENBEST LIMITED
Adult Social Care,Older People 65&Over inc OP-MH,OP East - Home Care External,Third Party Payments,Private Contractors,Miscellaneous Agency Services,7/14/2011,859,"4,286.43",Revenue,ALPENBEST LIMITED
Adult Social Care,Older People 65&Over inc OP-MH,OP West - Home Care External,Third Party Payments,Private Contractors,Miscellaneous Agency Services,7/14/2011,860,"6,534.85",Revenue,ALPENBEST LIMITED
Adult Social Care,Older People 65&Over inc OP-MH,OP West - Carer Services,Third Party Payments,Private Contractors,Miscellaneous Agency Services,7/14/2011,861,551.70,Revenue,ALPENBEST LIMITED
Adult Social Care,Adult u65 Phys/Sensory Impair,PD WEST TEAM-Homecare,Third Party Payments,Private Contractors,Miscellaneous Agency Services,7/14/2011,862,"1,748.72",Revenue,ALPENBEST LIMITED
Adult Social Care,Older People 65&Over inc OP-MH,OP East - Home Care External,Third Party Payments,Private Contractors,Miscellaneous Agency Services,7/14/2011,863,"4,411.05",Revenue,ALPENBEST LIMITED
Adult Social Care,Older People 65&Over inc OP-MH,OP West - Home Care External,Third Party Payments,Private Contractors,Miscellaneous Agency Services,7/14/2011,864,"7,120.75",Revenue,ALPENBEST LIMITED
Adult Social Care,Adlt u65 Learning Disabilities,LD Day Care Agency,Third Party Payments,Private Contractors,Miscellaneous Agency Services,7/14/2011,865,954.08,Revenue,BRIGSTOCK ACTIVITY CENTRE
Adult Social Care,Adult u65 Phys/Sensory Impair,PD EAST TEAM-Homecare,Third Party Payments,Private Contractors,Miscellaneous Agency Services,7/14/2011,866,664.91,Revenue,COMMUNITY HOME CARE PROVIDER
Adult Social Care,Older People 65&Over inc OP-MH,OP East - Carer Services,Third Party Payments,Private Contractors,Miscellaneous Agency Services,7/14/2011,867,694.73,Revenue,COMMUNITY HOME CARE PROVIDER
Adult Social Care,Older People 65&Over inc OP-MH,OP East - Home Care External,Third Party Payments,Private Contractors,Miscellaneous Agency Services,7/14/2011,868,"1,189.56",Revenue,COMMUNITY HOME CARE PROVIDER
Adult Social Care,Adlt u65 Learning Disabilities,LD Home Care External,Third Party Payments,Private Contractors,Miscellaneous Agency Services,7/14/2011,869,"3,140.08",Revenue,ODYSSEY CARE SOLUTIONS
Adult Social Care,Adlt u65 Learning Disabilities,LD Comm -Home Care-Surrey Oak,Third Party Payments,Private Contractors,Miscellaneous Agency Services,7/14/2011,870,"7,200.00",Revenue,PRECIOUS HOMES LTD
Adult Social Care,Adlt u65 Learning Disabilities,LD Home Care External,Third Party Payments,Private Contractors,Miscellaneous Agency Services,7/14/2011,871,"7,200.00",Revenue,PRECIOUS HOMES LTD
Adult Social Care,Adult u65 Phys/Sensory Impair,PD EAST TEAM-Homecare,Third Party Payments,Private Contractors,Miscellaneous Agency Services,7/14/2011,872,867.60,Revenue,RNIB REDHILL COLLEGE
Adult Social Care,Adult u65 Phys/Sensory Impair,PD EAST TEAM-Homecare,Third Party Payments,Private Contractors,Miscellaneous Agency Services,7/14/2011,873,684.00,Revenue,SWEET TREE HOME CARE SERVICES
Adult Social Care,Adlt u65 Learning Disabilities,LD Day Care Agency,Third Party Payments,Private Contractors,Miscellaneous Agency Services,7/14/2011,874,708.00,Revenue,WORKSHOP 305
Adult Social Care,Older People 65&Over inc OP-MH,OP East - Residential Care Ext,Third Party Payments,Private Contractors,Miscellaneous Agency Services,7/15/2011,875,"1,526.60",Revenue,FAIRFIELDS HOUSE LTD
Adult Social Care,Older People 65&Over inc OP-MH,OP West - Residential Care Ext,Third Party Payments,Private Contractors,Miscellaneous Agency Services,7/15/2011,876,"1,784.20",Revenue,SOUTHPARK RESIDENTIAL HOME
Adult Social Care,Older People 65&Over inc OP-MH,OP East - Residential Care Ext,Third Party Payments,Private Contractors,Miscellaneous Agency Services,7/15/2011,877,"1,703.44",Revenue,SOUTHPARK RESIDENTIAL HOME
Adult Social Care,Older People 65&Over inc OP-MH,OP West - Residential Care Ext,Third Party Payments,Private Contractors,Miscellaneous Agency Services,7/15/2011,878,"1,812.40",Revenue,SOUTHPARK RESIDENTIAL HOME
Adult Social Care,Older People 65&Over inc OP-MH,OP West - Residential Care Ext,Third Party Payments,Private Contractors,Miscellaneous Agency Services,7/15/2011,879,"2,000.00",Revenue,SOUTHPARK RESIDENTIAL HOME
Adult Social Care,Older People 65&Over inc OP-MH,OP Hosp - Residential Care Ext,Third Party Payments,Private Contractors,Miscellaneous Agency Services,7/15/2011,880,"2,160.40",Revenue,SOUTHVIEW CARE HOME
Adult Social Care,Adult u65 Phys/Sensory Impair,PD EAST TEAM-Direct Payment,Third Party Payments,Private Contractors,Direct Payments,7/15/2011,881,"2,297.08",Revenue,REDACTED
Adult Social Care,Older People 65&Over inc OP-MH,OP East -Direct Payment Scheme,Third Party Payments,Private Contractors,Direct Payments,7/15/2011,882,565.38,Revenue,REDACTED
Adult Social Care,Adlt u65 Learning Disabilities,LD Direct Payment Scheme,Third Party Payments,Private Contractors,Direct Payments,7/15/2011,883,"2,156.10",Revenue,REDACTED
Childrens & Education Services,Family Support Services,CS Day Care CWD,Third Party Payments,Private Contractors,Playscheme,7/15/2011,884,"1,159.00",Revenue,ST JOSEPHS SCHOOL
Adult Social Care,Older People 65&Over inc OP-MH,OP East -Direct Payment Scheme,Third Party Payments,Private Contractors,Direct Payments,7/15/2011,885,863.83,Revenue,REDACTED
Adult Social Care,Adlt u65 Learning Disabilities,LD Home Care External,Third Party Payments,Private Contractors,Miscellaneous Agency Services,7/18/2011,886,"4,140.00",Revenue,THE REGARD PARTNERSHIP LTD
Adult Social Care,Older People 65&Over inc OP-MH,OP Hosp - Residential Care Ext,Third Party Payments,Private Contractors,Miscellaneous Agency Services,7/15/2011,887,"1,800.00",Revenue,EDMUND HOUSE
Adult Social Care,Older People 65&Over inc OP-MH,OP East - Nursing Care,Third Party Payments,Private Contractors,Miscellaneous Agency Services,7/15/2011,888,"2,176.64",Revenue,GGIBSON LODGE NURSING HOME
Adult Social Care,Adlt u65 Learning Disabilities,LD Residential Care External,Third Party Payments,Private Contractors,Miscellaneous Agency Services,7/15/2011,889,"2,853.92",Revenue,THE GRANGE & WALTON COTTAGE
Adult Social Care,Older People 65&Over inc OP-MH,OP East - Residential Care Ext,Third Party Payments,Private Contractors,Miscellaneous Agency Services,7/15/2011,890,"1,664.60",Revenue,KINGSDALE NURSING HOME
Adult Social Care,Adult u65 Mental Health Needs,MH ResidentialCare Ext - Wim,Third Party Payments,Private Contractors,Miscellaneous Agency Services,7/15/2011,891,"2,247.52",Revenue,QUALITY CARE CHOICE LTD
Adult Social Care,Adlt u65 Learning Disabilities,LD Residential Care External,Third Party Payments,Private Contractors,Miscellaneous Agency Services,7/18/2011,892,"7,618.16",Revenue,SOLAR CARE GROUP LTD - ROBINIA
Adult Social Care,Adlt u65 Learning Disabilities,LD Residential Care External,Third Party Payments,Private Contractors,Miscellaneous Agency Services,7/18/2011,893,"6,757.04",Revenue,SOLAR CARE GROUP LTD - ROBINIA
Adult Social Care,Older People 65&Over inc OP-MH,OP West - Nursing Care,Third Party Payments,Private Contractors,Miscellaneous Agency Services,7/15/2011,894,"2,341.84",Revenue,SUTTON COURT CARE CENTRE
Adult Social Care,Older People 65&Over inc OP-MH,OP West - Nursing Care,Third Party Payments,Private Contractors,Miscellaneous Agency Services,7/15/2011,895,"2,341.84",Revenue,SUTTON COURT CARE CENTRE
Adult Social Care,Older People 65&Over inc OP-MH,OP Hosp - Nursing Care,Third Party Payments,Private Contractors,Miscellaneous Agency Services,7/15/2011,896,"2,341.84",Revenue,SUTTON COURT CARE CENTRE
Adult Social Care,Older People 65&Over inc OP-MH,OP East - Nursing Care,Third Party Payments,Private Contractors,Miscellaneous Agency Services,7/15/2011,897,"2,341.84",Revenue,SUTTON COURT CARE CENTRE
Adult Social Care,Older People 65&Over inc OP-MH,OP Hosp - Nursing Care,Third Party Payments,Private Contractors,Miscellaneous Agency Services,7/15/2011,898,"2,341.84",Revenue,SUTTON COURT CARE CENTRE
Adult Social Care,Older People 65&Over inc OP-MH,OP Hosp - Nursing Care,Third Party Payments,Private Contractors,Miscellaneous Agency Services,7/15/2011,899,"2,341.84",Revenue,SUTTON COURT CARE CENTRE
Adult Social Care,Older People 65&Over inc OP-MH,OP Hosp - Nursing Care,Third Party Payments,Private Contractors,Miscellaneous Agency Services,7/15/2011,900,"-7,360.07",Revenue,SUTTON COURT CARE CENTRE
Adult Social Care,Older People 65&Over inc OP-MH,OP West - Nursing Care,Third Party Payments,Private Contractors,Miscellaneous Agency Services,7/15/2011,901,"9,701.91",Revenue,SUTTON COURT CARE CENTRE
Adult Social Care,Older People 65&Over inc OP-MH,OP West - Nursing Care,Third Party Payments,Private Contractors,Miscellaneous Agency Services,7/15/2011,902,"2,341.84",Revenue,SUTTON COURT CARE CENTRE
Adult Social Care,Older People 65&Over inc OP-MH,OP West - Nursing Care,Third Party Payments,Private Contractors,Miscellaneous Agency Services,7/15/2011,903,"2,341.84",Revenue,SUTTON COURT CARE CENTRE
Adult Social Care,Older People 65&Over inc OP-MH,OP East - Nursing Care,Third Party Payments,Private Contractors,Miscellaneous Agency Services,7/15/2011,904,"2,341.84",Revenue,SUTTON COURT CARE CENTRE
Adult Social Care,Older People 65&Over inc OP-MH,OP Hosp - Nursing Care,Third Party Payments,Private Contractors,Miscellaneous Agency Services,7/15/2011,905,"2,341.84",Revenue,SUTTON COURT CARE CENTRE
Adult Social Care,Older People 65&Over inc OP-MH,OP Hosp - Nursing Care,Third Party Payments,Private Contractors,Miscellaneous Agency Services,7/15/2011,906,"2,341.84",Revenue,SUTTON COURT CARE CENTRE
Adult Social Care,Older People 65&Over inc OP-MH,OP Hosp - Nursing Care,Third Party Payments,Private Contractors,Miscellaneous Agency Services,7/15/2011,907,"-2,592.75",Revenue,SUTTON COURT CARE CENTRE
Adult Social Care,Older People 65&Over inc OP-MH,OP East - Nursing Care,Third Party Payments,Private Contractors,Miscellaneous Agency Services,7/15/2011,908,"4,934.59",Revenue,SUTTON COURT CARE CENTRE
Adult Social Care,Older People 65&Over inc OP-MH,OP East - Residential Care Ext,Third Party Payments,Private Contractors,Miscellaneous Agency Services,7/15/2011,909,"1,806.12",Revenue,THORNTON LODGE
Adult Social Care,Adlt u65 Learning Disabilities,LD Home Care External,Third Party Payments,Private Contractors,Miscellaneous Agency Services,7/15/2011,910,655.30,Revenue,BEECH HOME CARE SERVICES
Childrens & Education Services,Other Ch's & Family Services,CL Leaving Care/Supp Lodgings,Third Party Payments,Private Contractors,Miscellaneous Agency Services,7/18/2011,911,"4,715.00",Revenue,THE ARTEMIS TEAM LIMITED
Childrens & Education Services,Children Looked After (24hrs+),CL Mother&BabyAssessment-Court,Third Party Payments,Private Contractors,Miscellaneous Agency Services,7/18/2011,912,"3,000.00",Revenue,REDACTED
Childrens & Education Services,Other Ch's & Family Services,CL Leaving Care/Supp Lodgings,Third Party Payments,Private Contractors,Miscellaneous Agency Services,7/20/2011,913,"1,222.30",Revenue,CROYDON CHURCHES HOUSING ASSOC
Childrens & Education Services,Other Ch's & Family Services,CL Leaving Care/Supp Lodgings,Third Party Payments,Private Contractors,Miscellaneous Agency Services,7/20/2011,914,"1,086.40",Revenue,CROYDON CHURCHES HOUSING ASSOC
Childrens & Education Services,Other Ch's & Family Services,CL Leaving Care/Supp Lodgings,Third Party Payments,Private Contractors,Miscellaneous Agency Services,7/20/2011,915,543.20,Revenue,CROYDON CHURCHES HOUSING ASSOC
Childrens & Education Services,Family Support Services,CS Day Care CWD,Third Party Payments,Private Contractors,Miscellaneous Agency Services,7/20/2011,916,850.00,Revenue,CHASE CHILDRENS HOSPICE SERVIC
Childrens & Education Services,Children Looked After (24hrs+),CL Independent Fostering,Supplies and Services,Services,Task Based Fostering,7/18/2011,917,"3,296.64",Revenue,CROHAM SERV.FOR CHILDREN LTD
Childrens & Education Services,Children Looked After (24hrs+),CL Independent Fostering,Supplies and Services,Services,Long Term Fostering,7/18/2011,918,"3,025.20",Revenue,KINDERCARE FOSTERING
Childrens & Education Services,Children Looked After (24hrs+),CL Independent Fostering,Supplies and Services,Services,Task Based Fostering,7/18/2011,919,"6,722.40",Revenue,KINDERCARE FOSTERING
Childrens & Education Services,Children Looked After (24hrs+),CL Independent Fostering,Supplies and Services,Services,Task Based Fostering,7/18/2011,920,"6,396.60",Revenue,KINDERCARE FOSTERING
Childrens & Education Services,Children Looked After (24hrs+),CL Independent Fostering,Supplies and Services,Services,Task Based Fostering,7/18/2011,921,"6,722.40",Revenue,KINDERCARE FOSTERING
Childrens & Education Services,Children Looked After (24hrs+),CL Independent Fostering,Supplies and Services,Services,Long Term Fostering,7/18/2011,922,"3,025.20",Revenue,KINDERCARE FOSTERING
Childrens & Education Services,Children Looked After (24hrs+),CL Independent Fostering,Supplies and Services,Services,Task Based Fostering,7/18/2011,923,"6,050.40",Revenue,KINDERCARE FOSTERING
Childrens & Education Services,Children Looked After (24hrs+),CL Independent Fostering,Supplies and Services,Services,Task Based Fostering,7/18/2011,924,"2,240.80",Revenue,KINDERCARE FOSTERING
Childrens & Education Services,Children Looked After (24hrs+),CL Independent Fostering,Supplies and Services,Services,Task Based Fostering,7/18/2011,925,"9,856.80",Revenue,OUTLOOK FOSTERING SERVICES LTD
Childrens & Education Services,Children Looked After (24hrs+),CL Independent Fostering,Supplies and Services,Services,Task Based Fostering,7/18/2011,926,"6,737.14",Revenue,ST CHRISTOPHERS FELLOWSHIP
Childrens & Education Services,Other Ch's & Family Services,CL Leaving Care/Supp Lodgings,Third Party Payments,Private Contractors,Supported Lodgings,7/18/2011,927,800.00,Revenue,REDACTED
Adult Social Care,Older People 65&Over inc OP-MH,OP East - Residential Care Ext,Third Party Payments,Private Contractors,Miscellaneous Agency Services,7/18/2011,928,"1,840.00",Revenue,CHARLTON HOUSE
Adult Social Care,Older People 65&Over inc OP-MH,OP Hosp - Nursing Care,Third Party Payments,Private Contractors,Miscellaneous Agency Services,7/20/2011,929,"5,770.96",Revenue,REDACTED
Adult Social Care,Adlt u65 Learning Disabilities,LD Supported Housing,Third Party Payments,Private Contractors,Miscellaneous Agency Services,7/18/2011,930,"3,160.00",Revenue,CRUSOE CARE RESIDENTIAL HOME
Adult Social Care,Adlt u65 Learning Disabilities,LD Residential Care External,Third Party Payments,Private Contractors,Miscellaneous Agency Services,7/18/2011,931,"5,288.04",Revenue,REDACTED
Adult Social Care,Adlt u65 Learning Disabilities,LD Residential Care External,Third Party Payments,Private Contractors,Miscellaneous Agency Services,7/18/2011,932,"5,717.76",Revenue,WINSLOW COURT
Adult Social Care,Older People 65&Over inc OP-MH,OP East - Residential Care Ext,Customer and client receipts,Charges,Miscellaneous Charges X,7/18/2011,933,"-1,162.92",Revenue,WOODLANDS
Adult Social Care,Older People 65&Over inc OP-MH,OP West - Nursing Care,Third Party Payments,Private Contractors,Miscellaneous Agency Services,7/18/2011,934,"7,658.64",Revenue,WOODLANDS
Adult Social Care,Older People 65&Over inc OP-MH,OP West - Residential Care Ext,Third Party Payments,Private Contractors,Miscellaneous Agency Services,7/18/2011,935,"12,705.48",Revenue,WOODLANDS
Adult Social Care,Older People 65&Over inc OP-MH,OP Hosp - Residential Care Ext,Third Party Payments,Private Contractors,Miscellaneous Agency Services,7/18/2011,936,"14,155.52",Revenue,WOODLANDS
Adult Social Care,Older People 65&Over inc OP-MH,OP East - Nursing Care,Third Party Payments,Private Contractors,Miscellaneous Agency Services,7/18/2011,937,"35,251.76",Revenue,WOODLANDS
Adult Social Care,Older People 65&Over inc OP-MH,OP East - Residential Care Ext,Third Party Payments,Private Contractors,Miscellaneous Agency Services,7/18/2011,938,"40,651.42",Revenue,WOODLANDS
Adult Social Care,Older People 65&Over inc OP-MH,OP East - Other services,Third Party Payments,Private Contractors,Miscellaneous Agency Services,7/20/2011,939,500.00,Revenue,REDACTED
Adult Social Care,Older People 65&Over inc OP-MH,OP East - Daycare,Third Party Payments,Private Contractors,Miscellaneous Agency Services,7/18/2011,940,"1,533.34",Revenue,WOODLANDS
Adult Social Care,Adlt u65 Learning Disabilities,LD Home Care External,Third Party Payments,Private Contractors,Miscellaneous Agency Services,7/18/2011,941,655.30,Revenue,BEECH HOME CARE SERVICES
Adult Social Care,Adult u65 Phys/Sensory Impair,PD EAST TEAM-Homecare,Third Party Payments,Private Contractors,Miscellaneous Agency Services,7/18/2011,942,664.62,Revenue,BELGRAVIA NURS. & CARE BUREAU
Adult Social Care,Adult u65 Phys/Sensory Impair,PD WEST TEAM-Homecare,Third Party Payments,Private Contractors,Miscellaneous Agency Services,7/18/2011,943,"1,700.00",Revenue,BELGRAVIA NURS. & CARE BUREAU
Adult Social Care,Adult u65 Phys/Sensory Impair,PD EAST TEAM-Homecare,Third Party Payments,Private Contractors,Miscellaneous Agency Services,7/18/2011,944,664.62,Revenue,BELGRAVIA NURS. & CARE BUREAU
Adult Social Care,Adult u65 Phys/Sensory Impair,PD WEST TEAM-Homecare,Third Party Payments,Private Contractors,Miscellaneous Agency Services,7/18/2011,945,850.00,Revenue,BELGRAVIA NURS. & CARE BUREAU
Adult Social Care,Adult u65 Phys/Sensory Impair,PD EAST TEAM-Homecare,Third Party Payments,Private Contractors,Miscellaneous Agency Services,7/18/2011,946,"1,172.08",Revenue,BESPOKE CARE SOLUTIONS LTD
Adult Social Care,Older People 65&Over inc OP-MH,OP East - Carer Services,Third Party Payments,Private Contractors,Miscellaneous Agency Services,7/20/2011,947,532.80,Revenue,CLASSIC HOME CARE SERVICES
Adult Social Care,Adlt u65 Learning Disabilities,LD Home Care External,Third Party Payments,Private Contractors,Miscellaneous Agency Services,7/18/2011,948,"7,649.70",Revenue,COMMUNITY HOME CARE PROVIDER
Adult Social Care,Adlt u65 Learning Disabilities,LD Day Care Agency,Third Party Payments,Private Contractors,Miscellaneous Agency Services,7/20/2011,949,954.10,Revenue,GRACE EYRE FOUNDATION
Adult Social Care,Adult u65 Phys/Sensory Impair,PD EAST TEAM-Homecare,Third Party Payments,Private Contractors,Miscellaneous Agency Services,7/18/2011,950,"1,434.56",Revenue,SANCTUARY HOME CARE
Adult Social Care,Older People 65&Over inc OP-MH,OP East - Home Care External,Third Party Payments,Private Contractors,Miscellaneous Agency Services,7/18/2011,951,"4,938.46",Revenue,SANCTUARY HOME CARE
Adult Social Care,Older People 65&Over inc OP-MH,OP West - Home Care External,Third Party Payments,Private Contractors,Miscellaneous Agency Services,7/18/2011,952,"25,044.09",Revenue,SANCTUARY HOME CARE
Adult Social Care,Older People 65&Over inc OP-MH,OP East - Home Care External,Third Party Payments,Private Contractors,Miscellaneous Agency Services,7/18/2011,953,750.50,Revenue,SYNERGY PERSONNEL SOLUTIONS LT
Adult Social Care,Adult u65 Phys/Sensory Impair,PD WEST TEAM-Direct Payment,Third Party Payments,Private Contractors,Direct Payments,7/18/2011,954,"2,100.00",Revenue,REDACTED
Adult Social Care,Older People 65&Over inc OP-MH,OP East -Direct Payment Scheme,Third Party Payments,Private Contractors,Direct Payments,7/18/2011,955,"1,210.64",Revenue,REDACTED
Adult Social Care,Older People 65&Over inc OP-MH,OP West -Direct Payment Scheme,Third Party Payments,Private Contractors,Direct Payments,7/18/2011,956,691.96,Revenue,REDACTED
Adult Social Care,Older People 65&Over inc OP-MH,OP Hosp -Direct Payment Scheme,Third Party Payments,Private Contractors,Direct Payments,7/18/2011,957,"1,235.40",Revenue,REDACTED
Adult Social Care,Older People 65&Over inc OP-MH,OP East -Direct Payment Scheme,Third Party Payments,Private Contractors,Direct Payments,7/18/2011,958,769.20,Revenue,REDACTED
Adult Social Care,Older People 65&Over inc OP-MH,OP East -Direct Payment Scheme,Third Party Payments,Private Contractors,Direct Payments,7/18/2011,959,779.60,Revenue,REDACTED
Adult Social Care,Older People 65&Over inc OP-MH,OP East - Residential Care Ext,Third Party Payments,Private Contractors,Miscellaneous Agency Services,7/19/2011,960,"1,717.80",Revenue,REDACTED
Adult Social Care,Older People 65&Over inc OP-MH,OP East - Residential Care Ext,Third Party Payments,Private Contractors,Miscellaneous Agency Services,7/19/2011,961,"1,717.80",Revenue,CHERRY TREE HOUSE
Adult Social Care,Older People 65&Over inc OP-MH,OP Hosp - Residential Care Ext,Third Party Payments,Private Contractors,Miscellaneous Agency Services,7/19/2011,962,"1,812.40",Revenue,CHERRY TREE HOUSE
Adult Social Care,Older People 65&Over inc OP-MH,OP West - Residential Care Ext,Third Party Payments,Private Contractors,Miscellaneous Agency Services,7/19/2011,963,"1,940.00",Revenue,CHERRY TREE HOUSE
Adult Social Care,Older People 65&Over inc OP-MH,OP Hosp - Residential Care Ext,Third Party Payments,Private Contractors,Miscellaneous Agency Services,7/20/2011,964,"1,165.11",Revenue,CLOYDA REST HOME
Adult Social Care,Other Adult Services,MH Residential Care Ext - SM&D,Third Party Payments,Private Contractors,Miscellaneous Agency Services,7/19/2011,965,"2,417.40",Revenue,CRANSTOUN DRUG SERVICES
Adult Social Care,Other Adult Services,MH Residential Care Ext - SM&D,Third Party Payments,Private Contractors,Miscellaneous Agency Services,7/19/2011,966,"1,467.71",Revenue,CRANSTOUN DRUG SERVICES
Adult Social Care,Other Adult Services,MH Residential Care Ext - SM&D,Third Party Payments,Private Contractors,Miscellaneous Agency Services,7/19/2011,967,"1,122.36",Revenue,CRANSTOUN DRUG SERVICES
Adult Social Care,Adult u65 Mental Health Needs,MH ResidentialCare Ext - Wim,Third Party Payments,Private Contractors,Miscellaneous Agency Services,7/19/2011,968,"3,552.52",Revenue,COMMUNITY HOUSING & THERAPY
Adult Social Care,Older People 65&Over inc OP-MH,OP East - Residential Care Ext,Third Party Payments,Private Contractors,Miscellaneous Agency Services,7/19/2011,969,"2,233.00",Revenue,ELM LODGE
Adult Social Care,Adult u65 Mental Health Needs,MH ResidentialCare Ext-Morden,Third Party Payments,Private Contractors,Miscellaneous Agency Services,7/19/2011,970,"1,425.56",Revenue,REDACTED
Adult Social Care,Adlt u65 Learning Disabilities,LD Residential Care External,Third Party Payments,Private Contractors,Miscellaneous Agency Services,7/19/2011,971,"4,160.00",Revenue,THE REGARD PARTNERSHIP LTD
Adult Social Care,Adlt u65 Learning Disabilities,LD Residential Care External,Third Party Payments,Private Contractors,Miscellaneous Agency Services,7/20/2011,972,"5,192.00",Revenue,SOLAR CARE GROUP LTD - ROBINIA
Adult Social Care,Adult u65 Mental Health Needs,MH Adult Placement Cont-Wim,Third Party Payments,Private Contractors,Accommodation Based Support,7/19/2011,973,"2,000.00",Revenue,REDACTED
Childrens & Education Services,Family Support Services,CS Day Care CWD,Third Party Payments,Private Contractors,Miscellaneous Agency Services,7/19/2011,974,"1,096.44",Revenue,COMPLETE CARE CENTRE
Childrens & Education Services,Other Ch's & Family Services,CL Leaving Care/Supp Lodgings,Third Party Payments,Private Contractors,Supported Lodgings,7/19/2011,975,600.00,Revenue,REDACTED
Childrens & Education Services,Other Ch's & Family Services,CL Leaving Care/Supp Lodgings,Third Party Payments,Private Contractors,Private Tenant/Landlord,7/19/2011,976,"1,661.52",Revenue,REDACTED
Childrens & Education Services,Family Support Services,CS Children in Need Section 17,Transfer Payments,Adult Soc Servs Clients,Childr Act 1989 S17,7/19/2011,977,"1,285.50",Revenue,ADMINLAND LTD
Childrens & Education Services,Family Support Services,CS Children in Need Section 17,Transfer Payments,Adult Soc Servs Clients,Childr Act 1989 S17,7/19/2011,978,525.00,Revenue,THE NEW LEVEL OF LIFE
Childrens & Education Services,Family Support Services,CS Children in Need Section 17,Transfer Payments,Adult Soc Servs Clients,Childr Act 1989 S17,7/19/2011,979,"3,643.00",Revenue,TRIMEGA LABORATORIES LTD
Adult Social Care,Adult u65 Phys/Sensory Impair,PD EAST TEAM-Direct Payment,Third Party Payments,Private Contractors,Direct Payments,7/19/2011,980,"1,550.65",Revenue,REDACTED
Childrens & Education Services,Children Looked After (24hrs+),CL Residential Care Homes CLA,Third Party Payments,Private Contractors,Miscellaneous Agency Services,7/20/2011,981,"15,092.00",Revenue,REDACTED
Childrens & Education Services,Children Looked After (24hrs+),CL Independent Fostering,Supplies and Services,Services,Long Term Fostering,7/20/2011,982,"2,905.01",Revenue,FOSTER CARE ASSOCIATES LTD
Childrens & Education Services,Children Looked After (24hrs+),CL Independent Fostering,Supplies and Services,Services,Task Based Fostering,7/20/2011,983,"9,291.52",Revenue,FOSTERING OUTCOMES LTD
Childrens & Education Services,Children Looked After (24hrs+),CL Independent Fostering,Supplies and Services,Services,Task Based Fostering,7/20/2011,984,"6,273.12",Revenue,FOSTERING OUTCOMES LTD
Childrens & Education Services,Family Support Services,CS Day Care CWD,Third Party Payments,Private Contractors,Playscheme,7/20/2011,985,"1,373.75",Revenue,LITTLE CATERPILLARS PLAYGROUP
Childrens & Education Services,Children Looked After (24hrs+),CL Independent Fostering,Supplies and Services,Services,Task Based Fostering,7/20/2011,986,"6,574.96",Revenue,THE NATIONAL FOSTERING AGENCY
Childrens & Education Services,Children Looked After (24hrs+),CL Independent Fostering,Supplies and Services,Services,Task Based Fostering,7/20/2011,987,"6,232.24",Revenue,THE NATIONAL FOSTERING AGENCY
Childrens & Education Services,Children Looked After (24hrs+),CL Independent Fostering,Supplies and Services,Services,Task Based Fostering,7/20/2011,988,"3,965.04",Revenue,THE NATIONAL FOSTERING AGENCY
Childrens & Education Services,Other Ch's & Family Services,CL Leaving Care/Supp Lodgings,Third Party Payments,Private Contractors,Supported Lodgings,7/20/2011,989,800.00,Revenue,REDACTED
Childrens & Education Services,Family Support Services,CS Children in Need Section 17,Transfer Payments,Adult Soc Servs Clients,Childr Act 1989 S17,7/20/2011,990,"2,250.00",Revenue,THE NEW LEVEL OF LIFE
Adult Social Care,Adult u65 Phys/Sensory Impair,PD EAST TEAM-Day Care,Third Party Payments,Private Contractors,Miscellaneous Agency Services,7/29/2011,991,"1,066.40",Revenue,ACTION FOR BLIND PEOPLE
Adult Social Care,Adlt u65 Learning Disabilities,LD Day Care Agency,Third Party Payments,Private Contractors,Miscellaneous Agency Services,7/20/2011,992,648.96,Revenue,ELIZABETH FITZROY HOMES
Adult Social Care,Adlt u65 Learning Disabilities,LD Home Care External,Third Party Payments,Private Contractors,Miscellaneous Agency Services,7/20/2011,993,"2,488.48",Revenue,ELIZABETH FITZROY HOMES
Adult Social Care,Adlt u65 Learning Disabilities,LD Home Care External,Third Party Payments,Private Contractors,Miscellaneous Agency Services,7/20/2011,994,624.80,Revenue,ROYAL MENCAP SOCIETY
Adult Social Care,Adlt u65 Learning Disabilities,LD Direct Payment Scheme,Third Party Payments,Private Contractors,Direct Payments,7/20/2011,995,"5,160.00",Revenue,REDACTED
Adult Social Care,Adlt u65 Learning Disabilities,LD Direct Payment Scheme,Third Party Payments,Private Contractors,Direct Payments,7/20/2011,996,"2,444.80",Revenue,REDACTED
Adult Social Care,Adult u65 Phys/Sensory Impair,PD WEST TEAM-Direct Payment,Third Party Payments,Private Contractors,Direct Payments,7/20/2011,997,"13,925.58",Revenue,REDACTED
Adult Social Care,Adlt u65 Learning Disabilities,LD Direct Payment Scheme,Third Party Payments,Private Contractors,Direct Payments,7/20/2011,998,"2,990.12",Revenue,REDACTED
Adult Social Care,Adult u65 Phys/Sensory Impair,PD WEST TEAM-Direct Payment,Third Party Payments,Private Contractors,Direct Payments,7/20/2011,999,824.92,Revenue,REDACTED
Adult Social Care,Adlt u65 Learning Disabilities,LD Residential Care External,Third Party Payments,Private Contractors,Miscellaneous Agency Services,7/20/2011,1000,"6,725.24",Revenue,BROADHAM CARE LTD
Adult Social Care,Adlt u65 Learning Disabilities,LD Residential Care External,Third Party Payments,Private Contractors,Miscellaneous Agency Services,7/20/2011,1001,"8,212.00",Revenue,BROADHAM CARE LTD
Adult Social Care,Adlt u65 Learning Disabilities,LD Residential Care External,Third Party Payments,Private Contractors,Miscellaneous Agency Services,7/20/2011,1002,"5,680.00",Revenue,BROADHAM CARE LTD
Adult Social Care,Older People 65&Over inc OP-MH,OP Hosp - Residential Care Ext,Third Party Payments,Private Contractors,Miscellaneous Agency Services,7/20/2011,1003,"1,611.43",Revenue,BUPA CARE HOMES
Adult Social Care,Older People 65&Over inc OP-MH,OP East - Nursing Care,Third Party Payments,Private Contractors,Miscellaneous Agency Services,7/20/2011,1004,"2,406.60",Revenue,BUPA CARE HOMES
Adult Social Care,Adult u65 Phys/Sensory Impair,PD WEST TEAM-Nursing,Third Party Payments,Private Contractors,Miscellaneous Agency Services,7/20/2011,1005,"6,020.00",Revenue,BUPA CARE HOMES
Adult Social Care,Older People 65&Over inc OP-MH,OP Hosp - Nursing Care,Third Party Payments,Private Contractors,Miscellaneous Agency Services,7/20/2011,1006,"12,226.40",Revenue,BUPA CARE HOMES
Adult Social Care,Older People 65&Over inc OP-MH,OP West - Nursing Care,Third Party Payments,Private Contractors,Miscellaneous Agency Services,7/20/2011,1007,"24,477.52",Revenue,BUPA CARE HOMES
Adult Social Care,Adlt u65 Learning Disabilities,LD Residential Care External,Third Party Payments,Private Contractors,Miscellaneous Agency Services,7/20/2011,1008,"3,400.00",Revenue,BURGH HEATH LODGE
Adult Social Care,Older People 65&Over inc OP-MH,OP East - Nursing Care,Customer and client receipts,Charges,Miscellaneous Charges X,7/20/2011,1009,-543.50,Revenue,REDACTED
Adult Social Care,Older People 65&Over inc OP-MH,OP East - Nursing Care,Third Party Payments,Private Contractors,Miscellaneous Agency Services,7/20/2011,1010,"2,540.00",Revenue,REDACTED
Adult Social Care,Adlt u65 Learning Disabilities,LD Residential Care External,Third Party Payments,Private Contractors,Miscellaneous Agency Services,7/20/2011,1011,"2,352.24",Revenue,COTTISBRAINE HOUSE
Adult Social Care,Adlt u65 Learning Disabilities,LD Residential Care External,Third Party Payments,Private Contractors,Miscellaneous Agency Services,7/20/2011,1012,"2,352.24",Revenue,COTTISBRAINE HOUSE
Adult Social Care,Adlt u65 Learning Disabilities,LD Residential Care External,Third Party Payments,Private Contractors,Miscellaneous Agency Services,7/20/2011,1013,"2,552.84",Revenue,FREEWAYS TRUST LTD
Adult Social Care,Older People 65&Over inc OP-MH,OP East - Residential Care Ext,Third Party Payments,Private Contractors,Miscellaneous Agency Services,7/20/2011,1014,"1,692.40",Revenue,GENESIS CARE HOME
Adult Social Care,Adlt u65 Learning Disabilities,LD Residential Care External,Third Party Payments,Private Contractors,Miscellaneous Agency Services,7/20/2011,1015,"2,853.92",Revenue,THE GRANGE & WALTON COTTAGE
Adult Social Care,Older People 65&Over inc OP-MH,OP East - Nursing Care,Third Party Payments,Private Contractors,Miscellaneous Agency Services,7/20/2011,1016,"2,268.72",Revenue,JESMUND NURSING HOME
Adult Social Care,Older People 65&Over inc OP-MH,OP East - Residential Care Ext,Third Party Payments,Private Contractors,Miscellaneous Agency Services,7/20/2011,1017,"1,410.00",Revenue,THE ABBEYFIELD SOCIETY
Adult Social Care,Older People 65&Over inc OP-MH,OP West - Residential Care Ext,Third Party Payments,Private Contractors,Miscellaneous Agency Services,7/20/2011,1018,"1,636.20",Revenue,LYNCROFT RESIDENTIAL HOME
Adult Social Care,Adlt u65 Learning Disabilities,LD Residential Care External,Third Party Payments,Private Contractors,Miscellaneous Agency Services,7/20/2011,1019,"2,672.76",Revenue,THE NAK CENTRE
Adult Social Care,Older People 65&Over inc OP-MH,OP Hosp - Residential Care Ext,Third Party Payments,Private Contractors,Miscellaneous Agency Services,7/20/2011,1020,"1,812.00",Revenue,SWEET HOMES LTD
Adult Social Care,Older People 65&Over inc OP-MH,OP Hosp - Residential Care Ext,Third Party Payments,Private Contractors,Miscellaneous Agency Services,7/20/2011,1021,"2,070.86",Revenue,SWEET HOMES LTD
Adult Social Care,Older People 65&Over inc OP-MH,OP Hosp - Residential Care Ext,Third Party Payments,Private Contractors,Miscellaneous Agency Services,7/20/2011,1022,"1,812.40",Revenue,WHITECLIFF RESID. CARE HOME
Childrens & Education Services,Children Looked After (24hrs+),CL Fostering Services,Supplies and Services,Services,Task Based Fostering,7/20/2011,1023,763.46,Revenue,REDACTED
Childrens & Education Services,Children Looked After (24hrs+),CL Fostering Services,Supplies and Services,Services,Task Based Fostering,7/20/2011,1024,"1,543.90",Revenue,REDACTED
Childrens & Education Services,Children Looked After (24hrs+),CL Fostering Services,Supplies and Services,Services,Task Based Fostering,7/20/2011,1025,"1,502.66",Revenue,REDACTED
Childrens & Education Services,Children Looked After (24hrs+),CL Fostering Services,Supplies and Services,Services,Task Based Fostering,7/20/2011,1026,739.20,Revenue,REDACTED
Childrens & Education Services,Children Looked After (24hrs+),CL Fostering Services,Supplies and Services,Services,Task Based Fostering,7/20/2011,1027,"2,300.08",Revenue,REDACTED
Childrens & Education Services,Children Looked After (24hrs+),CL Fostering Services,Supplies and Services,Services,Task Based Fostering,7/20/2011,1028,"3,316.12",Revenue,REDACTED
Childrens & Education Services,Children Looked After (24hrs+),CL Fostering Services,Supplies and Services,Services,Task Based Fostering,7/20/2011,1029,"1,851.84",Revenue,REDACTED
Childrens & Education Services,Children Looked After (24hrs+),CL Fostering Services,Supplies and Services,Services,Task Based Fostering,7/20/2011,1030,780.44,Revenue,REDACTED
Childrens & Education Services,Children Looked After (24hrs+),CL Fostering Services,Supplies and Services,Services,Task Based Fostering,7/20/2011,1031,"2,324.34",Revenue,REDACTED
Childrens & Education Services,Children Looked After (24hrs+),CL Fostering Services,Supplies and Services,Services,Task Based Fostering,7/20/2011,1032,"2,283.10",Revenue,REDACTED
Childrens & Education Services,Children Looked After (24hrs+),CL Fostering Services,Supplies and Services,Services,Task Based Fostering,7/20/2011,1033,"2,881.80",Revenue,REDACTED
Childrens & Education Services,Children Looked After (24hrs+),CL Fostering Services,Supplies and Services,Services,Task Based Fostering,7/20/2011,1034,760.00,Revenue,REDACTED
Childrens & Education Services,Children Looked After (24hrs+),CL Fostering Services,Supplies and Services,Services,Respite Fostering Allowance,7/20/2011,1035,504.84,Revenue,REDACTED
Childrens & Education Services,Children Looked After (24hrs+),CL Fostering Services,Supplies and Services,Services,Task Based Fostering,7/20/2011,1036,"2,307.36",Revenue,REDACTED
Childrens & Education Services,Children Looked After (24hrs+),CL Fostering Services,Supplies and Services,Services,Task Based Fostering,7/20/2011,1037,"1,560.88",Revenue,REDACTED
Childrens & Education Services,Children Looked After (24hrs+),CL Fostering Services,Supplies and Services,Services,Task Based Fostering,7/20/2011,1038,"2,266.12",Revenue,REDACTED
Childrens & Education Services,Children Looked After (24hrs+),CL Fostering Services,Supplies and Services,Services,Task Based Fostering,7/20/2011,1039,739.20,Revenue,REDACTED
Childrens & Education Services,Children Looked After (24hrs+),CL Fostering Services,Supplies and Services,Services,Task Based Fostering,7/20/2011,1040,603.04,Revenue,REDACTED
Childrens & Education Services,Children Looked After (24hrs+),CL Fostering Services,Supplies and Services,Services,Task Based Fostering,7/20/2011,1041,"2,324.34",Revenue,REDACTED
Childrens & Education Services,Children Looked After (24hrs+),CL Fostering Services,Supplies and Services,Services,Task Based Fostering,7/20/2011,1042,"1,543.90",Revenue,REDACTED
Childrens & Education Services,Children Looked After (24hrs+),CL Fostering Services,Supplies and Services,Services,Task Based Fostering,7/20/2011,1043,"2,258.84",Revenue,REDACTED
Childrens & Education Services,Children Looked After (24hrs+),CL Fostering Services,Supplies and Services,Services,Task Based Fostering,7/20/2011,1044,780.44,Revenue,REDACTED
Childrens & Education Services,Children Looked After (24hrs+),CL Fostering Services,Supplies and Services,Services,Task Based Fostering,7/20/2011,1045,"2,968.38",Revenue,REDACTED
Childrens & Education Services,Children Looked After (24hrs+),CL Fostering Services,Supplies and Services,Services,Task Based Fostering,7/20/2011,1046,"1,478.40",Revenue,REDACTED
Childrens & Education Services,Children Looked After (24hrs+),CL Fostering Services,Supplies and Services,Services,Task Based Fostering,7/20/2011,1047,"1,895.36",Revenue,REDACTED
Childrens & Education Services,Children Looked After (24hrs+),CL Fostering Services,Supplies and Services,Services,Task Based Fostering,7/20/2011,1048,"1,078.68",Revenue,REDACTED
